Workbook

Sheet Main
B10: 2024-09-04
B12: Sheet No. | C12: Template Name | D12: Summary
B13: 1 | C13: Future Intra | D13: For Intraday trading in F&O segment
B14: 2 | C14: Cash Intra | D14: For Intraday trading in cash market segment
B15: 3 | C15: Mid-cap Intra | D15: For Intraday trading in Mid-cap stocks
B16: 4 | C16: Bulk Deals | D16: Reveals Bulk Deals carried on NSE & BSE
B17: 5 | C17: Call Tracker
K27: `

Sheet Future Intra
M5: Back to Main Page
A6: FOR INTRA DAY TRADING | L6: =Main!B10 -> 2024-09-04
A9: Sr.no | B9: Sector | C9: Scrip | D9: Expiry Date | E9: CLOSE RATE | F9: Pivot Point | G9: Supports | J9: Resistances
E10: Point | F10: Point | G10: S1 | H10: S2 | I10: S3 | J10: R1 | K10: R2 | L10: R3 | M10: HIGH | N10: LOW | O10: OI | P10: % Change in OI
A11: 1 | B11: Index | C11: NIFTY | D11: 2024-09-26 | E11: 25354.55 | F11: 25335.88 | G11: 25273.77 | H11: 25192.98 | I11: 25130.87 | J11: 25416.67 | K11: 25478.78 | L11: 25559.57 | M11: 25398 | N11: 25255.1 | O11: 16277250 | P11: 0.97%
A12: 2 | B12: Index | C12: BANKNIFTY | D12: 2024-09-25 | E12: 51834.10 | F12: 51748.03 | G12: 51611.07 | H12: 51388.03 | I12: 51251.07 | J12: 51971.07 | K12: 52108.03 | L12: 52331.07 | M12: 51885 | N12: 51525 | O12: 2541960 | P12: 0.36%
A13: 3 | B13: Index | C13: FINNIFTY | D13: 2024-09-24 | E13: 23960.40 | F13: 23886.38 | G13: 23788.07 | H13: 23615.73 | I13: 23517.42 | J13: 24058.72 | K13: 24157.03 | L13: 24329.37 | M13: 23984.7 | N13: 23714.05 | O13: 125925 | P13: 65.31%
A14: 4 | B14: Index | C14: MIDCPNIFTY | D14: 2024-09-30 | E14: 13259.95 | F14: 13243.95 | G14: 13208.10 | H14: 13156.25 | I14: 13120.40 | J14: 13295.80 | K14: 13331.65 | L14: 13383.50 | M14: 13279.8 | N14: 13192.1 | O14: 2243600 | P14: -0.24%
A15: 5 | B15: Index | C15: NIFTYNXT50 | D15: 2024-09-27 | E15: 75542.80 | F15: 75483.07 | G15: 75366.13 | H15: 75189.47 | I15: 75072.53 | J15: 75659.73 | K15: 75776.67 | L15: 75953.33 | M15: 75600 | N15: 75306.4 | O15: 15180 | P15: 5.71%
A16: 6 | B16: Chemicals | C16: AARTIIND | D16: 2024-09-26 | E16: 626.70 | F16: 629.55 | G16: 622.80 | H16: 618.90 | I16: 612.15 | J16: 633.45 | K16: 640.20 | L16: 644.10 | M16: 636.3 | N16: 625.65 | O16: 13703000 | P16: 5.54%
A17: 7 | B17: Capital_Goods | C17: ABB | D17: 2024-09-26 | E17: 7797.60 | F17: 7792.30 | G17: 7720.35 | H17: 7643.10 | I17: 7571.15 | J17: 7869.55 | K17: 7941.50 | L17: 8018.75 | M17: 7864.25 | N17: 7715.05 | O17: 1517500 | P17: -0.79%
A18: 8 | B18: Pharma | C18: ABBOTINDIA | D18: 2024-09-26 | E18: 29848.35 | F18: 30056.12 | G18: 29592.23 | H18: 29336.12 | I18: 28872.23 | J18: 30312.23 | K18: 30776.12 | L18: 31032.23 | M18: 30520 | N18: 29800 | O18: 115260 | P18: -2.01%
A19: 9 | B19: Finance | C19: ABCAPITAL | D19: 2024-09-26 | E19: 226.14 | F19: 226.82 | G19: 223.52 | H19: 220.89 | I19: 217.59 | J19: 229.45 | K19: 232.75 | L19: 235.38 | M19: 230.13 | N19: 224.2 | O19: 70615800 | P19: 1.35%
A20: 10 | B20: Textile | C20: ABFRL | D20: 2024-09-26 | E20: 317.70 | F20: 320.05 | G20: 314.80 | H20: 311.90 | I20: 306.65 | J20: 322.95 | K20: 328.20 | L20: 331.10 | M20: 325.3 | N20: 317.15 | O20: 61068800 | P20: 5.09%
A21: 11 | B21: Cement | C21: ACC | D21: 2024-09-26 | E21: 2348.55 | F21: 2348.08 | G21: 2337.47 | H21: 2326.38 | I21: 2315.77 | J21: 2359.17 | K21: 2369.78 | L21: 2380.87 | M21: 2358.7 | N21: 2337 | O21: 5374200 | P21: -1.04%
A22: 12 | B22: Infrastructure | C22: ADANIENT | D22: 2024-09-26 | E22: 3056.20 | F22: 3056.13 | G22: 3041.37 | H22: 3026.53 | I22: 3011.77 | J22: 3070.97 | K22: 3085.73 | L22: 3100.57 | M22: 3070.9 | N22: 3041.3 | O22: 23280600 | P22: 0.78%
A23: 13 | B23: Infrastructure | C23: ADANIPORTS | D23: 2024-09-26 | E23: 1484.35 | F23: 1489.37 | G23: 1476.88 | H23: 1469.42 | I23: 1456.93 | J23: 1496.83 | K23: 1509.32 | L23: 1516.78 | M23: 1501.85 | N23: 1481.9 | O23: 28931200 | P23: 0.43%
A24: 14 | B24: Pharma | C24: ALKEM | D24: 2024-09-26 | E24: 6126.95 | F24: 6130.98 | G24: 6064.97 | H24: 6002.98 | I24: 5936.97 | J24: 6192.97 | K24: 6258.98 | L24: 6320.97 | M24: 6197 | N24: 6069 | O24: 2229000 | P24: -0.66%
A25: 15 | B25: Cement | C25: AMBUJACEM | D25: 2024-09-26 | E25: 620.85 | F25: 621.53 | G25: 617.82 | H25: 614.78 | I25: 611.07 | J25: 624.57 | K25: 628.28 | L25: 631.32 | M25: 625.25 | N25: 618.5 | O25: 43910100 | P25: -0.35%
A26: 16 | B26: Pharma | C26: APOLLOHOSP | D26: 2024-09-26 | E26: 6884.70 | F26: 6907.45 | G26: 6848.35 | H26: 6812.00 | I26: 6752.90 | J26: 6943.80 | K26: 7002.90 | L26: 7039.25 | M26: 6966.55 | N26: 6871.1 | O26: 1771250 | P26: 5.89%
A27: 17 | B27: Automobile | C27: APOLLOTYRE | D27: 2024-09-26 | E27: 502.80 | F27: 501.68 | G27: 498.47 | H27: 494.13 | I27: 490.92 | J27: 506.02 | K27: 509.23 | L27: 513.57 | M27: 504.9 | N27: 497.35 | O27: 12532400 | P27: -1.40%
A28: 18 | B28: Automobile | C28: ASHOKLEY | D28: 2024-09-26 | E28: 252.45 | F28: 252.20 | G28: 250.90 | H28: 249.35 | I28: 248.05 | J28: 253.75 | K28: 255.05 | L28: 256.60 | M28: 253.5 | N28: 250.65 | O28: 63120000 | P28: -0.33%
A29: 19 | B29: FMCG | C29: ASIANPAINT | D29: 2024-09-26 | E29: 3165.50 | F29: 3170.92 | G29: 3154.73 | H29: 3143.97 | I29: 3127.78 | J29: 3181.68 | K29: 3197.87 | L29: 3208.63 | M29: 3187.1 | N29: 3160.15 | O29: 9578600 | P29: -1.03%
A30: 20 | B30: Capital_Goods | C30: ASTRAL | D30: 2024-09-26 | E30: 1935.95 | F30: 1939.68 | G30: 1923.37 | H30: 1910.78 | I30: 1894.47 | J30: 1952.27 | K30: 1968.58 | L30: 1981.17 | M30: 1956 | N30: 1927.1 | O30: 4997439 | P30: -0.77%
A31: 21 | B31: Chemicals | C31: ATUL | D31: 2024-09-26 | E31: 7967.50 | F31: 7979.97 | G31: 7890.33 | H31: 7813.17 | I31: 7723.53 | J31: 8057.13 | K31: 8146.77 | L31: 8223.93 | M31: 8069.6 | N31: 7902.8 | O31: 800300 | P31: -2.02%
A32: 22 | B32: Banking | C32: AUBANK | D32: 2024-09-26 | E32: 673.20 | F32: 677.32 | G32: 666.88 | H32: 660.57 | I32: 650.13 | J32: 683.63 | K32: 694.07 | L32: 700.38 | M32: 687.75 | N32: 671 | O32: 20062000 | P32: -2.31%
A33: 23 | B33: Pharma | C33: AUROPHARMA | D33: 2024-09-26 | E33: 1558.55 | F33: 1564.08 | G33: 1550.27 | H33: 1541.98 | I33: 1528.17 | J33: 1572.37 | K33: 1586.18 | L33: 1594.47 | M33: 1577.9 | N33: 1555.8 | O33: 10297650 | P33: 3.02%
A34: 24 | B34: Banking | C34: AXISBANK | D34: 2024-09-26 | E34: 1194.85 | F34: 1191.55 | G34: 1186.30 | H34: 1177.75 | I34: 1172.50 | J34: 1200.10 | K34: 1205.35 | L34: 1213.90 | M34: 1196.8 | N34: 1183 | O34: 57411875 | P34: 0.79%
A35: 25 | B35: Automobile | C35: BAJAJ-AUTO | D35: 2024-09-26 | E35: 11099.90 | F35: 11117.97 | G35: 11056.93 | H35: 11013.97 | I35: 10952.93 | J35: 11160.93 | K35: 11221.97 | L35: 11264.93 | M35: 11179 | N35: 11075 | O35: 1704225 | P35: -0.20%
A36: 26 | B36: Finance | C36: BAJAJFINSV | D36: 2024-09-26 | E36: 1870.20 | F36: 1855.38 | G36: 1834.97 | H36: 1799.73 | I36: 1779.32 | J36: 1890.62 | K36: 1911.03 | L36: 1946.27 | M36: 1875.8 | N36: 1820.15 | O36: 13969000 | P36: -2.57%
A37: 27 | B37: Finance | C37: BAJFINANCE | D37: 2024-09-26 | E37: 7382.75 | F37: 7369.53 | G37: 7263.42 | H37: 7144.08 | I37: 7037.97 | J37: 7488.87 | K37: 7594.98 | L37: 7714.32 | M37: 7475.65 | N37: 7250.2 | O37: 10621500 | P37: 1.76%
A38: 28 | B38: Automobile | C38: BALKRISIND | D38: 2024-09-26 | E38: 2938.10 | F38: 2923.17 | G38: 2893.63 | H38: 2849.17 | I38: 2819.63 | J38: 2967.63 | K38: 2997.17 | L38: 3041.63 | M38: 2952.7 | N38: 2878.7 | O38: 2131500 | P38: 7.75%
A39: 29 | B39: FMCG | C39: BALRAMCHIN | D39: 2024-09-26 | E39: 591.60 | F39: 591.57 | G39: 586.93 | H39: 582.27 | I39: 577.63 | J39: 596.23 | K39: 600.87 | L39: 605.53 | M39: 596.2 | N39: 586.9 | O39: 11766400 | P39: -1.80%
A40: 30 | B40: Banking | C40: BANDHANBNK | D40: 2024-09-26 | E40: 202.49 | F40: 203.38 | G40: 200.94 | H40: 199.38 | I40: 196.94 | J40: 204.94 | K40: 207.38 | L40: 208.94 | M40: 205.83 | N40: 201.83 | O40: 123502400 | P40: 0.65%
A41: 31 | B41: Banking | C41: BANKBARODA | D41: 2024-09-26 | E41: 252.25 | F41: 253.45 | G41: 250.80 | H41: 249.35 | I41: 246.70 | J41: 254.90 | K41: 257.55 | L41: 259.00 | M41: 256.1 | N41: 252 | O41: 202140900 | P41: 2.06%
A42: 32 | B42: FMCG | C42: BATAINDIA | D42: 2024-09-26 | E42: 1471.80 | F42: 1472.35 | G42: 1462.20 | H42: 1452.60 | I42: 1442.45 | J42: 1481.95 | K42: 1492.10 | L42: 1501.70 | M42: 1482.5 | N42: 1462.75 | O42: 3039000 | P42: 5.95%
A43: 33 | B43: Capital_Goods | C43: BEL | D43: 2024-09-26 | E43: 298.75 | F43: 299.67 | G43: 297.13 | H43: 295.52 | I43: 292.98 | J43: 301.28 | K43: 303.82 | L43: 305.43 | M43: 302.2 | N43: 298.05 | O43: 164510550 | P43: 0.63%
A44: 34 | B44: FMCG | C44: BERGEPAINT | D44: 2024-09-26 | E44: 579.95 | F44: 580.82 | G44: 577.43 | H44: 574.92 | I44: 571.53 | J44: 583.33 | K44: 586.72 | L44: 589.23 | M44: 584.2 | N44: 578.3 | O44: 12114960 | P44: -0.10%
A45: 35 | B45: Automobile | C45: BHARATFORG | D45: 2024-09-26 | E45: 1575.85 | F45: 1583.28 | G45: 1565.57 | H45: 1555.28 | I45: 1537.57 | J45: 1593.57 | K45: 1611.28 | L45: 1621.57 | M45: 1601 | N45: 1573 | O45: 8210500 | P45: 1.35%
A46: 36 | B46: Telecom | C46: BHARTIARTL | D46: 2024-09-26 | E46: 1566.10 | F46: 1571.50 | G46: 1559.10 | H46: 1552.10 | I46: 1539.70 | J46: 1578.50 | K46: 1590.90 | L46: 1597.90 | M46: 1583.9 | N46: 1564.5 | O46: 42586125 | P46: -1.26%
A47: 37 | B47: Capital_Goods | C47: BHEL | D47: 2024-09-26 | E47: 287.85 | F47: 288.75 | G47: 286.55 | H47: 285.25 | I47: 283.05 | J47: 290.05 | K47: 292.25 | L47: 293.55 | M47: 290.95 | N47: 287.45 | O47: 85656375 | P47: -0.02%
A48: 38 | B48: Pharma | C48: BIOCON | D48: 2024-09-26 | E48: 362.95 | F48: 364.30 | G48: 360.95 | H48: 358.95 | I48: 355.60 | J48: 366.30 | K48: 369.65 | L48: 371.65 | M48: 367.65 | N48: 362.3 | O48: 44795000 | P48: -0.68%
A49: 39 | B49: Automobile | C49: BOSCHLTD | D49: 2024-09-26 | E49: 32466.55 | F49: 32468.80 | G49: 32047.75 | H49: 31628.95 | I49: 31207.90 | J49: 32887.60 | K49: 33308.65 | L49: 33727.45 | M49: 32889.85 | N49: 32050 | O49: 295150 | P49: 0.03%
A50: 40 | B50: Oil_Gas | C50: BPCL | D50: 2024-09-26 | E50: 357.30 | F50: 357.85 | G50: 354.45 | H50: 351.60 | I50: 348.20 | J50: 360.70 | K50: 364.10 | L50: 366.95 | M50: 361.25 | N50: 355 | O50: 60289200 | P50: -2.68%
A51: 41 | B51: FMCG | C51: BRITANNIA | D51: 2024-09-26 | E51: 5936.85 | F51: 5938.90 | G51: 5902.95 | H51: 5869.05 | I51: 5833.10 | J51: 5972.80 | K51: 6008.75 | L51: 6042.65 | M51: 5974.85 | N51: 5905 | O51: 2402800 | P51: -2.02%
A52: 42 | B52: Technology | C52: BSOFT | D52: 2024-09-26 | E52: 673.05 | F52: 673.62 | G52: 665.28 | H52: 657.52 | I52: 649.18 | J52: 681.38 | K52: 689.72 | L52: 697.48 | M52: 681.95 | N52: 665.85 | O52: 11432000 | P52: 2.46%
A53: 43 | B53: Banking | C53: CANBK | D53: 2024-09-26 | E53: 112.08 | F53: 112.57 | G53: 111.34 | H53: 110.60 | I53: 109.37 | J53: 113.31 | K53: 114.54 | L53: 115.28 | M53: 113.8 | N53: 111.83 | O53: 314685000 | P53: 2.56%
A54: 44 | B54: Finance | C54: CANFINHOME | D54: 2024-09-26 | E54: 879.15 | F54: 877.32 | G54: 870.68 | H54: 862.22 | I54: 855.58 | J54: 885.78 | K54: 892.42 | L54: 900.88 | M54: 883.95 | N54: 868.85 | O54: 4920825 | P54: -1.64%
A55: 45 | B55: Chemicals | C55: CHAMBLFERT | D55: 2024-09-26 | E55: 530.25 | F55: 531.87 | G55: 527.68 | H55: 525.12 | I55: 520.93 | J55: 534.43 | K55: 538.62 | L55: 541.18 | M55: 536.05 | N55: 529.3 | O55: 12752800 | P55: 0.13%
A56: 46 | B56: Finance | C56: CHOLAFIN | D56: 2024-09-26 | E56: 1505.45 | F56: 1496.17 | G56: 1480.73 | H56: 1456.02 | I56: 1440.58 | J56: 1520.88 | K56: 1536.32 | L56: 1561.03 | M56: 1511.6 | N56: 1471.45 | O56: 12237500 | P56: 1.88%
A57: 47 | B57: Pharma | C57: CIPLA | D57: 2024-09-26 | E57: 1658.00 | F57: 1659.35 | G57: 1652.70 | H57: 1647.40 | I57: 1640.75 | J57: 1664.65 | K57: 1671.30 | L57: 1676.60 | M57: 1666 | N57: 1654.05 | O57: 10460450 | P57: -2.51%
A58: 48 | B58: Metals | C58: COALINDIA | D58: 2024-09-26 | E58: 521.10 | F58: 521.93 | G58: 518.87 | H58: 516.63 | I58: 513.57 | J58: 524.17 | K58: 527.23 | L58: 529.47 | M58: 525 | N58: 519.7 | O58: 54910800 | P58: -1.90%
A59: 49 | B59: Technology | C59: COFORGE | D59: 2024-09-26 | E59: 6429.60 | F59: 6407.10 | G59: 6365.20 | H59: 6300.80 | I59: 6258.90 | J59: 6471.50 | K59: 6513.40 | L59: 6577.80 | M59: 6449 | N59: 6342.7 | O59: 2185800 | P59: -0.90%
A60: 50 | B60: FMCG | C60: COLPAL | D60: 2024-09-26 | E60: 3651.50 | F60: 3653.92 | G60: 3619.33 | H60: 3587.17 | I60: 3552.58 | J60: 3686.08 | K60: 3720.67 | L60: 3752.83 | M60: 3688.5 | N60: 3621.75 | O60: 2625000 | P60: -1.24%
A61: 51 | B61: Infrastructure | C61: CONCOR | D61: 2024-09-26 | E61: 978.10 | F61: 974.47 | G61: 966.13 | H61: 954.17 | I61: 945.83 | J61: 986.43 | K61: 994.77 | L61: 1006.73 | M61: 982.8 | N61: 962.5 | O61: 24223000 | P61: -1.30%
A62: 52 | B62: Chemicals | C62: COROMANDEL | D62: 2024-09-26 | E62: 1741.85 | F62: 1750.55 | G62: 1730.30 | H62: 1718.75 | I62: 1698.50 | J62: 1762.10 | K62: 1782.35 | L62: 1793.90 | M62: 1770.8 | N62: 1739 | O62: 3003000 | P62: 0.70%
A63: 53 | B63: Capital_Goods | C63: CROMPTON | D63: 2024-09-26 | E63: 472.30 | F63: 472.72 | G63: 466.18 | H63: 460.07 | I63: 453.53 | J63: 478.83 | K63: 485.37 | L63: 491.48 | M63: 479.25 | N63: 466.6 | O63: 12198600 | P63: -0.46%
A64: 54 | B64: Banking | C64: CUB | D64: 2024-09-26 | E64: 170.27 | F64: 170.78 | G64: 169.19 | H64: 168.12 | I64: 166.53 | J64: 171.85 | K64: 173.44 | L64: 174.51 | M64: 172.36 | N64: 169.7 | O64: 28990000 | P64: -0.34%
A65: 55 | B65: Capital_Goods | C65: CUMMINSIND | D65: 2024-09-26 | E65: 3849.85 | F65: 3849.42 | G65: 3831.93 | H65: 3814.02 | I65: 3796.53 | J65: 3867.33 | K65: 3884.82 | L65: 3902.73 | M65: 3866.9 | N65: 3831.5 | O65: 4440300 | P65: -1.79%
A66: 56 | B66: FMCG | C66: DABUR | D66: 2024-09-26 | E66: 641.85 | F66: 643.72 | G66: 636.63 | H66: 631.42 | I66: 624.33 | J66: 648.93 | K66: 656.02 | L66: 661.23 | M66: 650.8 | N66: 638.5 | O66: 14758750 | P66: -2.84%
A67: 57 | B67: Cement | C67: DALBHARAT | D67: 2024-09-26 | E67: 1926.60 | F67: 1927.38 | G67: 1915.02 | H67: 1903.43 | I67: 1891.07 | J67: 1938.97 | K67: 1951.33 | L67: 1962.92 | M67: 1939.75 | N67: 1915.8 | O67: 3014275 | P67: -0.65%
A68: 58 | B68: Chemicals | C68: DEEPAKNTR | D68: 2024-09-26 | E68: 2951.15 | F68: 2946.48 | G68: 2926.47 | H68: 2901.78 | I68: 2881.77 | J68: 2971.17 | K68: 2991.18 | L68: 3015.87 | M68: 2966.5 | N68: 2921.8 | O68: 2205900 | P68: -5.67%
A69: 59 | B69: Pharma | C69: DIVISLAB | D69: 2024-09-26 | E69: 5088.80 | F69: 5085.33 | G69: 5053.77 | H69: 5018.73 | I69: 4987.17 | J69: 5120.37 | K69: 5151.93 | L69: 5186.97 | M69: 5116.9 | N69: 5050.3 | O69: 3079000 | P69: -2.38%
A70: 60 | B70: Capital_Goods | C70: DIXON | D70: 2024-09-26 | E70: 13041.30 | F70: 12939.27 | G70: 12788.53 | H70: 12535.77 | I70: 12385.03 | J70: 13192.03 | K70: 13342.77 | L70: 13595.53 | M70: 13090 | N70: 12686.5 | O70: 2137100 | P70: -2.49%
A71: 61 | B71: Realty | C71: DLF | D71: 2024-09-26 | E71: 852.35 | F71: 855.43 | G71: 847.47 | H71: 842.58 | I71: 834.62 | J71: 860.32 | K71: 868.28 | L71: 873.17 | M71: 863.4 | N71: 850.55 | O71: 39963000 | P71: -0.75%
A72: 62 | B72: Pharma | C72: DRREDDY | D72: 2024-09-26 | E72: 6892.20 | F72: 6904.93 | G72: 6872.22 | H72: 6852.23 | I72: 6819.52 | J72: 6924.92 | K72: 6957.63 | L72: 6977.62 | M72: 6937.65 | N72: 6884.95 | O72: 2536625 | P72: -0.96%
A73: 63 | B73: Automobile | C73: EICHERMOT | D73: 2024-09-26 | E73: 4890.85 | F73: 4913.13 | G73: 4860.32 | H73: 4829.78 | I73: 4776.97 | J73: 4943.67 | K73: 4996.48 | L73: 5027.02 | M73: 4965.95 | N73: 4882.6 | O73: 3700025 | P73: 0.18%
A74: 64 | B74: Automobile | C74: ESCORTS | D74: 2024-09-26 | E74: 3805.85 | F74: 3812.93 | G74: 3777.87 | H74: 3749.88 | I74: 3714.82 | J74: 3840.92 | K74: 3875.98 | L74: 3903.97 | M74: 3848 | N74: 3784.95 | O74: 1890625 | P74: 0.56%
A75: 65 | B75: Automobile | C75: EXIDEIND | D75: 2024-09-26 | E75: 491.65 | F75: 492.72 | G75: 489.98 | H75: 488.32 | I75: 485.58 | J75: 494.38 | K75: 497.12 | L75: 498.78 | M75: 495.45 | N75: 491.05 | O75: 32985000 | P75: 0.42%
A76: 66 | B76: Banking | C76: FEDERALBNK | D76: 2024-09-26 | E76: 195.22 | F76: 195.97 | G76: 194.20 | H76: 193.18 | I76: 191.41 | J76: 196.99 | K76: 198.76 | L76: 199.78 | M76: 197.74 | N76: 194.95 | O76: 90390000 | P76: 1.92%
A77: 67 | B77: Oil_Gas | C77: GAIL | D77: 2024-09-26 | E77: 233.57 | F77: 234.33 | G77: 231.74 | H77: 229.90 | I77: 227.31 | J77: 236.17 | K77: 238.76 | L77: 240.60 | M77: 236.93 | N77: 232.5 | O77: 109671900 | P77: 0.31%
A78: 68 | B78: Pharma | C78: GLENMARK | D78: 2024-09-26 | E78: 1693.20 | F78: 1699.92 | G78: 1679.38 | H78: 1665.57 | I78: 1645.03 | J78: 1713.73 | K78: 1734.27 | L78: 1748.08 | M78: 1720.45 | N78: 1686.1 | O78: 6111025 | P78: 2.26%
A79: 69 | B79: Infrastructure | C79: GMRINFRA | D79: 2024-09-26 | E79: 94.54 | F79: 94.34 | G79: 93.87 | H79: 93.21 | I79: 92.74 | J79: 95.00 | K79: 95.47 | L79: 96.13 | M79: 94.8 | N79: 93.67 | O79: 304256250 | P79: -1.18%
A80: 70 | B80: Chemicals | C80: GNFC | D80: 2024-09-26 | E80: 688.70 | F80: 692.37 | G80: 683.73 | H80: 678.77 | I80: 670.13 | J80: 697.33 | K80: 705.97 | L80: 710.93 | M80: 701 | N80: 687.4 | O80: 7261800 | P80: 0.27%
A81: 71 | B81: FMCG | C81: GODREJCP | D81: 2024-09-26 | E81: 1469.25 | F81: 1474.73 | G81: 1461.17 | H81: 1453.08 | I81: 1439.52 | J81: 1482.82 | K81: 1496.38 | L81: 1504.47 | M81: 1488.3 | N81: 1466.65 | O81: 8315000 | P81: 2.43%
A82: 72 | B82: Realty | C82: GODREJPROP | D82: 2024-09-26 | E82: 2909.50 | F82: 2921.83 | G82: 2882.82 | H82: 2856.13 | I82: 2817.12 | J82: 2948.52 | K82: 2987.53 | L82: 3014.22 | M82: 2960.85 | N82: 2895.15 | O82: 5855175 | P82: 0.47%
A83: 73 | B83: Pharma | C83: GRANULES | D83: 2024-09-26 | E83: 688.25 | F83: 689.50 | G83: 681.75 | H83: 675.25 | I83: 667.50 | J83: 696.00 | K83: 703.75 | L83: 710.25 | M83: 697.25 | N83: 683 | O83: 7126000 | P83: -0.25%
A84: 74 | B84: Cement | C84: GRASIM | D84: 2024-09-26 | E84: 2717.00 | F84: 2713.78 | G84: 2702.57 | H84: 2688.13 | I84: 2676.92 | J84: 2728.22 | K84: 2739.43 | L84: 2753.87 | M84: 2725 | N84: 2699.35 | O84: 7699250 | P84: 0.47%
A85: 75 | B85: Oil_Gas | C85: GUJGASLTD | D85: 2024-09-26 | E85: 668.25 | F85: 666.65 | G85: 659.70 | H85: 651.15 | I85: 644.20 | J85: 675.20 | K85: 682.15 | L85: 690.70 | M85: 673.6 | N85: 658.1 | O85: 10237500 | P85: -0.76%
A86: 76 | B86: Capital_Goods | C86: HAL | D86: 2024-09-26 | E86: 4849.00 | F86: 4864.60 | G86: 4799.40 | H86: 4749.80 | I86: 4684.60 | J86: 4914.20 | K86: 4979.40 | L86: 5029.00 | M86: 4929.8 | N86: 4815 | O86: 12586800 | P86: -3.68%
A87: 77 | B87: Capital_Goods | C87: HAVELLS | D87: 2024-09-26 | E87: 1910.75 | F87: 1908.33 | G87: 1894.72 | H87: 1878.68 | I87: 1865.07 | J87: 1924.37 | K87: 1937.98 | L87: 1954.02 | M87: 1921.95 | N87: 1892.3 | O87: 8489000 | P87: -1.04%
A88: 78 | B88: Technology | C88: HCLTECH | D88: 2024-09-26 | E88: 1798.00 | F88: 1803.93 | G88: 1789.07 | H88: 1780.13 | I88: 1765.27 | J88: 1812.87 | K88: 1827.73 | L88: 1836.67 | M88: 1818.8 | N88: 1795 | O88: 15328950 | P88: -2.27%
A89: 79 | B89: Finance | C89: HDFCAMC | D89: 2024-09-26 | E89: 4477.65 | F89: 4451.58 | G89: 4413.07 | H89: 4348.48 | I89: 4309.97 | J89: 4516.17 | K89: 4554.68 | L89: 4619.27 | M89: 4490.1 | N89: 4387 | O89: 2844900 | P89: -0.27%
A90: 80 | B90: Banking | C90: HDFCBANK | D90: 2024-09-26 | E90: 1642.20 | F90: 1639.27 | G90: 1633.88 | H90: 1625.57 | I90: 1620.18 | J90: 1647.58 | K90: 1652.97 | L90: 1661.28 | M90: 1644.65 | N90: 1630.95 | O90: 164533050 | P90: -3.13%
A91: 81 | B91: Finance | C91: HDFCLIFE | D91: 2024-09-26 | E91: 760.85 | F91: 756.37 | G91: 749.28 | H91: 737.72 | I91: 730.63 | J91: 767.93 | K91: 775.02 | L91: 786.58 | M91: 763.45 | N91: 744.8 | O91: 24392500 | P91: 1.30%
A92: 82 | B92: Automobile | C92: HEROMOTOCO | D92: 2024-09-26 | E92: 5664.25 | F92: 5655.05 | G92: 5587.40 | H92: 5510.55 | I92: 5442.90 | J92: 5731.90 | K92: 5799.55 | L92: 5876.40 | M92: 5722.7 | N92: 5578.2 | O92: 4209750 | P92: 1.30%
A93: 83 | B93: Metals | C93: HINDALCO | D93: 2024-09-26 | E93: 682.65 | F93: 686.85 | G93: 677.30 | H93: 671.95 | I93: 662.40 | J93: 692.20 | K93: 701.75 | L93: 707.10 | M93: 696.4 | N93: 681.5 | O93: 40772200 | P93: 4.70%
A94: 84 | B94: Metals | C94: HINDCOPPER | D94: 2024-09-26 | E94: 320.20 | F94: 320.95 | G94: 318.90 | H94: 317.60 | I94: 315.55 | J94: 322.25 | K94: 324.30 | L94: 325.60 | M94: 323 | N94: 319.65 | O94: 44244400 | P94: -2.35%
A95: 85 | B95: Oil_Gas | C95: HINDPETRO | D95: 2024-09-26 | E95: 427.45 | F95: 428.55 | G95: 425.10 | H95: 422.75 | I95: 419.30 | J95: 430.90 | K95: 434.35 | L95: 436.70 | M95: 432 | N95: 426.2 | O95: 62965350 | P95: 0.01%
A96: 86 | B96: FMCG | C96: HINDUNILVR | D96: 2024-09-26 | E96: 2810.90 | F96: 2811.62 | G96: 2783.73 | H96: 2756.57 | I96: 2728.68 | J96: 2838.78 | K96: 2866.67 | L96: 2893.83 | M96: 2839.5 | N96: 2784.45 | O96: 14118000 | P96: 0.78%
A97: 87 | B97: Banking | C97: ICICIBANK | D97: 2024-09-26 | E97: 1250.10 | F97: 1243.62 | G97: 1234.23 | H97: 1218.37 | I97: 1208.98 | J97: 1259.48 | K97: 1268.87 | L97: 1284.73 | M97: 1253 | N97: 1227.75 | O97: 76142500 | P97: -3.18%
A98: 88 | B98: Finance | C98: ICICIGI | D98: 2024-09-26 | E98: 2214.45 | F98: 2200.20 | G98: 2175.85 | H98: 2137.25 | I98: 2112.90 | J98: 2238.80 | K98: 2263.15 | L98: 2301.75 | M98: 2224.55 | N98: 2161.6 | O98: 5073000 | P98: 6.50%
A99: 89 | B99: Finance | C99: ICICIPRULI | D99: 2024-09-26 | E99: 765.55 | F99: 761.03 | G99: 754.52 | H99: 743.48 | I99: 736.97 | J99: 772.07 | K99: 778.58 | L99: 789.62 | M99: 767.55 | N99: 750 | O99: 13176000 | P99: 0.97%
A100: 90 | B100: Telecom | C100: IDEA | D100: 2024-09-26 | E100: 15.17 | F100: 15.19 | G100: 15.06 | H100: 14.94 | I100: 14.81 | J100: 15.31 | K100: 15.44 | L100: 15.56 | M100: 15.33 | N100: 15.08 | O100: 4774480000 | P100: -0.22%
A101: 91 | B101: Finance | C101: IDFC | D101: 2024-09-26 | E101: 114.44 | F101: 114.35 | G101: 113.95 | H101: 113.46 | I101: 113.06 | J101: 114.84 | K101: 115.24 | L101: 115.73 | M101: 114.75 | N101: 113.86 | O101: 109345000 | P101: -3.04%
A102: 92 | B102: Banking | C102: IDFCFIRSTB | D102: 2024-09-26 | E102: 74.97 | F102: 75.16 | G102: 74.70 | H102: 74.42 | I102: 73.96 | J102: 75.44 | K102: 75.90 | L102: 76.18 | M102: 75.63 | N102: 74.89 | O102: 471952500 | P102: -0.09%
A103: 93 | B103: Power | C103: IEX | D103: 2024-09-26 | E103: 206.90 | F103: 206.55 | G103: 204.48 | H103: 202.06 | I103: 199.99 | J103: 208.97 | K103: 211.04 | L103: 213.46 | M103: 208.62 | N103: 204.13 | O103: 71152500 | P103: 0.59%
A104: 94 | B104: Oil_Gas | C104: IGL | D104: 2024-09-26 | E104: 552.05 | F104: 549.15 | G104: 544.40 | H104: 536.75 | I104: 532.00 | J104: 556.80 | K104: 561.55 | L104: 569.20 | M104: 553.9 | N104: 541.5 | O104: 13002000 | P104: -1.43%
A105: 95 | B105: Infrastructure | C105: INDHOTEL | D105: 2024-09-26 | E105: 662.90 | F105: 662.67 | G105: 658.48 | H105: 654.07 | I105: 649.88 | J105: 667.08 | K105: 671.27 | L105: 675.68 | M105: 666.85 | N105: 658.25 | O105: 20105000 | P105: -1.07%
A106: 96 | B106: Cement | C106: INDIACEM
A107: 97 | B107: FMCG | C107: INDIAMART | D107: 2024-09-26 | E107: 3034.95 | F107: 3024.20 | G107: 2981.65 | H107: 2928.35 | I107: 2885.80 | J107: 3077.50 | K107: 3120.05 | L107: 3173.35 | M107: 3066.75 | N107: 2970.9 | O107: 1031100 | P107: -0.69%
A108: 98 | B108: Infrastructure | C108: INDIGO | D108: 2024-09-26 | E108: 4830.15 | F108: 4826.53 | G108: 4801.07 | H108: 4771.98 | I108: 4746.52 | J108: 4855.62 | K108: 4881.08 | L108: 4910.17 | M108: 4852 | N108: 4797.45 | O108: 9894300 | P108: -0.09%
A109: 99 | B109: Banking | C109: INDUSINDBK | D109: 2024-09-26 | E109: 1443.35 | F109: 1447.18 | G109: 1436.67 | H109: 1429.98 | I109: 1419.47 | J109: 1453.87 | K109: 1464.38 | L109: 1471.07 | M109: 1457.7 | N109: 1440.5 | O109: 32801000 | P109: 0.93%
A110: 100 | B110: Telecom | C110: INDUSTOWER | D110: 2024-09-26 | E110: 443.90 | F110: 443.63 | G110: 440.62 | H110: 437.33 | I110: 434.32 | J110: 446.92 | K110: 449.93 | L110: 453.22 | M110: 446.65 | N110: 440.35 | O110: 77588000 | P110: -2.40%
A111: 101 | B111: Technology | C111: INFY | D111: 2024-09-26 | E111: 1952.75 | F111: 1958.50 | G111: 1942.00 | H111: 1931.25 | I111: 1914.75 | J111: 1969.25 | K111: 1985.75 | L111: 1996.50 | M111: 1975 | N111: 1947.75 | O111: 42949200 | P111: 0.42%
A112: 102 | B112: Oil_Gas | C112: IOC | D112: 2024-09-26 | E112: 176.70 | F112: 177.64 | G112: 175.42 | H112: 174.15 | I112: 171.93 | J112: 178.91 | K112: 181.13 | L112: 182.40 | M112: 179.85 | N112: 176.36 | O112: 189705750 | P112: 0.31%
A113: 103 | B113: Pharma | C113: IPCALAB | D113: 2024-09-26 | E113: 1404.65 | F113: 1401.80 | G113: 1389.30 | H113: 1373.95 | I113: 1361.45 | J113: 1417.15 | K113: 1429.65 | L113: 1445.00 | M113: 1414.3 | N113: 1386.45 | O113: 2779400 | P113: 8.25%
A114: 104 | B114: Infrastructure | C114: IRCTC | D114: 2024-09-26 | E114: 947.45 | F114: 947.38 | G114: 942.07 | H114: 936.68 | I114: 931.37 | J114: 952.77 | K114: 958.08 | L114: 963.47 | M114: 952.7 | N114: 942 | O114: 21800625 | P114: -0.60%
A115: 105 | B115: FMCG | C115: ITC | D115: 2024-09-26 | E115: 511.70 | F115: 513.15 | G115: 508.80 | H115: 505.90 | I115: 501.55 | J115: 516.05 | K115: 520.40 | L115: 523.30 | M115: 517.5 | N115: 510.25 | O115: 118108800 | P115: 2.04%
A116: 106 | B116: Metals | C116: JINDALSTEL | D116: 2024-09-26 | E116: 953.50 | F116: 958.68 | G116: 946.52 | H116: 939.53 | I116: 927.37 | J116: 965.67 | K116: 977.83 | L116: 984.82 | M116: 970.85 | N116: 951.7 | O116: 13785000 | P116: 1.63%
A117: 107 | B117: Cement | C117: JKCEMENT | D117: 2024-09-26 | E117: 4561.25 | F117: 4535.25 | G117: 4480.00 | H117: 4398.75 | I117: 4343.50 | J117: 4616.50 | K117: 4671.75 | L117: 4753.00 | M117: 4590.5 | N117: 4454 | O117: 724125 | P117: 26.46%
A118: 108 | B118: Metals | C118: JSWSTEEL | D118: 2024-09-26 | E118: 934.45 | F118: 937.80 | G118: 930.00 | H118: 925.55 | I118: 917.75 | J118: 942.25 | K118: 950.05 | L118: 954.50 | M118: 945.6 | N118: 933.35 | O118: 20393775 | P118: -0.89%
A119: 109 | B119: FMCG | C119: JUBLFOOD | D119: 2024-09-26 | E119: 657.85 | F119: 656.47 | G119: 654.18 | H119: 650.52 | I119: 648.23 | J119: 660.13 | K119: 662.42 | L119: 666.08 | M119: 658.75 | N119: 652.8 | O119: 17390000 | P119: -1.33%
A120: 110 | B120: Banking | C120: KOTAKBANK | D120: 2024-09-26 | E120: 1789.65 | F120: 1788.93 | G120: 1783.32 | H120: 1776.98 | I120: 1771.37 | J120: 1795.27 | K120: 1800.88 | L120: 1807.22 | M120: 1794.55 | N120: 1782.6 | O120: 38034400 | P120: 1.56%
A121: 111 | B121: Finance | C121: LTF | D121: 2024-09-26 | E121: 173.32 | F121: 173.10 | G121: 171.71 | H121: 170.10 | I121: 168.71 | J121: 174.71 | K121: 176.10 | L121: 177.71 | M121: 174.49 | N121: 171.49 | O121: 87245486 | P121: -2.09%
A122: 112 | B122: Pharma | C122: LALPATHLAB | D122: 2024-09-26 | E122: 3379.25 | F122: 3397.32 | G122: 3353.43 | H122: 3327.62 | I122: 3283.73 | J122: 3423.13 | K122: 3467.02 | L122: 3492.83 | M122: 3441.2 | N122: 3371.5 | O122: 1111500 | P122: -5.58%
A123: 113 | B123: Pharma | C123: LAURUSLABS | D123: 2024-09-26 | E123: 471.60 | F123: 470.35 | G123: 465.40 | H123: 459.20 | I123: 454.25 | J123: 476.55 | K123: 481.50 | L123: 487.70 | M123: 475.3 | N123: 464.15 | O123: 24053300 | P123: -1.32%
A124: 114 | B124: Finance | C124: LICHSGFIN | D124: 2024-09-26 | E124: 696.45 | F124: 691.62 | G124: 685.23 | H124: 674.02 | I124: 667.63 | J124: 702.83 | K124: 709.22 | L124: 720.43 | M124: 698 | N124: 680.4 | O124: 30289000 | P124: 1.01%
A125: 115 | B125: Capital_Goods | C125: LT | D125: 2024-09-26 | E125: 3711.55 | F125: 3709.83 | G125: 3683.72 | H125: 3655.88 | I125: 3629.77 | J125: 3737.67 | K125: 3763.78 | L125: 3791.62 | M125: 3735.95 | N125: 3682 | O125: 18810300 | P125: 0.10%
A126: 116 | B126: Technology | C126: LTIM | D126: 2024-09-26 | E126: 6177.60 | F126: 6171.85 | G126: 6125.75 | H126: 6073.90 | I126: 6027.80 | J126: 6223.70 | K126: 6269.80 | L126: 6321.65 | M126: 6217.95 | N126: 6120 | O126: 2868300 | P126: -0.60%
A127: 117 | B127: Technology | C127: LTTS | D127: 2024-09-26 | E127: 5757.95 | F127: 5743.68 | G127: 5694.37 | H127: 5630.78 | I127: 5581.47 | J127: 5807.27 | K127: 5856.58 | L127: 5920.17 | M127: 5793 | N127: 5680.1 | O127: 1121500 | P127: -1.45%
A128: 118 | B128: Pharma | C128: LUPIN | D128: 2024-09-26 | E128: 2253.05 | F128: 2259.80 | G128: 2239.70 | H128: 2226.35 | I128: 2206.25 | J128: 2273.15 | K128: 2293.25 | L128: 2306.60 | M128: 2279.9 | N128: 2246.45 | O128: 12829050 | P128: 1.79%
A129: 119 | B129: Automobile | C129: M&M | D129: 2024-09-26 | E129: 2800.00 | F129: 2800.02 | G129: 2785.43 | H129: 2770.87 | I129: 2756.28 | J129: 2814.58 | K129: 2829.17 | L129: 2843.73 | M129: 2814.6 | N129: 2785.45 | O129: 14919800 | P129: -1.25%
A130: 120 | B130: Finance | C130: M&MFIN | D130: 2024-09-26 | E130: 323.90 | F130: 325.50 | G130: 319.70 | H130: 315.50 | I130: 309.70 | J130: 329.70 | K130: 335.50 | L130: 339.70 | M130: 331.3 | N130: 321.3 | O130: 37990000 | P130: 5.80%
A131: 121 | B131: Finance | C131: MANAPPURAM | D131: 2024-09-26 | E131: 214.34 | F131: 214.97 | G131: 212.68 | H131: 211.02 | I131: 208.73 | J131: 216.63 | K131: 218.92 | L131: 220.58 | M131: 217.26 | N131: 213.31 | O131: 60567000 | P131: -0.48%
A132: 122 | B132: FMCG | C132: MARICO | D132: 2024-09-26 | E132: 643.65 | F132: 647.67 | G132: 638.93 | H132: 634.22 | I132: 625.48 | J132: 652.38 | K132: 661.12 | L132: 665.83 | M132: 656.4 | N132: 642.95 | O132: 15240000 | P132: 2.73%
A133: 123 | B133: Automobile | C133: MARUTI | D133: 2024-09-26 | E133: 12433.85 | F133: 12455.53 | G133: 12383.37 | H133: 12332.88 | I133: 12260.72 | J133: 12506.02 | K133: 12578.18 | L133: 12628.67 | M133: 12527.7 | N133: 12405.05 | O133: 3434450 | P133: -0.40%
A134: 124 | B134: FMCG | C134: UNITDSPR | D134: 2024-09-26 | E134: 1487.10 | F134: 1493.03 | G134: 1478.07 | H134: 1469.03 | I134: 1454.07 | J134: 1502.07 | K134: 1517.03 | L134: 1526.07 | M134: 1508 | N134: 1484 | O134: 9976400 | P134: 0.56%
A135: 125 | B135: Technology | C135: MCX | D135: 2024-09-26 | E135: 5229.80 | F135: 5207.33 | G135: 5169.67 | H135: 5109.53 | I135: 5071.87 | J135: 5267.47 | K135: 5305.13 | L135: 5365.27 | M135: 5245 | N135: 5147.2 | O135: 2100600 | P135: 2.40%
A136: 126 | B136: Pharma | C136: METROPOLIS | D136: 2024-09-26 | E136: 2116.45 | F136: 2127.98 | G136: 2100.47 | H136: 2084.48 | I136: 2056.97 | J136: 2143.97 | K136: 2171.48 | L136: 2187.47 | M136: 2155.5 | N136: 2112 | O136: 1535600 | P136: 0.66%
A137: 127 | B137: Finance | C137: MFSL | D137: 2024-09-26 | E137: 1134.90 | F137: 1127.62 | G137: 1115.28 | H137: 1095.67 | I137: 1083.33 | J137: 1147.23 | K137: 1159.57 | L137: 1179.18 | M137: 1139.95 | N137: 1108 | O137: 5468800 | P137: 3.78%
A138: 128 | B138: Oil_Gas | C138: MGL | D138: 2024-09-26 | E138: 1836.70 | F138: 1827.53 | G138: 1814.07 | H138: 1791.43 | I138: 1777.97 | J138: 1850.17 | K138: 1863.63 | L138: 1886.27 | M138: 1841 | N138: 1804.9 | O138: 1542000 | P138: -5.14%
A139: 129 | B139: Automobile | C139: MOTHERSON | D139: 2024-09-26 | E139: 193.90 | F139: 193.76 | G139: 191.86 | H139: 189.81 | I139: 187.91 | J139: 195.81 | K139: 197.71 | L139: 199.76 | M139: 195.67 | N139: 191.72 | O139: 115346600 | P139: 4.73%
A140: 130 | B140: Technology | C140: MPHASIS | D140: 2024-09-26 | E140: 3143.50 | F140: 3141.62 | G140: 3103.23 | H140: 3062.97 | I140: 3024.58 | J140: 3181.88 | K140: 3220.27 | L140: 3260.53 | M140: 3180 | N140: 3101.35 | O140: 3750725 | P140: 0.49%
A141: 131 | B141: Automobile | C141: MRF | D141: 2024-09-26 | E141: 135216.40 | F141: 135064.87 | G141: 134652.78 | H141: 134089.17 | I141: 133677.08 | J141: 135628.48 | K141: 136040.57 | L141: 136604.18 | M141: 135476.95 | N141: 134501.25 | O141: 72515 | P141: -0.22%
A142: 132 | B142: Finance | C142: MUTHOOTFIN | D142: 2024-09-26 | E142: 1987.95 | F142: 1977.68 | G142: 1960.37 | H142: 1932.78 | I142: 1915.47 | J142: 2005.27 | K142: 2022.58 | L142: 2050.17 | M142: 1995 | N142: 1950.1 | O142: 3617900 | P142: -5.01%
A143: 133 | B143: Metals | C143: NATIONALUM | D143: 2024-09-26 | E143: 177.17 | F143: 177.62 | G143: 176.17 | H143: 175.18 | I143: 173.73 | J143: 178.61 | K143: 180.06 | L143: 181.05 | M143: 179.06 | N143: 176.62 | O143: 79822500 | P143: 1.15%
A144: 134 | B144: Technology | C144: NAUKRI | D144: 2024-09-26 | E144: 7487.10 | F144: 7540.70 | G144: 7421.40 | H144: 7355.70 | I144: 7236.40 | J144: 7606.40 | K144: 7725.70 | L144: 7791.40 | M144: 7660 | N144: 7475 | O144: 1494600 | P144: -1.66%
A145: 135 | B145: Chemicals | C145: NAVINFLUOR | D145: 2024-09-26 | E145: 3348.15 | F145: 3342.72 | G145: 3320.43 | H145: 3292.72 | I145: 3270.43 | J145: 3370.43 | K145: 3392.72 | L145: 3420.43 | M145: 3365 | N145: 3315 | O145: 2508625 | P145: -1.90%
A146: 136 | B146: FMCG | C146: NESTLEIND | D146: 2024-09-26 | E146: 2545.00 | F146: 2544.95 | G146: 2519.25 | H146: 2493.50 | I146: 2467.80 | J146: 2570.70 | K146: 2596.40 | L146: 2622.15 | M146: 2570.65 | N146: 2519.2 | O146: 7050200 | P146: -2.34%
A147: 137 | B147: Metals | C147: NMDC | D147: 2024-09-26 | E147: 214.69 | F147: 215.25 | G147: 212.69 | H147: 210.70 | I147: 208.14 | J147: 217.24 | K147: 219.80 | L147: 221.79 | M147: 217.8 | N147: 213.25 | O147: 106128000 | P147: 4.44%
A148: 138 | B148: Power | C148: NTPC | D148: 2024-09-26 | E148: 408.70 | F148: 410.07 | G148: 406.53 | H148: 404.37 | I148: 400.83 | J148: 412.23 | K148: 415.77 | L148: 417.93 | M148: 413.6 | N148: 407.9 | O148: 99946500 | P148: 3.63%
A149: 139 | B149: Realty | C149: OBEROIRLTY | D149: 2024-09-26 | E149: 1773.65 | F149: 1776.62 | G149: 1758.18 | H149: 1742.72 | I149: 1724.28 | J149: 1792.08 | K149: 1810.52 | L149: 1825.98 | M149: 1795.05 | N149: 1761.15 | O149: 7983500 | P149: -2.75%
A150: 140 | B150: Technology | C150: OFSS | D150: 2024-09-26 | E150: 11500.00 | F150: 11365.13 | G150: 11093.32 | H150: 10686.63 | I150: 10414.82 | J150: 11771.82 | K150: 12043.63 | L150: 12450.32 | M150: 11636.95 | N150: 10958.45 | O150: 1320600 | P150: 5.80%
A151: 141 | B151: Oil_Gas | C151: ONGC | D151: 2024-09-26 | E151: 323.65 | F151: 325.47 | G151: 321.18 | H151: 318.72 | I151: 314.43 | J151: 327.93 | K151: 332.22 | L151: 334.68 | M151: 329.75 | N151: 323 | O151: 128116450 | P151: 2.58%
A152: 142 | B152: Textile | C152: PAGEIND | D152: 2024-09-26 | E152: 42178.75 | F152: 42107.57 | G152: 41837.88 | H152: 41497.02 | I152: 41227.33 | J152: 42448.43 | K152: 42718.12 | L152: 43058.98 | M152: 42377.25 | N152: 41766.7 | O152: 181170 | P152: -1.34%
A153: 143 | B153: Pharma | C153: PEL | D153: 2024-09-26 | E153: 1068.65 | F153: 1073.62 | G153: 1059.13 | H153: 1049.62 | I153: 1035.13 | J153: 1083.13 | K153: 1097.62 | L153: 1107.13 | M153: 1088.1 | N153: 1064.1 | O153: 9165000 | P153: 0.78%
A154: 144 | B154: Technology | C154: PERSISTENT | D154: 2024-09-26 | E154: 5309.05 | F154: 5285.92 | G154: 5227.33 | H154: 5145.62 | I154: 5087.03 | J154: 5367.63 | K154: 5426.22 | L154: 5507.93 | M154: 5344.5 | N154: 5204.2 | O154: 2116800 | P154: 1.91%
A155: 145 | B155: Oil_Gas | C155: PETRONET | D155: 2024-09-26 | E155: 361.95 | F155: 363.43 | G155: 359.82 | H155: 357.68 | I155: 354.07 | J155: 365.57 | K155: 369.18 | L155: 371.32 | M155: 367.05 | N155: 361.3 | O155: 31974000 | P155: 2.84%
A156: 146 | B156: Finance | C156: PFC | D156: 2024-09-26 | E156: 561.75 | F156: 556.75 | G156: 548.50 | H156: 535.25 | I156: 527.00 | J156: 570.00 | K156: 578.25 | L156: 591.50 | M156: 565 | N156: 543.5 | O156: 47634600 | P156: 1.63%
A157: 147 | B157: FMCG | C157: PIDILITIND | D157: 2024-09-26 | E157: 3190.25 | F157: 3203.20 | G157: 3169.40 | H157: 3148.55 | I157: 3114.75 | J157: 3224.05 | K157: 3257.85 | L157: 3278.70 | M157: 3237 | N157: 3182.35 | O157: 2826500 | P157: 3.18%
A158: 148 | B158: Chemicals | C158: PIIND | D158: 2024-09-26 | E158: 4565.95 | F158: 4589.40 | G158: 4528.80 | H158: 4491.65 | I158: 4431.05 | J158: 4626.55 | K158: 4687.15 | L158: 4724.30 | M158: 4650 | N158: 4552.25 | O158: 1731750 | P158: 3.73%
A159: 149 | B159: Banking | C159: PNB | D159: 2024-09-26 | E159: 116.01 | F159: 116.49 | G159: 115.28 | H159: 114.55 | I159: 113.34 | J159: 117.22 | K159: 118.43 | L159: 119.16 | M159: 117.7 | N159: 115.76 | O159: 279104000 | P159: 1.36%
A160: 150 | B160: Capital_Goods | C160: POLYCAB | D160: 2024-09-26 | E160: 6806.25 | F160: 6787.45 | G160: 6742.90 | H160: 6679.55 | I160: 6635.00 | J160: 6850.80 | K160: 6895.35 | L160: 6958.70 | M160: 6832 | N160: 6724.1 | O160: 2679000 | P160: -0.38%
A161: 151 | B161: Power | C161: POWERGRID | D161: 2024-09-26 | E161: 336.25 | F161: 337.10 | G161: 334.85 | H161: 333.45 | I161: 331.20 | J161: 338.50 | K161: 340.75 | L161: 342.15 | M161: 339.35 | N161: 335.7 | O161: 81198000 | P161: -1.35%
A162: 152 | B162: Media | C162: PVRINOX | D162: 2024-09-26 | E162: 1519.75 | F162: 1518.80 | G162: 1510.85 | H162: 1501.95 | I162: 1494.00 | J162: 1527.70 | K162: 1535.65 | L162: 1544.55 | M162: 1526.75 | N162: 1509.9 | O162: 4043952 | P162: 1.34%
A163: 153 | B163: Cement | C163: RAMCOCEM | D163: 2024-09-26 | E163: 838.05 | F163: 838.92 | G163: 834.18 | H163: 830.32 | I163: 825.58 | J163: 842.78 | K163: 847.52 | L163: 851.38 | M163: 843.65 | N163: 835.05 | O163: 11011750 | P163: -0.03%
A164: 154 | B164: Banking | C164: RBLBANK | D164: 2024-09-26 | E164: 227.34 | F164: 227.89 | G164: 225.95 | H164: 224.55 | I164: 222.61 | J164: 229.29 | K164: 231.23 | L164: 232.63 | M164: 229.84 | N164: 226.5 | O164: 78997500 | P164: 0.95%
A165: 155 | B165: Finance | C165: RECLTD | D165: 2024-09-26 | E165: 631.65 | F165: 626.98 | G165: 620.97 | H165: 610.28 | I165: 604.27 | J165: 637.67 | K165: 643.68 | L165: 654.37 | M165: 633 | N165: 616.3 | O165: 50056000 | P165: 0.33%
A166: 156 | B166: Oil_Gas | C166: RELIANCE | D166: 2024-09-26 | E166: 3035.05 | F166: 3039.82 | G166: 3025.33 | H166: 3015.62 | I166: 3001.13 | J166: 3049.53 | K166: 3064.02 | L166: 3073.73 | M166: 3054.3 | N166: 3030.1 | O166: 51643500 | P166: 0.21%
A167: 157 | B167: Metals | C167: SAIL | D167: 2024-09-26 | E167: 131.14 | F167: 131.61 | G167: 130.22 | H167: 129.30 | I167: 127.91 | J167: 132.53 | K167: 133.92 | L167: 134.84 | M167: 133 | N167: 130.69 | O167: 151540000 | P167: 0.28%
A168: 158 | B168: Finance | C168: SBICARD | D168: 2024-09-26 | E168: 767.25 | F168: 764.00 | G168: 748.30 | H168: 729.35 | I168: 713.65 | J168: 782.95 | K168: 798.65 | L168: 817.60 | M168: 779.7 | N168: 745.05 | O168: 19940800 | P168: 1.02%
A169: 159 | B169: Finance | C169: SBILIFE | D169: 2024-09-26 | E169: 1932.00 | F169: 1919.05 | G169: 1899.50 | H169: 1867.00 | I169: 1847.45 | J169: 1951.55 | K169: 1971.10 | L169: 2003.60 | M169: 1938.6 | N169: 1886.55 | O169: 7582500 | P169: 22.66%
A170: 160 | B170: Banking | C170: SBIN | D170: 2024-09-26 | E170: 827.35 | F170: 825.80 | G170: 822.75 | H170: 818.15 | I170: 815.10 | J170: 830.40 | K170: 833.45 | L170: 838.05 | M170: 828.85 | N170: 821.2 | O170: 94281000 | P170: -1.50%
A171: 161 | B171: Cement | C171: SHREECEM | D171: 2024-09-26 | E171: 25634.05 | F171: 25620.87 | G171: 25462.68 | H171: 25291.32 | I171: 25133.13 | J171: 25792.23 | K171: 25950.42 | L171: 26121.78 | M171: 25779.05 | N171: 25449.5 | O171: 229650 | P171: -1.25%
A172: 162 | B172: Capital_Goods | C172: SIEMENS | D172: 2024-09-26 | E172: 6805.50 | F172: 6816.00 | G172: 6762.00 | H172: 6718.50 | I172: 6664.50 | J172: 6859.50 | K172: 6913.50 | L172: 6957.00 | M172: 6870 | N172: 6772.5 | O172: 2508600 | P172: 5.87%
A173: 163 | B173: Textile | C173: SRF | D173: 2024-09-26 | E173: 2601.20 | F173: 2606.53 | G173: 2581.42 | H173: 2561.63 | I173: 2536.52 | J173: 2626.32 | K173: 2651.43 | L173: 2671.22 | M173: 2631.65 | N173: 2586.75 | O173: 5610750 | P173: -1.72%
A174: 164 | B174: Finance | C174: SHRIRAMFIN | D174: 2024-09-26 | E174: 3282.00 | F174: 3260.27 | G174: 3226.73 | H174: 3171.47 | I174: 3137.93 | J174: 3315.53 | K174: 3349.07 | L174: 3404.33 | M174: 3293.8 | N174: 3205 | O174: 5698200 | P174: 3.48%
A175: 165 | B175: Pharma | C175: SUNPHARMA | D175: 2024-09-26 | E175: 1817.60 | F175: 1824.83 | G175: 1807.27 | H175: 1796.93 | I175: 1779.37 | J175: 1835.17 | K175: 1852.73 | L175: 1863.07 | M175: 1842.4 | N175: 1814.5 | O175: 13390650 | P175: -2.28%
A176: 166 | B176: Media | C176: SUNTV | D176: 2024-09-26 | E176: 799.60 | F176: 806.47 | G176: 789.68 | H176: 779.77 | I176: 762.98 | J176: 816.38 | K176: 833.17 | L176: 843.08 | M176: 823.25 | N176: 796.55 | O176: 5581500 | P176: -1.74%
A177: 167 | B177: Pharma | C177: SYNGENE | D177: 2024-09-26 | E177: 871.55 | F177: 870.95 | G177: 864.90 | H177: 858.25 | I177: 852.20 | J177: 877.60 | K177: 883.65 | L177: 890.30 | M177: 877 | N177: 864.3 | O177: 5563000 | P177: -0.30%
A178: 168 | B178: Chemicals | C178: TATACHEM | D178: 2024-09-26 | E178: 1112.25 | F178: 1107.23 | G178: 1095.02 | H178: 1077.78 | I178: 1065.57 | J178: 1124.47 | K178: 1136.68 | L178: 1153.92 | M178: 1119.45 | N178: 1090 | O178: 9576600 | P178: 5.93%
A179: 169 | B179: Telecom | C179: TATACOMM | D179: 2024-09-26 | E179: 1988.70 | F179: 1995.58 | G179: 1965.17 | H179: 1941.63 | I179: 1911.22 | J179: 2019.12 | K179: 2049.53 | L179: 2073.07 | M179: 2026 | N179: 1972.05 | O179: 6499500 | P179: 3.35%
A180: 170 | B180: FMCG | C180: TATACONSUM | D180: 2024-09-26 | E180: 1205.65 | F180: 1211.50 | G180: 1197.55 | H180: 1189.45 | I180: 1175.50 | J180: 1219.60 | K180: 1233.55 | L180: 1241.65 | M180: 1225.45 | N180: 1203.4 | O180: 12438768 | P180: 0.22%
A181: 171 | B181: Automobile | C181: TATAMOTORS | D181: 2024-09-26 | E181: 1081.90 | F181: 1085.92 | G181: 1075.48 | H181: 1069.07 | I181: 1058.63 | J181: 1092.33 | K181: 1102.77 | L181: 1109.18 | M181: 1096.35 | N181: 1079.5 | O181: 88857450 | P181: 1.84%
A182: 172 | B182: Power | C182: TATAPOWER | D182: 2024-09-26 | E182: 435.20 | F182: 435.03 | G182: 433.37 | H182: 431.53 | I182: 429.87 | J182: 436.87 | K182: 438.53 | L182: 440.37 | M182: 436.7 | N182: 433.2 | O182: 82020600 | P182: -2.54%
A183: 173 | B183: Metals | C183: TATASTEEL | D183: 2024-09-26 | E183: 152.65 | F183: 153.13 | G183: 152.07 | H183: 151.48 | I183: 150.42 | J183: 153.72 | K183: 154.78 | L183: 155.37 | M183: 154.2 | N183: 152.55 | O183: 288832500 | P183: -0.08%
A184: 174 | B184: Technology | C184: TCS | D184: 2024-09-26 | E184: 4538.20 | F184: 4545.35 | G184: 4509.95 | H184: 4481.70 | I184: 4446.30 | J184: 4573.60 | K184: 4609.00 | L184: 4637.25 | M184: 4580.75 | N184: 4517.1 | O184: 13911450 | P184: 0.36%
A185: 175 | B185: Technology | C185: TECHM | D185: 2024-09-26 | E185: 1651.40 | F185: 1653.37 | G185: 1638.53 | H185: 1625.67 | I185: 1610.83 | J185: 1666.23 | K185: 1681.07 | L185: 1693.93 | M185: 1668.2 | N185: 1640.5 | O185: 12199200 | P185: 0.16%
A186: 176 | B186: FMCG | C186: TITAN | D186: 2024-09-26 | E186: 3639.50 | F186: 3625.35 | G186: 3594.15 | H186: 3548.80 | I186: 3517.60 | J186: 3670.70 | K186: 3701.90 | L186: 3747.25 | M186: 3656.55 | N186: 3580 | O186: 8899800 | P186: -1.55%
A187: 177 | B187: Pharma | C187: TORNTPHARM | D187: 2024-09-26 | E187: 3444.45 | F187: 3459.47 | G187: 3410.63 | H187: 3376.82 | I187: 3327.98 | J187: 3493.28 | K187: 3542.12 | L187: 3575.93 | M187: 3508.3 | N187: 3425.65 | O187: 1835750 | P187: -0.53%
A188: 178 | B188: Textile | C188: TRENT | D188: 2024-09-26 | E188: 7077.90 | F188: 7109.82 | G188: 7005.63 | H188: 6933.37 | I188: 6829.18 | J188: 7182.08 | K188: 7286.27 | L188: 7358.53 | M188: 7214 | N188: 7037.55 | O188: 3331600 | P188: 4.23%
A189: 179 | B189: Automobile | C189: TVSMOTOR | D189: 2024-09-26 | E189: 2798.60 | F189: 2802.78 | G189: 2788.62 | H189: 2778.63 | I189: 2764.47 | J189: 2812.77 | K189: 2826.93 | L189: 2836.92 | M189: 2816.95 | N189: 2792.8 | O189: 7323400 | P189: 5.11%
A190: 180 | B190: FMCG | C190: UBL | D190: 2024-09-26 | E190: 2027.40 | F190: 2035.43 | G190: 2012.42 | H190: 1997.43 | I190: 1974.42 | J190: 2050.42 | K190: 2073.43 | L190: 2088.42 | M190: 2058.45 | N190: 2020.45 | O190: 1838000 | P190: 4.57%
A191: 181 | B191: Cement | C191: ULTRACEMCO | D191: 2024-09-26 | E191: 11511.55 | F191: 11490.93 | G191: 11423.67 | H191: 11335.78 | I191: 11268.52 | J191: 11578.82 | K191: 11646.08 | L191: 11733.97 | M191: 11558.2 | N191: 11403.05 | O191: 2224200 | P191: 0.54%
A192: 182 | B192: Chemicals | C192: UPL | D192: 2024-09-26 | E192: 605.60 | F192: 605.15 | G192: 600.45 | H192: 595.30 | I192: 590.60 | J192: 610.30 | K192: 615.00 | L192: 620.15 | M192: 609.85 | N192: 600 | O192: 38131600 | P192: 0.45%
A193: 183 | B193: Metals | C193: VEDL | D193: 2024-09-26 | E193: 466.20 | F193: 467.60 | G193: 462.60 | H193: 459.00 | I193: 454.00 | J193: 471.20 | K193: 476.20 | L193: 479.80 | M193: 472.6 | N193: 464 | O193: 135401000 | P193: -2.61%
A194: 184 | B194: Capital_Goods | C194: VOLTAS | D194: 2024-09-26 | E194: 1800.50 | F194: 1796.32 | G194: 1776.73 | H194: 1752.97 | I194: 1733.38 | J194: 1820.08 | K194: 1839.67 | L194: 1863.43 | M194: 1815.9 | N194: 1772.55 | O194: 8751600 | P194: 2.21%
A195: 185 | B195: Technology | C195: WIPRO | D195: 2024-09-26 | E195: 537.95 | F195: 538.00 | G195: 532.55 | H195: 527.15 | I195: 521.70 | J195: 543.40 | K195: 548.85 | L195: 554.25 | M195: 543.45 | N195: 532.6 | O195: 51442500 | P195: -0.68%
A196: 186 | B196: Pharma | C196: ZYDUSLIFE | D196: 2024-09-26 | E196: 1117.20 | F196: 1120.18 | G196: 1112.42 | H196: 1107.63 | I196: 1099.87 | J196: 1124.97 | K196: 1132.73 | L196: 1137.52 | M196: 1127.95 | N196: 1115.4 | O196: 18292500 | P196: 0.28%
A210: Pivot Point: This is trigger point for intra day buy/sell based on the price range of the previous day
A211: As per the tool,the trader should take BUY position just above Pivot and keep the stop loss of pivot point and the first target would be Resistance 1(R1)
A212: If R1 is crossed then R2 becomes the next target with stop loss of at R1
A213: Similarly if price goes below pivot point then the trader should sell and keep a stop loss of pivot point and the first target would be S1
A214: If S1 is crossed then S2 becomes the next target with stop loss of at S1
A216: Disclaimer:
A217: This document has been prepared by the Retail Research Desk of Asit C Mehta
A218: Investment Intermediates Ltd. and is meant for use of the recipient only
A219: and is not for circulation. This document is not to be reported or
A220: copied or made available to others. It should not be considered to be
... 5 more rows

Sheet Cash Intra
M5: Back to Main Page
A6: FOR INTRA DAY TRADING | K6: =Main!B10 -> 2024-09-04
A8: Sr.no | C8: CLOSE RATE | D8: Pivot Point | E8: Supports | H8: Resistances
E9: S1 | F9: S2 | G9: S3 | H9: R1 | I9: R2 | J9: R3 | K9: HIGH | L9: LOW | M9: Total Trade Quanity in Lakhs
A10: 1 | B10: Nifty 50 | C10: 25279.85 | D10: 25279.12 | E10: 25236.53 | F10: 25193.22 | G10: 25150.63 | H10: 25322.43 | I10: 25365.02 | J10: 25408.33 | K10: 25321.70 | L10: 25235.80
A11: 2 | B11: Nifty Bank | C11: 51689.10 | D11: 51559.75 | E11: 51369.40 | F11: 51049.70 | G11: 50859.35 | H11: 51879.45 | I11: 52069.80 | J11: 52389.50 | K11: 51750.10 | L11: 51240.05
A12: 3 | B12: Nifty CPSE | C12: 7307.05 | D12: 7325.67 | E12: 7279.53 | F12: 7252.02 | G12: 7205.88 | H12: 7353.18 | I12: 7399.32 | J12: 7426.83 | K12: 7371.80 | L12: 7298.15
A13: 4 | B13: Nifty Infra | C13: 9372.10 | D13: 9388.93 | E13: 9348.67 | F13: 9325.23 | G13: 9284.97 | H13: 9412.37 | I13: 9452.63 | J13: 9476.07 | K13: 9429.20 | L13: 9365.50
A14: 5 | B14: Nifty IT | C14: 42851.30 | D14: 42930.87 | E14: 42667.18 | F14: 42483.07 | G14: 42219.38 | H14: 43114.98 | I14: 43378.67 | J14: 43562.78 | K14: 43194.55 | L14: 42746.75
A15: 6 | B15: Nifty PSE | C15: 11427.80 | D15: 11441.77 | E15: 11390.63 | F15: 11353.47 | G15: 11302.33 | H15: 11478.93 | I15: 11530.07 | J15: 11567.23 | K15: 11492.90 | L15: 11404.60
A16: 7 | B16: Nifty Midcap 50 | C16: 16651.60 | D16: 16655.80 | E16: 16603.45 | F16: 16555.30 | G16: 16502.95 | H16: 16703.95 | I16: 16756.30 | J16: 16804.45 | K16: 16708.15 | L16: 16607.65
A17: 8 | B17: ABB | C17: 7767.9 | D17: 7759.13 | E17: 7689.47 | F17: 7611.03 | G17: 7541.37 | H17: 7837.57 | I17: 7907.23 | J17: 7985.67 | K17: 7828.8 | L17: 7680.7 | M17: 1.99718
A18: 9 | B18: ACC | C18: 2341.3 | D18: 2338.92 | E18: 2327.63 | F18: 2313.97 | G18: 2302.68 | H18: 2352.58 | I18: 2363.87 | J18: 2377.53 | K18: 2350.2 | L18: 2325.25 | M18: 2.54851
A19: 10 | B19: APLAPOLLO | C19: 1429.1 | D19: 1433.63 | E19: 1418.47 | F19: 1407.83 | G19: 1392.67 | H19: 1444.27 | I19: 1459.43 | J19: 1470.07 | K19: 1448.8 | L19: 1423 | M19: 4.1303
A20: 11 | B20: AUBANK | C20: 674.25 | D20: 678.03 | E20: 668.22 | F20: 662.18 | G20: 652.37 | H20: 684.07 | I20: 693.88 | J20: 699.92 | K20: 687.85 | L20: 672 | M20: 40.0557
A21: 12 | B21: ADANIENSOL | C21: 1029.2 | D21: 1031.78 | E21: 1017.47 | F21: 1005.73 | G21: 991.42 | H21: 1043.52 | I21: 1057.83 | J21: 1069.57 | K21: 1046.1 | L21: 1020.05 | M21: 13.68306
A22: 13 | B22: ADANIENT | C22: 3036.1 | D22: 3037.65 | E22: 3022.25 | F22: 3008.40 | G22: 2993.00 | H22: 3051.50 | I22: 3066.90 | J22: 3080.75 | K22: 3053.05 | L22: 3023.8 | M22: 13.71577
A23: 14 | B23: ADANIGREEN | C23: 1897.9 | D23: 1915.47 | E23: 1873.43 | F23: 1848.97 | G23: 1806.93 | H23: 1939.93 | I23: 1981.97 | J23: 2006.43 | K23: 1957.5 | L23: 1891 | M23: 9.2397
A24: 15 | B24: ADANIPORTS | C24: 1479.55 | D24: 1484.75 | E24: 1471.40 | F24: 1463.25 | G24: 1449.90 | H24: 1492.90 | I24: 1506.25 | J24: 1514.40 | K24: 1498.1 | L24: 1476.6 | M24: 8.82478
A25: 16 | B25: ADANIPOWER | C25: 659.1 | D25: 662.72 | E25: 653.43 | F25: 647.77 | G25: 638.48 | H25: 668.38 | I25: 677.67 | J25: 683.33 | K25: 672 | L25: 657.05 | M25: 39.30349
A26: 17 | B26: ATGL | C26: 851.1 | D26: 849.65 | E26: 844.30 | F26: 837.50 | G26: 832.15 | H26: 856.45 | I26: 861.80 | J26: 868.60 | K26: 855 | L26: 842.85 | M26: 37.33947
A27: 18 | B27: AWL | C27: 369.65 | D27: 372.32 | E27: 365.83 | F27: 362.02 | G27: 355.53 | H27: 376.13 | I27: 382.62 | J27: 386.43 | K27: 378.8 | L27: 368.5 | M27: 21.54336
A28: 19 | B28: ABCAPITAL | C28: 224.87 | D28: 225.91 | E28: 222.36 | F28: 219.86 | G28: 216.31 | H28: 228.41 | I28: 231.96 | J28: 234.46 | K28: 229.45 | L28: 223.4 | M28: 76.31591
A29: 20 | B29: ABFRL | C29: 315.8 | D29: 318.38 | E29: 312.67 | F29: 309.53 | G29: 303.82 | H29: 321.52 | I29: 327.23 | J29: 330.37 | K29: 324.1 | L29: 315.25 | M29: 53.56077
A30: 21 | B30: ALKEM | C30: 6108.75 | D30: 6106.27 | E30: 6042.53 | F30: 5976.32 | G30: 5912.58 | H30: 6172.48 | I30: 6236.22 | J30: 6302.43 | K30: 6170 | L30: 6040.05 | M30: 1.49571
A31: 22 | B31: AMBUJACEM | C31: 617.8 | D31: 618.15 | E31: 613.80 | F31: 609.80 | G31: 605.45 | H31: 622.15 | I31: 626.50 | J31: 630.50 | K31: 622.5 | L31: 614.15 | M31: 25.46441
A32: 23 | B32: APOLLOHOSP | C32: 6844.85 | D32: 6868.37 | E32: 6810.93 | F32: 6777.02 | G32: 6719.58 | H32: 6902.28 | I32: 6959.72 | J32: 6993.63 | K32: 6925.8 | L32: 6834.45 | M32: 3.6199
A33: 24 | B33: APOLLOTYRE | C33: 502.9 | D33: 501.52 | E33: 499.08 | F33: 495.27 | G33: 492.83 | H33: 505.33 | I33: 507.77 | J33: 511.58 | K33: 503.95 | L33: 497.7 | M33: 13.04842
A34: 25 | B34: ASHOKLEY | C34: 251 | D34: 251.15 | E34: 249.80 | F34: 248.60 | G34: 247.25 | H34: 252.35 | I34: 253.70 | J34: 254.90 | K34: 252.5 | L34: 249.95 | M34: 63.18452
A35: 26 | B35: ASIANPAINT | C35: 3154.85 | D35: 3158.97 | E35: 3143.38 | F35: 3131.92 | G35: 3116.33 | H35: 3170.43 | I35: 3186.02 | J35: 3197.48 | K35: 3174.55 | L35: 3147.5 | M35: 5.77471
A36: 27 | B36: ASTRAL | C36: 1926.05 | D36: 1928.77 | E36: 1913.83 | F36: 1901.62 | G36: 1886.68 | H36: 1940.98 | I36: 1955.92 | J36: 1968.13 | K36: 1943.7 | L36: 1916.55 | M36: 3.30865
A37: 28 | B37: AUROPHARMA | C37: 1549.4 | D37: 1555.20 | E37: 1540.60 | F37: 1531.80 | G37: 1517.20 | H37: 1564.00 | I37: 1578.60 | J37: 1587.40 | K37: 1569.8 | L37: 1546.4 | M37: 10.33542
A38: 29 | B38: DMART | C38: 4980.6 | D38: 4995.13 | E38: 4950.47 | F38: 4920.33 | G38: 4875.67 | H38: 5025.27 | I38: 5069.93 | J38: 5100.07 | K38: 5039.8 | L38: 4965 | M38: 2.22027
A39: 30 | B39: AXISBANK | C39: 1191.6 | D39: 1187.28 | E39: 1181.02 | F39: 1170.43 | G39: 1164.17 | H39: 1197.87 | I39: 1204.13 | J39: 1214.72 | K39: 1193.55 | L39: 1176.7 | M39: 79.20246
A40: 31 | B40: BAJAJ-AUTO | C40: 11043.65 | D40: 11059.12 | E40: 10999.53 | F40: 10955.42 | G40: 10895.83 | H40: 11103.23 | I40: 11162.82 | J40: 11206.93 | K40: 11118.7 | L40: 11015 | M40: 2.17394
A41: 32 | B41: BAJFINANCE | C41: 7353.8 | D41: 7339.97 | E41: 7219.93 | F41: 7086.07 | G41: 6966.03 | H41: 7473.83 | I41: 7593.87 | J41: 7727.73 | K41: 7460 | L41: 7206.1 | M41: 18.98656
A42: 33 | B42: BAJAJFINSV | C42: 1865.6 | D42: 1849.50 | E42: 1828.05 | F42: 1790.50 | G42: 1769.05 | H42: 1887.05 | I42: 1908.50 | J42: 1946.05 | K42: 1870.95 | L42: 1811.95 | M42: 44.29269
A43: 34 | B43: BAJAJHLDNG | C43: 10903.9 | D43: 10817.17 | E43: 10655.23 | F43: 10406.57 | G43: 10244.63 | H43: 11065.83 | I43: 11227.77 | J43: 11476.43 | K43: 10979.1 | L43: 10568.5 | M43: 2.01716
A44: 35 | B44: BALKRISIND | C44: 2926.1 | D44: 2912.03 | E44: 2884.07 | F44: 2842.03 | G44: 2814.07 | H44: 2954.07 | I44: 2982.03 | J44: 3024.07 | K44: 2940 | L44: 2870 | M44: 5.23409
A45: 36 | B45: BANDHANBNK | C45: 201.37 | D45: 202.23 | E45: 199.85 | F45: 198.34 | G45: 195.96 | H45: 203.74 | I45: 206.12 | J45: 207.63 | K45: 204.6 | L45: 200.71 | M45: 138.61713
A46: 37 | B46: BANKBARODA | C46: 250.7 | D46: 251.90 | E46: 249.15 | F46: 247.60 | G46: 244.85 | H46: 253.45 | I46: 256.20 | J46: 257.75 | K46: 254.65 | L46: 250.35 | M46: 93.89384
A47: 38 | B47: BANKINDIA | C47: 118.9 | D47: 118.48 | E47: 117.58 | F47: 116.25 | G47: 115.35 | H47: 119.81 | I47: 120.71 | J47: 122.04 | K47: 119.39 | L47: 117.16 | M47: 53.73501
A48: 39 | B48: BATAINDIA | C48: 1467.85 | D48: 1467.38 | E48: 1457.82 | F48: 1447.78 | G48: 1438.22 | H48: 1477.42 | I48: 1486.98 | J48: 1497.02 | K48: 1476.95 | L48: 1457.35 | M48: 2.98888
A49: 40 | B49: BERGEPAINT | C49: 576.8 | D49: 577.62 | E49: 574.23 | F49: 571.67 | G49: 568.28 | H49: 580.18 | I49: 583.57 | J49: 586.13 | K49: 581 | L49: 575.05 | M49: 4.71349
A50: 41 | B50: BDL | C50: 1320.25 | D50: 1330.08 | E50: 1305.17 | F50: 1290.08 | G50: 1265.17 | H50: 1345.17 | I50: 1370.08 | J50: 1385.17 | K50: 1355 | L50: 1315 | M50: 17.64895
A51: 42 | B51: BEL | C51: 297.15 | D51: 298.42 | E51: 295.48 | F51: 293.82 | G51: 290.88 | H51: 300.08 | I51: 303.02 | J51: 304.68 | K51: 301.35 | L51: 296.75 | M51: 139.71488
A52: 43 | B52: BHARATFORG | C52: 1567.1 | D52: 1574.07 | E52: 1557.08 | F52: 1547.07 | G52: 1530.08 | H52: 1584.08 | I52: 1601.07 | J52: 1611.08 | K52: 1591.05 | L52: 1564.05 | M52: 8.78145
A53: 44 | B53: BHEL | C53: 286.35 | D53: 287.47 | E53: 284.73 | F53: 283.12 | G53: 280.38 | H53: 289.08 | I53: 291.82 | J53: 293.43 | K53: 290.2 | L53: 285.85 | M53: 56.77328
A54: 45 | B54: BPCL | C54: 355.4 | D54: 356.20 | E54: 352.70 | F54: 350.00 | G54: 346.50 | H54: 358.90 | I54: 362.40 | J54: 365.10 | K54: 359.7 | L54: 353.5 | M54: 92.89259
A55: 46 | B55: BHARTIARTL | C55: 1560.6 | D55: 1566.07 | E55: 1553.13 | F55: 1545.67 | G55: 1532.73 | H55: 1573.53 | I55: 1586.47 | J55: 1593.93 | K55: 1579 | L55: 1558.6 | M55: 45.46295
A56: 47 | B56: BIOCON | C56: 361.9 | D56: 363.22 | E56: 359.73 | F56: 357.57 | G56: 354.08 | H56: 365.38 | I56: 368.87 | J56: 371.03 | K56: 366.7 | L56: 361.05 | M56: 25.13914
A57: 48 | B57: BOSCHLTD | C57: 32399.25 | D57: 32467.95 | E57: 32151.30 | F57: 31903.35 | G57: 31586.70 | H57: 32715.90 | I57: 33032.55 | J57: 33280.50 | K57: 32784.6 | L57: 32220 | M57: 0.29277
A58: 49 | B58: BRITANNIA | C58: 5916.05 | D58: 5910.02 | E58: 5876.03 | F58: 5836.02 | G58: 5802.03 | H58: 5950.03 | I58: 5984.02 | J58: 6024.03 | K58: 5944 | L58: 5870 | M58: 2.58133
A59: 50 | B59: CGPOWER | C59: 689.4 | D59: 688.85 | E59: 682.05 | F59: 674.70 | G59: 667.90 | H59: 696.20 | I59: 703.00 | J59: 710.35 | K59: 695.65 | L59: 681.5 | M59: 19.53579
A60: 51 | B60: CANBK | C60: 111.42 | D60: 112.03 | E60: 110.59 | F60: 109.77 | G60: 108.33 | H60: 112.85 | I60: 114.29 | J60: 115.11 | K60: 113.46 | L60: 111.2 | M60: 167.64307
A61: 52 | B61: CHOLAFIN | C61: 1500 | D61: 1490.52 | E61: 1474.58 | F61: 1449.17 | G61: 1433.23 | H61: 1515.93 | I61: 1531.87 | J61: 1557.28 | K61: 1506.45 | L61: 1465.1 | M61: 19.47168
A62: 53 | B62: CIPLA | C62: 1653.2 | D62: 1652.12 | E62: 1644.38 | F62: 1635.57 | G62: 1627.83 | H62: 1660.93 | I62: 1668.67 | J62: 1677.48 | K62: 1659.85 | L62: 1643.3 | M62: 12.64708
A63: 54 | B63: COALINDIA | C63: 519.6 | D63: 520.48 | E63: 517.37 | F63: 515.13 | G63: 512.02 | H63: 522.72 | I63: 525.83 | J63: 528.07 | K63: 523.6 | L63: 518.25 | M63: 55.26155
A64: 55 | B64: COFORGE | C64: 6407.6 | D64: 6382.33 | E64: 6339.12 | F64: 6270.63 | G64: 6227.42 | H64: 6450.82 | I64: 6494.03 | J64: 6562.52 | K64: 6425.55 | L64: 6313.85 | M64: 1.96286
A65: 56 | B65: COLPAL | C65: 3635.4 | D65: 3645.55 | E65: 3615.60 | F65: 3595.80 | G65: 3565.85 | H65: 3665.35 | I65: 3695.30 | J65: 3715.10 | K65: 3675.5 | L65: 3625.75 | M65: 2.79293
A66: 57 | B66: CONCOR | C66: 974.9 | D66: 971.88 | E66: 964.27 | F66: 953.63 | G66: 946.02 | H66: 982.52 | I66: 990.13 | J66: 1000.77 | K66: 979.5 | L66: 961.25 | M66: 13.71843
A67: 58 | B67: COROMANDEL | C67: 1732.2 | D67: 1742.07 | E67: 1718.73 | F67: 1705.27 | G67: 1681.93 | H67: 1755.53 | I67: 1778.87 | J67: 1792.33 | K67: 1765.4 | L67: 1728.6 | M67: 3.93536
A68: 59 | B68: CROMPTON | C68: 469.6 | D68: 470.53 | E68: 463.57 | F68: 457.53 | G68: 450.57 | H68: 476.57 | I68: 483.53 | J68: 489.57 | K68: 477.5 | L68: 464.5 | M68: 19.92487
A69: 60 | B69: CUMMINSIND | C69: 3831.25 | D69: 3829.53 | E69: 3816.22 | F69: 3801.18 | G69: 3787.87 | H69: 3844.57 | I69: 3857.88 | J69: 3872.92 | K69: 3842.85 | L69: 3814.5 | M69: 4.68471
A70: 61 | B70: DLF | C70: 847.6 | D70: 851.00 | E70: 842.75 | F70: 837.90 | G70: 829.65 | H70: 855.85 | I70: 864.10 | J70: 868.95 | K70: 859.25 | L70: 846.15 | M70: 24.02444
A71: 62 | B71: DABUR | C71: 638.2 | D71: 640.65 | E71: 632.80 | F71: 627.40 | G71: 619.55 | H71: 646.05 | I71: 653.90 | J71: 659.30 | K71: 648.5 | L71: 635.25 | M71: 17.75357
A72: 63 | B72: DALBHARAT | C72: 1915.5 | D72: 1916.50 | E72: 1903.00 | F72: 1890.50 | G72: 1877.00 | H72: 1929.00 | I72: 1942.50 | J72: 1955.00 | K72: 1930 | L72: 1904 | M72: 2.20625
A73: 64 | B73: DEEPAKNTR | C73: 2933.95 | D73: 2929.57 | E73: 2909.38 | F73: 2884.82 | G73: 2864.63 | H73: 2954.13 | I73: 2974.32 | J73: 2998.88 | K73: 2949.75 | L73: 2905 | M73: 4.4743
A74: 65 | B74: DELHIVERY | C74: 425.1 | D74: 423.50 | E74: 419.30 | F74: 413.50 | G74: 409.30 | H74: 429.30 | I74: 433.50 | J74: 439.30 | K74: 427.7 | L74: 417.7 | M74: 17.09216
A75: 66 | B75: DEVYANI | C75: 179.06 | D75: 178.25 | E75: 176.71 | F75: 174.35 | G75: 172.81 | H75: 180.61 | I75: 182.15 | J75: 184.51 | K75: 179.8 | L75: 175.9 | M75: 11.05575
A76: 67 | B76: DIVISLAB | C76: 5066 | D76: 5067.00 | E76: 5035.55 | F76: 5005.10 | G76: 4973.65 | H76: 5097.45 | I76: 5128.90 | J76: 5159.35 | K76: 5098.45 | L76: 5036.55 | M76: 2.88902
A77: 68 | B77: DIXON | C77: 12991.8 | D77: 12883.20 | E77: 12746.40 | F77: 12501.00 | G77: 12364.20 | H77: 13128.60 | I77: 13265.40 | J77: 13510.80 | K77: 13020 | L77: 12637.8 | M77: 5.65598
A78: 69 | B78: LALPATHLAB | C78: 3373.75 | D78: 3390.82 | E78: 3346.63 | F78: 3319.52 | G78: 3275.33 | H78: 3417.93 | I78: 3462.12 | J78: 3489.23 | K78: 3435 | L78: 3363.7 | M78: 1.37713
A79: 70 | B79: DRREDDY | C79: 6853.85 | D79: 6871.95 | E79: 6829.90 | F79: 6805.95 | G79: 6763.90 | H79: 6895.90 | I79: 6937.95 | J79: 6961.90 | K79: 6914 | L79: 6848 | M79: 2.49361
A80: 71 | B80: EICHERMOT | C80: 4865.8 | D80: 4887.28 | E80: 4834.57 | F80: 4803.33 | G80: 4750.62 | H80: 4918.52 | I80: 4971.23 | J80: 5002.47 | K80: 4940 | L80: 4856.05 | M80: 2.63404
A81: 72 | B81: ESCORTS | C81: 3793.85 | D81: 3796.50 | E81: 3766.15 | F81: 3738.45 | G81: 3708.10 | H81: 3824.20 | I81: 3854.55 | J81: 3882.25 | K81: 3826.85 | L81: 3768.8 | M81: 0.92739
A82: 73 | B82: NYKAA | C82: 209.19 | D82: 207.96 | E82: 205.47 | F82: 201.75 | G82: 199.26 | H82: 211.68 | I82: 214.17 | J82: 217.89 | K82: 210.45 | L82: 204.24 | M82: 95.3216
A83: 74 | B83: FEDERALBNK | C83: 194.61 | D83: 195.24 | E83: 193.62 | F83: 192.64 | G83: 191.02 | H83: 196.22 | I83: 197.84 | J83: 198.82 | K83: 196.85 | L83: 194.25 | M83: 52.79057
A84: 75 | B84: FACT | C84: 997.55 | D84: 995.68 | E84: 982.37 | F84: 967.18 | G84: 953.87 | H84: 1010.87 | I84: 1024.18 | J84: 1039.37 | K84: 1009 | L84: 980.5 | M84: 3.24741
A85: 76 | B85: FORTIS | C85: 563.4 | D85: 564.75 | E85: 560.40 | F85: 557.40 | G85: 553.05 | H85: 567.75 | I85: 572.10 | J85: 575.10 | K85: 569.1 | L85: 561.75 | M85: 10.39483
A86: 77 | B86: GAIL | C86: 232.53 | D86: 233.15 | E86: 230.53 | F86: 228.53 | G86: 225.91 | H86: 235.15 | I86: 237.77 | J86: 239.77 | K86: 235.77 | L86: 231.15 | M86: 114.68711
A87: 78 | B87: GLAND | C87: 1893.35 | D87: 1892.08 | E87: 1842.17 | F87: 1790.98 | G87: 1741.07 | H87: 1943.27 | I87: 1993.18 | J87: 2044.37 | K87: 1942 | L87: 1840.9 | M87: 8.50036
A88: 79 | B88: GODREJCP | C88: 1460.75 | D88: 1465.57 | E88: 1451.38 | F88: 1442.02 | G88: 1427.83 | H88: 1474.93 | I88: 1489.12 | J88: 1498.48 | K88: 1479.75 | L88: 1456.2 | M88: 9.01067
A89: 80 | B89: GODREJPROP | C89: 2892.75 | D89: 2907.17 | E89: 2866.63 | F89: 2840.52 | G89: 2799.98 | H89: 2933.28 | I89: 2973.82 | J89: 2999.93 | K89: 2947.7 | L89: 2881.05 | M89: 3.77509
A90: 81 | B90: GRASIM | C90: 2706.85 | D90: 2698.98 | E90: 2687.97 | F90: 2669.08 | G90: 2658.07 | H90: 2717.87 | I90: 2728.88 | J90: 2747.77 | K90: 2710 | L90: 2680.1 | M90: 5.22391
A91: 82 | B91: FLUOROCHEM | C91: 3165.6 | D91: 3176.30 | E91: 3145.30 | F91: 3125.00 | G91: 3094.00 | H91: 3196.60 | I91: 3227.60 | J91: 3247.90 | K91: 3207.3 | L91: 3156 | M91: 0.53182
A92: 83 | B92: GUJGASLTD | C92: 676.15 | D92: 674.55 | E92: 666.60 | F92: 657.05 | G92: 649.10 | H92: 684.10 | I92: 692.05 | J92: 701.60 | K92: 682.5 | L92: 665 | M92: 68.60218
A93: 84 | B93: HCLTECH | C93: 1790.45 | D93: 1798.22 | E93: 1779.28 | F93: 1768.12 | G93: 1749.18 | H93: 1809.38 | I93: 1828.32 | J93: 1839.48 | K93: 1817.15 | L93: 1787.05 | M93: 25.5329
A94: 85 | B94: HDFCAMC | C94: 4459.85 | D94: 4429.30 | E94: 4390.55 | F94: 4321.25 | G94: 4282.50 | H94: 4498.60 | I94: 4537.35 | J94: 4606.65 | K94: 4468.05 | L94: 4360 | M94: 5.1516
A95: 86 | B95: HDFCBANK | C95: 1637.35 | D95: 1633.97 | E95: 1627.98 | F95: 1618.62 | G95: 1612.63 | H95: 1643.33 | I95: 1649.32 | J95: 1658.68 | K95: 1639.95 | L95: 1624.6 | M95: 186.4143
A96: 87 | B96: HDFCLIFE | C96: 758.75 | D96: 753.87 | E96: 746.53 | F96: 734.32 | G96: 726.98 | H96: 766.08 | I96: 773.42 | J96: 785.63 | K96: 761.2 | L96: 741.65 | M96: 62.6805
A97: 88 | B97: HAVELLS | C97: 1901.95 | D97: 1897.98 | E97: 1885.97 | F97: 1869.98 | G97: 1857.97 | H97: 1913.97 | I97: 1925.98 | J97: 1941.97 | K97: 1910 | L97: 1882 | M97: 5.93605
A98: 89 | B98: HEROMOTOCO | C98: 5646.5 | D98: 5631.80 | E98: 5564.60 | F98: 5482.70 | G98: 5415.50 | H98: 5713.70 | I98: 5780.90 | J98: 5862.80 | K98: 5699 | L98: 5549.9 | M98: 8.05935
A99: 90 | B99: HINDALCO | C99: 678.9 | D99: 683.05 | E99: 673.40 | F99: 667.90 | G99: 658.25 | H99: 688.55 | I99: 698.20 | J99: 703.70 | K99: 692.7 | L99: 677.55 | M99: 44.57291
A100: 91 | B100: HAL | C100: 4832.35 | D100: 4853.00 | E100: 4781.00 | F100: 4729.65 | G100: 4657.65 | H100: 4904.35 | I100: 4976.35 | J100: 5027.70 | K100: 4925 | L100: 4801.65 | M100: 39.60603
A101: 92 | B101: HINDPETRO | C101: 425.9 | D101: 427.12 | E101: 423.53 | F101: 421.17 | G101: 417.58 | H101: 429.48 | I101: 433.07 | J101: 435.43 | K101: 430.7 | L101: 424.75 | M101: 51.40913
A102: 93 | B102: HINDUNILVR | C102: 2794.3 | D102: 2799.08 | E102: 2770.22 | F102: 2746.13 | G102: 2717.27 | H102: 2823.17 | I102: 2852.03 | J102: 2876.12 | K102: 2827.95 | L102: 2775 | M102: 20.22116
A103: 94 | B103: ICICIBANK | C103: 1247.7 | D103: 1239.68 | E103: 1228.42 | F103: 1209.13 | G103: 1197.87 | H103: 1258.97 | I103: 1270.23 | J103: 1289.52 | K103: 1250.95 | L103: 1220.4 | M103: 191.14907
A104: 95 | B104: ICICIGI | C104: 2208.1 | D104: 2190.98 | E104: 2165.37 | F104: 2122.63 | G104: 2097.02 | H104: 2233.72 | I104: 2259.33 | J104: 2302.07 | K104: 2216.6 | L104: 2148.25 | M104: 7.98222
A105: 96 | B105: ICICIPRULI | C105: 763.7 | D105: 758.43 | E105: 751.32 | F105: 738.93 | G105: 731.82 | H105: 770.82 | I105: 777.93 | J105: 790.32 | K105: 765.55 | L105: 746.05 | M105: 17.57723
A106: 97 | B106: IDFCFIRSTB | C106: 75.07 | D106: 75.26 | E106: 74.81 | F106: 74.56 | G106: 74.11 | H106: 75.51 | I106: 75.96 | J106: 76.21 | K106: 75.7 | L106: 75 | M106: 202.15749
A107: 98 | B107: ITC | C107: 509.4 | D107: 511.08 | E107: 506.22 | F107: 503.03 | G107: 498.17 | H107: 514.27 | I107: 519.13 | J107: 522.32 | K107: 515.95 | L107: 507.9 | M107: 120.18677
A108: 99 | B108: INDIANB | C108: 550.05 | D108: 552.25 | E108: 546.10 | F108: 542.15 | G108: 536.00 | H108: 556.20 | I108: 562.35 | J108: 566.30 | K108: 558.4 | L108: 548.3 | M108: 7.5112
A109: 100 | B109: INDHOTEL | C109: 658.95 | D109: 659.33 | E109: 655.22 | F109: 651.48 | G109: 647.37 | H109: 663.07 | I109: 667.18 | J109: 670.92 | K109: 663.45 | L109: 655.6 | M109: 23.08988
A110: 101 | B110: IOC | C110: 176.13 | D110: 176.88 | E110: 174.85 | F110: 173.57 | G110: 171.54 | H110: 178.16 | I110: 180.19 | J110: 181.47 | K110: 178.91 | L110: 175.6 | M110: 118.74065
A111: 102 | B111: IRCTC | C111: 944.15 | D111: 943.65 | E111: 938.30 | F111: 932.45 | G111: 927.10 | H111: 949.50 | I111: 954.85 | J111: 960.70 | K111: 949 | L111: 937.8 | M111: 15.734
A112: 103 | B112: IRFC | C112: 178.46 | D112: 178.24 | E112: 177.31 | F112: 176.16 | G112: 175.23 | H112: 179.39 | I112: 180.32 | J112: 181.47 | K112: 179.17 | L112: 177.09 | M112: 104.16245
A113: 104 | B113: IGL | C113: 555.45 | D113: 552.28 | E113: 548.12 | F113: 540.78 | G113: 536.62 | H113: 559.62 | I113: 563.78 | J113: 571.12 | K113: 556.45 | L113: 544.95 | M113: 30.42354
A114: 105 | B114: INDUSTOWER | C114: 441.4 | D114: 441.52 | E114: 438.73 | F114: 436.07 | G114: 433.28 | H114: 444.18 | I114: 446.97 | J114: 449.63 | K114: 444.3 | L114: 438.85 | M114: 59.78801
A115: 106 | B115: INDUSINDBK | C115: 1436.7 | D115: 1440.83 | E115: 1429.77 | F115: 1422.83 | G115: 1411.77 | H115: 1447.77 | I115: 1458.83 | J115: 1465.77 | K115: 1451.9 | L115: 1433.9 | M115: 23.51018
A116: 107 | B116: NAUKRI | C116: 7445.45 | D116: 7506.48 | E116: 7368.97 | F116: 7292.48 | G116: 7154.97 | H116: 7582.97 | I116: 7720.48 | J116: 7796.97 | K116: 7644 | L116: 7430 | M116: 1.2859
A117: 108 | B117: INFY | C117: 1941.25 | D117: 1948.23 | E117: 1929.47 | F117: 1917.68 | G117: 1898.92 | H117: 1960.02 | I117: 1978.78 | J117: 1990.57 | K117: 1967 | L117: 1936.45 | M117: 46.94322
A118: 109 | B118: INDIGO | C118: 4813.4 | D118: 4805.82 | E118: 4782.63 | F118: 4751.87 | G118: 4728.68 | H118: 4836.58 | I118: 4859.77 | J118: 4890.53 | K118: 4829 | L118: 4775.05 | M118: 13.51206
A119: 110 | B119: IPCALAB | C119: 1399.4 | D119: 1396.82 | E119: 1385.08 | F119: 1370.77 | G119: 1359.03 | H119: 1411.13 | I119: 1422.87 | J119: 1437.18 | K119: 1408.55 | L119: 1382.5 | M119: 4.63174
A120: 111 | B120: JSWENERGY | C120: 692.7 | D120: 697.50 | E120: 685.95 | F120: 679.20 | G120: 667.65 | H120: 704.25 | I120: 715.80 | J120: 722.55 | K120: 709.05 | L120: 690.75 | M120: 17.37165
A121: 112 | B121: JSWSTEEL | C121: 930.95 | D121: 934.15 | E121: 926.75 | F121: 922.55 | G121: 915.15 | H121: 938.35 | I121: 945.75 | J121: 949.95 | K121: 941.55 | L121: 929.95 | M121: 11.16938
A122: 113 | B122: JINDALSTEL | C122: 948.25 | D122: 954.55 | E122: 939.75 | F122: 931.25 | G122: 916.45 | H122: 963.05 | I122: 977.85 | J122: 986.35 | K122: 969.35 | L122: 946.05 | M122: 9.72264
A123: 114 | B123: JUBLFOOD | C123: 654.2 | D123: 653.98 | E123: 648.97 | F123: 643.73 | G123: 638.72 | H123: 659.22 | I123: 664.23 | J123: 669.47 | K123: 659 | L123: 648.75 | M123: 10.03535
A124: 115 | B124: KPITTECH | C124: 1769.3 | D124: 1766.62 | E124: 1753.68 | F124: 1738.07 | G124: 1725.13 | H124: 1782.23 | I124: 1795.17 | J124: 1810.78 | K124: 1779.55 | L124: 1751 | M124: 5.10324
A125: 116 | B125: KOTAKBANK | C125: 1783.8 | D125: 1780.87 | E125: 1775.28 | F125: 1766.77 | G125: 1761.18 | H125: 1789.38 | I125: 1794.97 | J125: 1803.48 | K125: 1786.45 | L125: 1772.35 | M125: 51.96273
A126: 117 | B126: LTF | C126: 172.41 | D126: 172.38 | E126: 170.86 | F126: 169.31 | G126: 167.79 | H126: 173.93 | I126: 175.45 | J126: 177.00 | K126: 173.9 | L126: 170.83 | M126: 67.69138
A127: 118 | B127: LTTS | C127: 5747.7 | D127: 5745.43 | E127: 5709.82 | F127: 5671.93 | G127: 5636.32 | H127: 5783.32 | I127: 5818.93 | J127: 5856.82 | K127: 5781.05 | L127: 5707.55 | M127: 1.19292
A128: 119 | B128: LICHSGFIN | C128: 694.05 | D128: 689.08 | E128: 682.97 | F128: 671.88 | G128: 665.77 | H128: 700.17 | I128: 706.28 | J128: 717.37 | K128: 695.2 | L128: 678 | M128: 38.08579
A129: 120 | B129: LTIM | C129: 6145.7 | D129: 6136.57 | E129: 6094.13 | F129: 6042.57 | G129: 6000.13 | H129: 6188.13 | I129: 6230.57 | J129: 6282.13 | K129: 6179 | L129: 6085 | M129: 4.06722
A130: 121 | B130: LT | C130: 3690.15 | D130: 3690.33 | E130: 3666.72 | F130: 3643.28 | G130: 3619.67 | H130: 3713.77 | I130: 3737.38 | J130: 3760.82 | K130: 3713.95 | L130: 3666.9 | M130: 12.11993
A131: 122 | B131: LAURUSLABS | C131: 470.1 | D131: 468.28 | E131: 463.57 | F131: 457.03 | G131: 452.32 | H131: 474.82 | I131: 479.53 | J131: 486.07 | K131: 473 | L131: 461.75 | M131: 16.17741
A132: 123 | B132: LICI | C132: 1062.3 | D132: 1061.85 | E132: 1054.90 | F132: 1047.50 | G132: 1040.55 | H132: 1069.25 | I132: 1076.20 | J132: 1083.60 | K132: 1068.8 | L132: 1054.45 | M132: 8.57613
A133: 124 | B133: LUPIN | C133: 2240.25 | D133: 2249.08 | E133: 2226.17 | F133: 2212.08 | G133: 2189.17 | H133: 2263.17 | I133: 2286.08 | J133: 2300.17 | K133: 2272 | L133: 2235 | M133: 13.3568
A134: 125 | B134: MRF | C134: 134419 | D134: 134419.00 | E134: 134040.00 | F134: 133661.00 | G134: 133282.00 | H134: 134798.00 | I134: 135177.00 | J134: 135556.00 | K134: 134798 | L134: 134040 | M134: 0.04691
A135: 126 | B135: LODHA | C135: 1229.6 | D135: 1236.83 | E135: 1214.22 | F135: 1198.83 | G135: 1176.22 | H135: 1252.22 | I135: 1274.83 | J135: 1290.22 | K135: 1259.45 | L135: 1221.45 | M135: 5.90533
A136: 127 | B136: M&MFIN | C136: 325.1 | D136: 327.28 | E136: 321.12 | F136: 317.13 | G136: 310.97 | H136: 331.27 | I136: 337.43 | J136: 341.42 | K136: 333.45 | L136: 323.3 | M136: 107.29594
A137: 128 | B137: M&M | C137: 2784.85 | D137: 2785.18 | E137: 2772.27 | F137: 2759.68 | G137: 2746.77 | H137: 2797.77 | I137: 2810.68 | J137: 2823.27 | K137: 2798.1 | L137: 2772.6 | M137: 15.9271
A138: 129 | B138: MANKIND | C138: 2391.1 | D138: 2413.65 | E138: 2357.45 | F138: 2323.80 | G138: 2267.60 | H138: 2447.30 | I138: 2503.50 | J138: 2537.15 | K138: 2469.85 | L138: 2380 | M138: 13.23616
A139: 130 | B139: MARICO | C139: 640.05 | D139: 644.25 | E139: 635.25 | F139: 630.45 | G139: 621.45 | H139: 649.05 | I139: 658.05 | J139: 662.85 | K139: 653.25 | L139: 639.45 | M139: 24.70124
A140: 131 | B140: MARUTI | C140: 12397.1 | D140: 12410.43 | E140: 12346.57 | F140: 12296.03 | G140: 12232.17 | H140: 12460.97 | I140: 12524.83 | J140: 12575.37 | K140: 12474.3 | L140: 12359.9 | M140: 4.45514
A141: 132 | B141: MFSL | C141: 1128.3 | D141: 1121.35 | E141: 1108.80 | F141: 1089.30 | G141: 1076.75 | H141: 1140.85 | I141: 1153.40 | J141: 1172.90 | K141: 1133.9 | L141: 1101.85 | M141: 7.2555
A142: 133 | B142: MAXHEALTH | C142: 871.8 | D142: 876.27 | E142: 860.53 | F142: 849.27 | G142: 833.53 | H142: 887.53 | I142: 903.27 | J142: 914.53 | K142: 892 | L142: 865 | M142: 14.29045
A143: 134 | B143: MAZDOCK | C143: 4454.5 | D143: 4445.97 | E143: 4330.78 | F143: 4207.07 | G143: 4091.88 | H143: 4569.68 | I143: 4684.87 | J143: 4808.58 | K143: 4561.15 | L143: 4322.25 | M143: 78.75237
A144: 139 | B144: MSUMI | C144: 70.47 | D144: 70.54 | E144: 70.22 | F144: 69.98 | G144: 69.66 | H144: 70.78 | I144: 71.10 | J144: 71.34 | K144: 70.85 | L144: 70.29 | M144: 21.65926
A145: 140 | B145: MPHASIS | C145: 3125.35 | D145: 3124.20 | E145: 3083.40 | F145: 3041.45 | G145: 3000.65 | H145: 3166.15 | I145: 3206.95 | J145: 3248.90 | K145: 3165 | L145: 3082.25 | M145: 6.93093
A146: 141 | B146: MUTHOOTFIN | C146: 1978.55 | D146: 1970.28 | E146: 1950.87 | F146: 1923.18 | G146: 1903.77 | H146: 1997.97 | I146: 2017.38 | J146: 2045.07 | K146: 1989.7 | L146: 1942.6 | M146: 11.07585
A147: 142 | B147: NHPC | C147: 99.07 | D147: 98.56 | E147: 97.77 | F147: 96.47 | G147: 95.68 | H147: 99.86 | I147: 100.65 | J147: 101.95 | K147: 99.35 | L147: 97.26 | M147: 261.55552
A148: 143 | B148: NMDC | C148: 214.98 | D148: 215.41 | E148: 213.40 | F148: 211.83 | G148: 209.82 | H148: 216.98 | I148: 218.99 | J148: 220.56 | K148: 217.41 | L148: 213.83 | M148: 83.38138
A149: 144 | B149: NTPC | C149: 406.4 | D149: 407.85 | E149: 404.15 | F149: 401.90 | G149: 398.20 | H149: 410.10 | I149: 413.80 | J149: 416.05 | K149: 411.55 | L149: 405.6 | M149: 75.3816
A150: 145 | B150: NAVINFLUOR | C150: 3328.15 | D150: 3321.17 | E150: 3294.98 | F150: 3261.82 | G150: 3235.63 | H150: 3354.33 | I150: 3380.52 | J150: 3413.68 | K150: 3347.35 | L150: 3288 | M150: 1.07633
A151: 146 | B151: NESTLEIND | C151: 2530.75 | D151: 2530.58 | E151: 2502.17 | F151: 2473.58 | G151: 2445.17 | H151: 2559.17 | I151: 2587.58 | J151: 2616.17 | K151: 2559 | L151: 2502 | M151: 9.87527
A152: 147 | B152: OBEROIRLTY | C152: 1768.2 | D152: 1769.80 | E152: 1750.60 | F152: 1733.00 | G152: 1713.80 | H152: 1787.40 | I152: 1806.60 | J152: 1824.20 | K152: 1789 | L152: 1752.2 | M152: 3.79376
A153: 148 | B153: ONGC | C153: 322.2 | D153: 323.95 | E153: 319.90 | F153: 317.60 | G153: 313.55 | H153: 326.25 | I153: 330.30 | J153: 332.60 | K153: 328 | L153: 321.65 | M153: 103.21111
A154: 149 | B154: OIL | C154: 729.85 | D154: 724.97 | E154: 715.93 | F154: 702.02 | G154: 692.98 | H154: 738.88 | I154: 747.92 | J154: 761.83 | K154: 734 | L154: 711.05 | M154: 58.84801
A155: 150 | B155: PAYTM | C155: 595.6 | D155: 601.47 | E155: 588.13 | F155: 580.67 | G155: 567.33 | H155: 608.93 | I155: 622.27 | J155: 629.73 | K155: 614.8 | L155: 594 | M155: 86.64136
A156: 151 | B156: POLICYBZR | C156: 1718.75 | D156: 1724.88 | E156: 1706.32 | F156: 1693.88 | G156: 1675.32 | H156: 1737.32 | I156: 1755.88 | J156: 1768.32 | K156: 1743.45 | L156: 1712.45 | M156: 16.67552
A157: 152 | B157: PIIND | C157: 4539.8 | D157: 4564.25 | E157: 4498.05 | F157: 4456.30 | G157: 4390.10 | H157: 4606.00 | I157: 4672.20 | J157: 4713.95 | K157: 4630.45 | L157: 4522.5 | M157: 2.5556
A158: 153 | B158: PAGEIND | C158: 41962.2 | D158: 41939.90 | E158: 41725.80 | F158: 41489.40 | G158: 41275.30 | H158: 42176.30 | I158: 42390.40 | J158: 42626.80 | K158: 42154 | L158: 41703.5 | M158: 0.07055
A159: 154 | B159: PATANJALI | C159: 1950.55 | D159: 1954.32 | E159: 1916.43 | F159: 1882.32 | G159: 1844.43 | H159: 1988.43 | I159: 2026.32 | J159: 2060.43 | K159: 1992.2 | L159: 1920.2 | M159: 6.25339
A160: 155 | B160: PERSISTENT | C160: 5290.65 | D160: 5266.80 | E160: 5210.95 | F160: 5131.25 | G160: 5075.40 | H160: 5346.50 | I160: 5402.35 | J160: 5482.05 | K160: 5322.65 | L160: 5187.1 | M160: 4.54305
A161: 156 | B161: PETRONET | C161: 360 | D161: 362.03 | E161: 357.07 | F161: 354.13 | G161: 349.17 | H161: 364.97 | I161: 369.93 | J161: 372.87 | K161: 367 | L161: 359.1 | M161: 19.85709
A162: 157 | B162: PIDILITIND | C162: 3173.55 | D162: 3184.38 | E162: 3151.52 | F162: 3129.48 | G162: 3096.62 | H162: 3206.42 | I162: 3239.28 | J162: 3261.32 | K162: 3217.25 | L162: 3162.35 | M162: 6.04354
A163: 158 | B163: PEL | C163: 1064.2 | D163: 1068.57 | E163: 1053.98 | F163: 1043.77 | G163: 1029.18 | H163: 1078.78 | I163: 1093.37 | J163: 1103.58 | K163: 1083.15 | L163: 1058.35 | M163: 11.10866
A164: 159 | B164: POLYCAB | C164: 6767.15 | D164: 6751.98 | E164: 6713.97 | F164: 6660.78 | G164: 6622.77 | H164: 6805.17 | I164: 6843.18 | J164: 6896.37 | K164: 6790 | L164: 6698.8 | M164: 1.76221
A165: 160 | B165: POONAWALLA | C165: 384.4 | D165: 387.53 | E165: 380.37 | F165: 376.33 | G165: 369.17 | H165: 391.57 | I165: 398.73 | J165: 402.77 | K165: 394.7 | L165: 383.5 | M165: 13.00302
A166: 161 | B166: PFC | C166: 558.85 | D166: 553.60 | E166: 545.40 | F166: 531.95 | G166: 523.75 | H166: 567.05 | I166: 575.25 | J166: 588.70 | K166: 561.8 | L166: 540.15 | M166: 97.86096
A167: 162 | B167: POWERGRID | C167: 334.65 | D167: 335.53 | E167: 333.12 | F167: 331.58 | G167: 329.17 | H167: 337.07 | I167: 339.48 | J167: 341.02 | K167: 337.95 | L167: 334 | M167: 84.34423
A168: 163 | B168: PRESTIGE | C168: 1786.75 | D168: 1794.92 | E168: 1761.93 | F168: 1737.12 | G168: 1704.13 | H168: 1819.73 | I168: 1852.72 | J168: 1877.53 | K168: 1827.9 | L168: 1770.1 | M168: 15.15507
A169: 164 | B169: PGHH | C169: 16348.2 | D169: 16416.40 | E169: 16232.80 | F169: 16117.40 | G169: 15933.80 | H169: 16531.80 | I169: 16715.40 | J169: 16830.80 | K169: 16600 | L169: 16301 | M169: 0.06162
A170: 165 | B170: PNB | C170: 115.59 | D170: 116.03 | E170: 114.86 | F170: 114.13 | G170: 112.96 | H170: 116.76 | I170: 117.93 | J170: 118.66 | K170: 117.2 | L170: 115.3 | M170: 106.81101
A171: 166 | B171: RECLTD | C171: 629.4 | D171: 624.55 | E171: 618.15 | F171: 606.90 | G171: 600.50 | H171: 635.80 | I171: 642.20 | J171: 653.45 | K171: 630.95 | L171: 613.3 | M171: 76.28972
A172: 167 | B172: RVNL | C172: 600.5 | D172: 601.30 | E172: 596.20 | F172: 591.90 | G172: 586.80 | H172: 605.60 | I172: 610.70 | J172: 615.00 | K172: 606.4 | L172: 597 | M172: 95.58037
A173: 168 | B173: RELIANCE | C173: 3018.25 | D173: 3026.42 | E173: 3006.83 | F173: 2995.42 | G173: 2975.83 | H173: 3037.83 | I173: 3057.42 | J173: 3068.83 | K173: 3046 | L173: 3015 | M173: 54.619
A174: 169 | B174: SBICARD | C174: 766.05 | D174: 761.47 | E174: 746.98 | F174: 727.92 | G174: 713.43 | H174: 780.53 | I174: 795.02 | J174: 814.08 | K174: 775.95 | L174: 742.4 | M174: 90.20038
A175: 170 | B175: SBILIFE | C175: 1928.65 | D175: 1915.47 | E175: 1894.93 | F175: 1861.22 | G175: 1840.68 | H175: 1949.18 | I175: 1969.72 | J175: 2003.43 | K175: 1936 | L175: 1881.75 | M175: 34.57882
A176: 171 | B176: SRF | C176: 2586 | D176: 2594.47 | E176: 2566.98 | F176: 2547.97 | G176: 2520.48 | H176: 2613.48 | I176: 2640.97 | J176: 2659.98 | K176: 2621.95 | L176: 2575.45 | M176: 6.66148
A177: 172 | B177: MOTHERSON | C177: 192.75 | D177: 192.65 | E177: 190.79 | F177: 188.84 | G177: 186.98 | H177: 194.60 | I177: 196.46 | J177: 198.41 | K177: 194.5 | L177: 190.69 | M177: 119.12602
A178: 173 | B178: SHREECEM | C178: 25507.6 | D178: 25521.65 | E178: 25340.95 | F178: 25174.30 | G178: 24993.60 | H178: 25688.30 | I178: 25869.00 | J178: 26035.65 | K178: 25702.35 | L178: 25355 | M178: 0.45076
A179: 174 | B179: SHRIRAMFIN | C179: 3271.6 | D179: 3248.23 | E179: 3213.42 | F179: 3155.23 | G179: 3120.42 | H179: 3306.42 | I179: 3341.23 | J179: 3399.42 | K179: 3283.05 | L179: 3190.05 | M179: 14.36283
A180: 175 | B180: SIEMENS | C180: 6768.8 | D180: 6779.25 | E180: 6724.55 | F180: 6680.30 | G180: 6625.60 | H180: 6823.50 | I180: 6878.20 | J180: 6922.45 | K180: 6833.95 | L180: 6735 | M180: 3.4796
A181: 176 | B181: SONACOMS | C181: 710.8 | D181: 718.10 | E181: 699.70 | F181: 688.60 | G181: 670.20 | H181: 729.20 | I181: 747.60 | J181: 758.70 | K181: 736.5 | L181: 707 | M181: 26.59537
A182: 177 | B182: SBIN | C182: 824.8 | D182: 822.38 | E182: 818.82 | F182: 812.83 | G182: 809.27 | H182: 828.37 | I182: 831.93 | J182: 837.92 | K182: 825.95 | L182: 816.4 | M182: 105.4835
A183: 178 | B183: SAIL | C183: 131.78 | D183: 132.21 | E183: 130.83 | F183: 129.87 | G183: 128.49 | H183: 133.17 | I183: 134.55 | J183: 135.51 | K183: 133.6 | L183: 131.26 | M183: 109.86546
A184: 179 | B184: SUNPHARMA | C184: 1811.5 | D184: 1818.72 | E184: 1797.88 | F184: 1784.27 | G184: 1763.43 | H184: 1832.33 | I184: 1853.17 | J184: 1866.78 | K184: 1839.55 | L184: 1805.1 | M184: 21.48689
A185: 180 | B185: SUNTV | C185: 799.1 | D185: 805.92 | E185: 790.18 | F185: 781.27 | G185: 765.53 | H185: 814.83 | I185: 830.57 | J185: 839.48 | K185: 821.65 | L185: 797 | M185: 4.28567
A186: 181 | B186: SYNGENE | C186: 869.05 | D186: 869.48 | E186: 863.22 | F186: 857.38 | G186: 851.12 | H186: 875.32 | I186: 881.58 | J186: 887.42 | K186: 875.75 | L186: 863.65 | M186: 6.67289
A187: 182 | B187: TVSMOTOR | C187: 2782.6 | D187: 2788.65 | E187: 2771.30 | F187: 2760.00 | G187: 2742.65 | H187: 2799.95 | I187: 2817.30 | J187: 2828.60 | K187: 2806 | L187: 2777.35 | M187: 7.32254
A188: 183 | B188: TATACHEM | C188: 1108.3 | D188: 1100.93 | E188: 1089.37 | F188: 1070.43 | G188: 1058.87 | H188: 1119.87 | I188: 1131.43 | J188: 1150.37 | K188: 1112.5 | L188: 1082 | M188: 17.56062
A189: 184 | B189: TATACOMM | C189: 1981.45 | D189: 1988.12 | E189: 1956.33 | F189: 1931.22 | G189: 1899.43 | H189: 2013.23 | I189: 2045.02 | J189: 2070.13 | K189: 2019.9 | L189: 1963 | M189: 5.9737
A190: 185 | B190: TCS | C190: 4512.35 | D190: 4521.38 | E190: 4486.87 | F190: 4461.38 | G190: 4426.87 | H190: 4546.87 | I190: 4581.38 | J190: 4606.87 | K190: 4555.9 | L190: 4495.9 | M190: 17.17263
A191: 186 | B191: TATACONSUM | C191: 1199 | D191: 1204.55 | E191: 1190.75 | F191: 1182.50 | G191: 1168.70 | H191: 1212.80 | I191: 1226.60 | J191: 1234.85 | K191: 1218.35 | L191: 1196.3 | M191: 18.84428
A192: 187 | B192: TATAELXSI | C192: 7867.35 | D192: 7872.12 | E192: 7765.23 | F192: 7663.12 | G192: 7556.23 | H192: 7974.23 | I192: 8081.12 | J192: 8183.23 | K192: 7979 | L192: 7770 | M192: 3.19607
A193: 188 | B193: TATAMTRDVR
A194: 189 | B194: TATAMOTORS | C194: 1085.1 | D194: 1089.10 | E194: 1078.20 | F194: 1071.30 | G194: 1060.40 | H194: 1096.00 | I194: 1106.90 | J194: 1113.80 | K194: 1100 | L194: 1082.2 | M194: 50.88731
A195: 190 | B195: TATAPOWER | C195: 433.95 | D195: 433.30 | E195: 431.95 | F195: 429.95 | G195: 428.60 | H195: 435.30 | I195: 436.65 | J195: 438.65 | K195: 434.65 | L195: 431.3 | M195: 97.12479
A196: 191 | B196: TATASTEEL | C196: 152.15 | D196: 152.54 | E196: 151.62 | F196: 151.10 | G196: 150.18 | H196: 153.06 | I196: 153.98 | J196: 154.50 | K196: 153.45 | L196: 152.01 | M196: 197.80066
A197: 192 | B197: TECHM | C197: 1644.1 | D197: 1645.15 | E197: 1631.05 | F197: 1618.00 | G197: 1603.90 | H197: 1658.20 | I197: 1672.30 | J197: 1685.35 | K197: 1659.25 | L197: 1632.1 | M197: 17.39553
A198: 193 | B198: RAMCOCEM | C198: 833.2 | D198: 834.08 | E198: 829.52 | F198: 825.83 | G198: 821.27 | H198: 837.77 | I198: 842.33 | J198: 846.02 | K198: 838.65 | L198: 830.4 | M198: 2.58431
A199: 194 | B199: TITAN | C199: 3621.15 | D199: 3605.40 | E199: 3575.90 | F199: 3530.65 | G199: 3501.15 | H199: 3650.65 | I199: 3680.15 | J199: 3725.40 | K199: 3634.9 | L199: 3560.15 | M199: 11.12614
A200: 195 | B200: TORNTPHARM | C200: 3426.1 | D200: 3445.37 | E200: 3400.73 | F200: 3375.37 | G200: 3330.73 | H200: 3470.73 | I200: 3515.37 | J200: 3540.73 | K200: 3490 | L200: 3420 | M200: 3.14363
A201: 196 | B201: TORNTPOWER | C201: 1712.85 | D201: 1729.15 | E201: 1690.30 | F201: 1667.75 | G201: 1628.90 | H201: 1751.70 | I201: 1790.55 | J201: 1813.10 | K201: 1768 | L201: 1706.6 | M201: 6.23308
A202: 197 | B202: TRENT | C202: 7042.8 | D202: 7072.60 | E202: 6965.20 | F202: 6887.60 | G202: 6780.20 | H202: 7150.20 | I202: 7257.60 | J202: 7335.20 | K202: 7180 | L202: 6995 | M202: 8.57908
A203: 198 | B203: TIINDIA | C203: 4085.55 | D203: 4105.18 | E203: 4041.52 | F203: 3997.48 | G203: 3933.82 | H203: 4149.22 | I203: 4212.88 | J203: 4256.92 | K203: 4168.85 | L203: 4061.15 | M203: 1.50483
A204: 199 | B204: UPL | C204: 602.2 | D204: 601.38 | E204: 596.82 | F204: 591.43 | G204: 586.87 | H204: 606.77 | I204: 611.33 | J204: 616.72 | K204: 605.95 | L204: 596 | M204: 21.47598
A205: 200 | B205: ULTRACEMCO | C205: 11460.8 | D205: 11441.95 | E205: 11379.85 | F205: 11298.90 | G205: 11236.80 | H205: 11522.90 | I205: 11585.00 | J205: 11665.95 | K205: 11504.05 | L205: 11361 | M205: 1.81723
... 30 more rows

Sheet MidCap Intra
L5: Back To Main Page
A6: FOR INTRA DAY TRADING | K6: =Main!B10 -> 2024-09-04
A9: Sr.no | B9: Scrip | C9: CLOSE RATE | D9: Pivot Point | E9: Supports | H9: Resistances
E10: S1 | F10: S2 | G10: S3 | H10: R1 | I10: R2 | J10: R3 | K10: HIGH | L10: LOW | M10: Total Trade Quanity in Lakhs
A11: 1 | B11: 360ONE | C11: 1095.15 | D11: 1095.55 | E11: 1086.20 | F11: 1077.25 | G11: 1067.90 | H11: 1104.50 | I11: 1113.85 | J11: 1122.80 | K11: 1104.9 | L11: 1086.6 | M11: 4.30544
A12: 2 | B12: 3MINDIA | C12: 35717.75 | D12: 35805.25 | E12: 35454.50 | F12: 35191.25 | G12: 34840.50 | H12: 36068.50 | I12: 36419.25 | J12: 36682.50 | K12: 36156 | L12: 35542 | M12: 0.02612
A13: 3 | B13: ABB | C13: 7767.9 | D13: 7759.13 | E13: 7689.47 | F13: 7611.03 | G13: 7541.37 | H13: 7837.57 | I13: 7907.23 | J13: 7985.67 | K13: 7828.8 | L13: 7680.7 | M13: 1.99718
A14: 4 | B14: ACC | C14: 2341.3 | D14: 2338.92 | E14: 2327.63 | F14: 2313.97 | G14: 2302.68 | H14: 2352.58 | I14: 2363.87 | J14: 2377.53 | K14: 2350.2 | L14: 2325.25 | M14: 2.54851
A15: 5 | B15: AIAENG | C15: 4398.15 | D15: 4378.08 | E15: 4339.17 | F15: 4280.18 | G15: 4241.27 | H15: 4437.07 | I15: 4475.98 | J15: 4534.97 | K15: 4417 | L15: 4319.1 | M15: 0.95752
A16: 6 | B16: APLAPOLLO | C16: 1429.1 | D16: 1433.63 | E16: 1418.47 | F16: 1407.83 | G16: 1392.67 | H16: 1444.27 | I16: 1459.43 | J16: 1470.07 | K16: 1448.8 | L16: 1423 | M16: 4.1303
A17: 7 | B17: AUBANK | C17: 674.25 | D17: 678.03 | E17: 668.22 | F17: 662.18 | G17: 652.37 | H17: 684.07 | I17: 693.88 | J17: 699.92 | K17: 687.85 | L17: 672 | M17: 40.0557
A18: 8 | B18: AARTIIND | C18: 623.1 | D18: 625.97 | E18: 619.33 | F18: 615.57 | G18: 608.93 | H18: 629.73 | I18: 636.37 | J18: 640.13 | K18: 632.6 | L18: 622.2 | M18: 15.28248
A19: 9 | B19: AAVAS | C19: 1725.75 | D19: 1722.20 | E19: 1713.40 | F19: 1701.05 | G19: 1692.25 | H19: 1734.55 | I19: 1743.35 | J19: 1755.70 | K19: 1731 | L19: 1709.85 | M19: 0.71942
A20: 10 | B20: ABBOTINDIA | C20: 29690.45 | D20: 29907.45 | E20: 29434.00 | F20: 29177.55 | G20: 28704.10 | H20: 30163.90 | I20: 30637.35 | J20: 30893.80 | K20: 30380.9 | L20: 29651 | M20: 0.10509
A21: 11 | B21: ACE | C21: 1296.6 | D21: 1292.42 | E21: 1275.08 | F21: 1253.57 | G21: 1236.23 | H21: 1313.93 | I21: 1331.27 | J21: 1352.78 | K21: 1309.75 | L21: 1270.9 | M21: 2.66816
A22: 12 | B22: ADANIENSOL | C22: 1029.2 | D22: 1031.78 | E22: 1017.47 | F22: 1005.73 | G22: 991.42 | H22: 1043.52 | I22: 1057.83 | J22: 1069.57 | K22: 1046.1 | L22: 1020.05 | M22: 13.68306
A23: 13 | B23: ADANIENT | C23: 3036.1 | D23: 3037.65 | E23: 3022.25 | F23: 3008.40 | G23: 2993.00 | H23: 3051.50 | I23: 3066.90 | J23: 3080.75 | K23: 3053.05 | L23: 3023.8 | M23: 13.71577
A24: 14 | B24: ADANIGREEN | C24: 1897.9 | D24: 1915.47 | E24: 1873.43 | F24: 1848.97 | G24: 1806.93 | H24: 1939.93 | I24: 1981.97 | J24: 2006.43 | K24: 1957.5 | L24: 1891 | M24: 9.2397
A25: 15 | B25: ADANIPORTS | C25: 1479.55 | D25: 1484.75 | E25: 1471.40 | F25: 1463.25 | G25: 1449.90 | H25: 1492.90 | I25: 1506.25 | J25: 1514.40 | K25: 1498.1 | L25: 1476.6 | M25: 8.82478
A26: 16 | B26: ADANIPOWER | C26: 659.1 | D26: 662.72 | E26: 653.43 | F26: 647.77 | G26: 638.48 | H26: 668.38 | I26: 677.67 | J26: 683.33 | K26: 672 | L26: 657.05 | M26: 39.30349
A27: 17 | B27: ATGL | C27: 851.1 | D27: 849.65 | E27: 844.30 | F27: 837.50 | G27: 832.15 | H27: 856.45 | I27: 861.80 | J27: 868.60 | K27: 855 | L27: 842.85 | M27: 37.33947
A28: 18 | B28: AWL | C28: 369.65 | D28: 372.32 | E28: 365.83 | F28: 362.02 | G28: 355.53 | H28: 376.13 | I28: 382.62 | J28: 386.43 | K28: 378.8 | L28: 368.5 | M28: 21.54336
A29: 19 | B29: ABCAPITAL | C29: 224.87 | D29: 225.91 | E29: 222.36 | F29: 219.86 | G29: 216.31 | H29: 228.41 | I29: 231.96 | J29: 234.46 | K29: 229.45 | L29: 223.4 | M29: 76.31591
A30: 20 | B30: ABFRL | C30: 315.8 | D30: 318.38 | E30: 312.67 | F30: 309.53 | G30: 303.82 | H30: 321.52 | I30: 327.23 | J30: 330.37 | K30: 324.1 | L30: 315.25 | M30: 53.56077
A31: 21 | B31: AEGISLOG | C31: 836.35 | D31: 827.48 | E31: 812.97 | F31: 789.58 | G31: 775.07 | H31: 850.87 | I31: 865.38 | J31: 888.77 | K31: 842 | L31: 804.1 | M31: 8.15685
A32: 22 | B32: AETHER | C32: 890.45 | D32: 888.52 | E32: 882.13 | F32: 873.82 | G32: 867.43 | H32: 896.83 | I32: 903.22 | J32: 911.53 | K32: 894.9 | L32: 880.2 | M32: 0.35118
A33: 23 | B33: AFFLE | C33: 1618.6 | D33: 1623.37 | E33: 1600.23 | F33: 1581.87 | G33: 1558.73 | H33: 1641.73 | I33: 1664.87 | J33: 1683.23 | K33: 1646.5 | L33: 1605 | M33: 1.66002
A34: 24 | B34: AJANTPHARM | C34: 3175.3 | D34: 3189.23 | E34: 3131.12 | F34: 3086.93 | G34: 3028.82 | H34: 3233.42 | I34: 3291.53 | J34: 3335.72 | K34: 3247.35 | L34: 3145.05 | M34: 0.99491
A35: 25 | B35: APLLTD | C35: 1066.85 | D35: 1062.28 | E35: 1044.57 | F35: 1022.28 | G35: 1004.57 | H35: 1084.57 | I35: 1102.28 | J35: 1124.57 | K35: 1080 | L35: 1040 | M35: 0.82008
A36: 26 | B36: ALKEM | C36: 6108.75 | D36: 6106.27 | E36: 6042.53 | F36: 5976.32 | G36: 5912.58 | H36: 6172.48 | I36: 6236.22 | J36: 6302.43 | K36: 6170 | L36: 6040.05 | M36: 1.49571
A37: 27 | B37: ALKYLAMINE | C37: 2117.1 | D37: 2118.05 | E37: 2094.05 | F37: 2071.00 | G37: 2047.00 | H37: 2141.10 | I37: 2165.10 | J37: 2188.15 | K37: 2142.05 | L37: 2095 | M37: 0.63824
A38: 28 | B38: ALLCARGO | C38: 67.99 | D38: 68.52 | E38: 67.08 | F38: 66.18 | G38: 64.74 | H38: 69.42 | I38: 70.86 | J38: 71.76 | K38: 69.95 | L38: 67.61 | M38: 38.59949
A39: 29 | B39: ALOKINDS | C39: 26.85 | D39: 26.73 | E39: 26.52 | F39: 26.18 | G39: 25.97 | H39: 27.07 | I39: 27.28 | J39: 27.62 | K39: 26.95 | L39: 26.4 | M39: 130.05106
A40: 30 | B40: ARE&M | C40: 1509.4 | D40: 1510.95 | E40: 1493.95 | F40: 1478.50 | G40: 1461.50 | H40: 1526.40 | I40: 1543.40 | J40: 1558.85 | K40: 1527.95 | L40: 1495.5 | M40: 3.09679
A41: 31 | B41: AMBER | C41: 4455.15 | D41: 4465.08 | E41: 4430.17 | F41: 4405.18 | G41: 4370.27 | H41: 4490.07 | I41: 4524.98 | J41: 4549.97 | K41: 4500 | L41: 4440.1 | M41: 0.53204
A42: 32 | B42: AMBUJACEM | C42: 617.8 | D42: 618.15 | E42: 613.80 | F42: 609.80 | G42: 605.45 | H42: 622.15 | I42: 626.50 | J42: 630.50 | K42: 622.5 | L42: 614.15 | M42: 25.46441
A43: 33 | B43: ANANDRATHI | C43: 3893.3 | D43: 3878.17 | E43: 3769.33 | F43: 3645.37 | G43: 3536.53 | H43: 4002.13 | I43: 4110.97 | J43: 4234.93 | K43: 3987 | L43: 3754.2 | M43: 0.52626
A44: 34 | B44: ANGELONE | C44: 2544.55 | D44: 2563.87 | E44: 2499.08 | F44: 2453.62 | G44: 2388.83 | H44: 2609.33 | I44: 2674.12 | J44: 2719.58 | K44: 2628.65 | L44: 2518.4 | M44: 6.8814
A45: 35 | B45: ANURAS | C45: 777.8 | D45: 775.60 | E45: 766.20 | F45: 754.60 | G45: 745.20 | H45: 787.20 | I45: 796.60 | J45: 808.20 | K45: 785 | L45: 764 | M45: 0.65589
A46: 36 | B46: APARINDS | C46: 8817.65 | D46: 8834.33 | E46: 8699.72 | F46: 8581.78 | G46: 8447.17 | H46: 8952.27 | I46: 9086.88 | J46: 9204.82 | K46: 8968.95 | L46: 8716.4 | M46: 0.93477
A47: 37 | B47: APOLLOHOSP | C47: 6844.85 | D47: 6868.37 | E47: 6810.93 | F47: 6777.02 | G47: 6719.58 | H47: 6902.28 | I47: 6959.72 | J47: 6993.63 | K47: 6925.8 | L47: 6834.45 | M47: 3.6199
A48: 38 | B48: APOLLOTYRE | C48: 502.9 | D48: 501.52 | E48: 499.08 | F48: 495.27 | G48: 492.83 | H48: 505.33 | I48: 507.77 | J48: 511.58 | K48: 503.95 | L48: 497.7 | M48: 13.04842
A49: 39 | B49: APTUS | C49: 321.35 | D49: 321.63 | E49: 318.37 | F49: 315.38 | G49: 312.12 | H49: 324.62 | I49: 327.88 | J49: 330.87 | K49: 324.9 | L49: 318.65 | M49: 3.67066
A50: 40 | B50: ACI | C50: 720.8 | D50: 720.05 | E50: 712.20 | F50: 703.60 | G50: 695.75 | H50: 728.65 | I50: 736.50 | J50: 745.10 | K50: 727.9 | L50: 711.45 | M50: 6.28033
A51: 41 | B51: ASAHIINDIA | C51: 656.5 | D51: 654.05 | E51: 637.20 | F51: 617.90 | G51: 601.05 | H51: 673.35 | I51: 690.20 | J51: 709.50 | K51: 670.9 | L51: 634.75 | M51: 2.51879
A52: 42 | B52: ASHOKLEY | C52: 251 | D52: 251.15 | E52: 249.80 | F52: 248.60 | G52: 247.25 | H52: 252.35 | I52: 253.70 | J52: 254.90 | K52: 252.5 | L52: 249.95 | M52: 63.18452
A53: 43 | B53: ASIANPAINT | C53: 3154.85 | D53: 3158.97 | E53: 3143.38 | F53: 3131.92 | G53: 3116.33 | H53: 3170.43 | I53: 3186.02 | J53: 3197.48 | K53: 3174.55 | L53: 3147.5 | M53: 5.77471
A54: 44 | B54: ASTERDM | C54: 400.3 | D54: 402.57 | E54: 397.18 | F54: 394.07 | G54: 388.68 | H54: 405.68 | I54: 411.07 | J54: 414.18 | K54: 407.95 | L54: 399.45 | M54: 4.1057
A55: 45 | B55: ASTRAZEN | C55: 6876.9 | D55: 6859.98 | E55: 6730.97 | F55: 6585.03 | G55: 6456.02 | H55: 7005.92 | I55: 7134.93 | J55: 7280.87 | K55: 6989 | L55: 6714.05 | M55: 0.23194
A56: 46 | B56: ASTRAL | C56: 1926.05 | D56: 1928.77 | E56: 1913.83 | F56: 1901.62 | G56: 1886.68 | H56: 1940.98 | I56: 1955.92 | J56: 1968.13 | K56: 1943.7 | L56: 1916.55 | M56: 3.30865
A57: 47 | B57: ATUL | C57: 7927.1 | D57: 7949.93 | E57: 7866.87 | F57: 7806.63 | G57: 7723.57 | H57: 8010.17 | I57: 8093.23 | J57: 8153.47 | K57: 8033 | L57: 7889.7 | M57: 0.29893
A58: 48 | B58: AUROPHARMA | C58: 1549.4 | D58: 1555.20 | E58: 1540.60 | F58: 1531.80 | G58: 1517.20 | H58: 1564.00 | I58: 1578.60 | J58: 1587.40 | K58: 1569.8 | L58: 1546.4 | M58: 10.33542
A59: 49 | B59: AVANTIFEED | C59: 679.2 | D59: 678.62 | E59: 669.23 | F59: 659.27 | G59: 649.88 | H59: 688.58 | I59: 697.97 | J59: 707.93 | K59: 688 | L59: 668.65 | M59: 5.68842
A60: 50 | B60: DMART | C60: 4980.6 | D60: 4995.13 | E60: 4950.47 | F60: 4920.33 | G60: 4875.67 | H60: 5025.27 | I60: 5069.93 | J60: 5100.07 | K60: 5039.8 | L60: 4965 | M60: 2.22027
A61: 51 | B61: AXISBANK | C61: 1191.6 | D61: 1187.28 | E61: 1181.02 | F61: 1170.43 | G61: 1164.17 | H61: 1197.87 | I61: 1204.13 | J61: 1214.72 | K61: 1193.55 | L61: 1176.7 | M61: 79.20246
A62: 52 | B62: BEML | C62: 3850.75 | D62: 3869.18 | E62: 3803.37 | F62: 3755.98 | G62: 3690.17 | H62: 3916.57 | I62: 3982.38 | J62: 4029.77 | K62: 3935 | L62: 3821.8 | M62: 4.02735
A63: 53 | B63: BLS | C63: 429.75 | D63: 429.65 | E63: 423.40 | F63: 417.05 | G63: 410.80 | H63: 436.00 | I63: 442.25 | J63: 448.60 | K63: 435.9 | L63: 423.3 | M63: 28.18922
A64: 54 | B64: BSE | C64: 2731.95 | D64: 2736.75 | E64: 2695.30 | F64: 2658.65 | G64: 2617.20 | H64: 2773.40 | I64: 2814.85 | J64: 2851.50 | K64: 2778.2 | L64: 2700.1 | M64: 4.36496
A65: 55 | B65: BAJAJ-AUTO | C65: 11043.65 | D65: 11059.12 | E65: 10999.53 | F65: 10955.42 | G65: 10895.83 | H65: 11103.23 | I65: 11162.82 | J65: 11206.93 | K65: 11118.7 | L65: 11015 | M65: 2.17394
A66: 56 | B66: BAJFINANCE | C66: 7353.8 | D66: 7339.97 | E66: 7219.93 | F66: 7086.07 | G66: 6966.03 | H66: 7473.83 | I66: 7593.87 | J66: 7727.73 | K66: 7460 | L66: 7206.1 | M66: 18.98656
A67: 57 | B67: BAJAJFINSV | C67: 1865.6 | D67: 1849.50 | E67: 1828.05 | F67: 1790.50 | G67: 1769.05 | H67: 1887.05 | I67: 1908.50 | J67: 1946.05 | K67: 1870.95 | L67: 1811.95 | M67: 44.29269
A68: 58 | B68: BAJAJHLDNG | C68: 10903.9 | D68: 10817.17 | E68: 10655.23 | F68: 10406.57 | G68: 10244.63 | H68: 11065.83 | I68: 11227.77 | J68: 11476.43 | K68: 10979.1 | L68: 10568.5 | M68: 2.01716
A69: 59 | B69: BALAMINES | C69: 2197.45 | D69: 2203.83 | E69: 2183.67 | F69: 2169.88 | G69: 2149.72 | H69: 2217.62 | I69: 2237.78 | J69: 2251.57 | K69: 2224 | L69: 2190.05 | M69: 0.3122
A70: 60 | B70: BALKRISIND | C70: 2926.1 | D70: 2912.03 | E70: 2884.07 | F70: 2842.03 | G70: 2814.07 | H70: 2954.07 | I70: 2982.03 | J70: 3024.07 | K70: 2940 | L70: 2870 | M70: 5.23409
A71: 61 | B71: BALRAMCHIN | C71: 587.65 | D71: 588.73 | E71: 583.42 | F71: 579.18 | G71: 573.87 | H71: 592.97 | I71: 598.28 | J71: 602.52 | K71: 594.05 | L71: 584.5 | M71: 7.71606
A72: 62 | B72: BANDHANBNK | C72: 201.37 | D72: 202.23 | E72: 199.85 | F72: 198.34 | G72: 195.96 | H72: 203.74 | I72: 206.12 | J72: 207.63 | K72: 204.6 | L72: 200.71 | M72: 138.61713
A73: 63 | B73: BANKBARODA | C73: 250.7 | D73: 251.90 | E73: 249.15 | F73: 247.60 | G73: 244.85 | H73: 253.45 | I73: 256.20 | J73: 257.75 | K73: 254.65 | L73: 250.35 | M73: 93.89384
A74: 64 | B74: BANKINDIA | C74: 118.9 | D74: 118.48 | E74: 117.58 | F74: 116.25 | G74: 115.35 | H74: 119.81 | I74: 120.71 | J74: 122.04 | K74: 119.39 | L74: 117.16 | M74: 53.73501
A75: 65 | B75: MAHABANK | C75: 61.86 | D75: 62.00 | E75: 61.66 | F75: 61.45 | G75: 61.11 | H75: 62.21 | I75: 62.55 | J75: 62.76 | K75: 62.35 | L75: 61.8 | M75: 36.24567
A76: 66 | B76: BATAINDIA | C76: 1467.85 | D76: 1467.38 | E76: 1457.82 | F76: 1447.78 | G76: 1438.22 | H76: 1477.42 | I76: 1486.98 | J76: 1497.02 | K76: 1476.95 | L76: 1457.35 | M76: 2.98888
A77: 67 | B77: BAYERCROP | C77: 6368.25 | D77: 6385.42 | E77: 6332.83 | F77: 6297.42 | G77: 6244.83 | H77: 6420.83 | I77: 6473.42 | J77: 6508.83 | K77: 6438 | L77: 6350 | M77: 0.21327
A78: 68 | B78: BERGEPAINT | C78: 576.8 | D78: 577.62 | E78: 574.23 | F78: 571.67 | G78: 568.28 | H78: 580.18 | I78: 583.57 | J78: 586.13 | K78: 581 | L78: 575.05 | M78: 4.71349
A79: 69 | B79: BDL | C79: 1320.25 | D79: 1330.08 | E79: 1305.17 | F79: 1290.08 | G79: 1265.17 | H79: 1345.17 | I79: 1370.08 | J79: 1385.17 | K79: 1355 | L79: 1315 | M79: 17.64895
A80: 70 | B80: BEL | C80: 297.15 | D80: 298.42 | E80: 295.48 | F80: 293.82 | G80: 290.88 | H80: 300.08 | I80: 303.02 | J80: 304.68 | K80: 301.35 | L80: 296.75 | M80: 139.71488
A81: 71 | B81: BHARATFORG | C81: 1567.1 | D81: 1574.07 | E81: 1557.08 | F81: 1547.07 | G81: 1530.08 | H81: 1584.08 | I81: 1601.07 | J81: 1611.08 | K81: 1591.05 | L81: 1564.05 | M81: 8.78145
A82: 72 | B82: BHEL | C82: 286.35 | D82: 287.47 | E82: 284.73 | F82: 283.12 | G82: 280.38 | H82: 289.08 | I82: 291.82 | J82: 293.43 | K82: 290.2 | L82: 285.85 | M82: 56.77328
A83: 73 | B83: BPCL | C83: 355.4 | D83: 356.20 | E83: 352.70 | F83: 350.00 | G83: 346.50 | H83: 358.90 | I83: 362.40 | J83: 365.10 | K83: 359.7 | L83: 353.5 | M83: 92.89259
A84: 74 | B84: BHARTIARTL | C84: 1560.6 | D84: 1566.07 | E84: 1553.13 | F84: 1545.67 | G84: 1532.73 | H84: 1573.53 | I84: 1586.47 | J84: 1593.93 | K84: 1579 | L84: 1558.6 | M84: 45.46295
A85: 75 | B85: BIKAJI | C85: 871.35 | D85: 864.78 | E85: 845.77 | F85: 820.18 | G85: 801.17 | H85: 890.37 | I85: 909.38 | J85: 934.97 | K85: 883.8 | L85: 839.2 | M85: 11.64842
A86: 76 | B86: BIOCON | C86: 361.9 | D86: 363.22 | E86: 359.73 | F86: 357.57 | G86: 354.08 | H86: 365.38 | I86: 368.87 | J86: 371.03 | K86: 366.7 | L86: 361.05 | M86: 25.13914
A87: 77 | B87: BIRLACORPN | C87: 1333.1 | D87: 1330.68 | E87: 1322.77 | F87: 1312.43 | G87: 1304.52 | H87: 1341.02 | I87: 1348.93 | J87: 1359.27 | K87: 1338.6 | L87: 1320.35 | M87: 0.54031
A88: 78 | B88: BSOFT | C88: 669.3 | D88: 670.25 | E88: 661.55 | F88: 653.80 | G88: 645.10 | H88: 678.00 | I88: 686.70 | J88: 694.45 | K88: 678.95 | L88: 662.5 | M88: 22.30806
A89: 79 | B89: BLUEDART | C89: 8294.95 | D89: 8237.12 | E89: 8119.23 | F89: 7943.52 | G89: 7825.63 | H89: 8412.83 | I89: 8530.72 | J89: 8706.43 | K89: 8355 | L89: 8061.4 | M89: 0.19248
A90: 80 | B90: BLUESTARCO | C90: 1683.75 | D90: 1673.92 | E90: 1659.83 | F90: 1635.92 | G90: 1621.83 | H90: 1697.83 | I90: 1711.92 | J90: 1735.83 | K90: 1688 | L90: 1650 | M90: 2.2668
A91: 81 | B91: BBTC | C91: 2673.75 | D91: 2619.92 | E91: 2528.83 | F91: 2383.92 | G91: 2292.83 | H91: 2764.83 | I91: 2855.92 | J91: 3000.83 | K91: 2711 | L91: 2475 | M91: 26.1557
A92: 82 | B92: BORORENEW | C92: 506.5 | D92: 508.83 | E92: 501.72 | F92: 496.93 | G92: 489.82 | H92: 513.62 | I92: 520.73 | J92: 525.52 | K92: 515.95 | L92: 504.05 | M92: 3.11403
A93: 83 | B93: BOSCHLTD | C93: 32399.25 | D93: 32467.95 | E93: 32151.30 | F93: 31903.35 | G93: 31586.70 | H93: 32715.90 | I93: 33032.55 | J93: 33280.50 | K93: 32784.6 | L93: 32220 | M93: 0.29277
A94: 84 | B94: BRIGADE | C94: 1245.1 | D94: 1262.03 | E94: 1222.07 | F94: 1199.03 | G94: 1159.07 | H94: 1285.07 | I94: 1325.03 | J94: 1348.07 | K94: 1302 | L94: 1239 | M94: 9.97978
A95: 85 | B95: BRITANNIA | C95: 5916.05 | D95: 5910.02 | E95: 5876.03 | F95: 5836.02 | G95: 5802.03 | H95: 5950.03 | I95: 5984.02 | J95: 6024.03 | K95: 5944 | L95: 5870 | M95: 2.58133
A96: 86 | B96: MAPMYINDIA | C96: 2067.65 | D96: 2086.43 | E96: 2042.87 | F96: 2018.08 | G96: 1974.52 | H96: 2111.22 | I96: 2154.78 | J96: 2179.57 | K96: 2130 | L96: 2061.65 | M96: 1.50233
A97: 87 | B97: CCL | C97: 721.7 | D97: 724.33 | E97: 715.17 | F97: 708.63 | G97: 699.47 | H97: 730.87 | I97: 740.03 | J97: 746.57 | K97: 733.5 | L97: 717.8 | M97: 0.83087
A98: 88 | B98: CESC | C98: 197.77 | D98: 197.27 | E98: 195.20 | F98: 192.64 | G98: 190.57 | H98: 199.83 | I98: 201.90 | J98: 204.46 | K98: 199.33 | L98: 194.7 | M98: 53.26356
A99: 89 | B99: CGPOWER | C99: 689.4 | D99: 688.85 | E99: 682.05 | F99: 674.70 | G99: 667.90 | H99: 696.20 | I99: 703.00 | J99: 710.35 | K99: 695.65 | L99: 681.5 | M99: 19.53579
A100: 90 | B100: CIEINDIA | C100: 585.05 | D100: 590.40 | E100: 577.95 | F100: 570.85 | G100: 558.40 | H100: 597.50 | I100: 609.95 | J100: 617.05 | K100: 602.85 | L100: 583.3 | M100: 7.84193
A101: 91 | B101: CRISIL | C101: 4640.55 | D101: 4608.72 | E101: 4568.43 | F101: 4496.32 | G101: 4456.03 | H101: 4680.83 | I101: 4721.12 | J101: 4793.23 | K101: 4649 | L101: 4536.6 | M101: 0.41314
A102: 92 | B102: CSBBANK | C102: 323.35 | D102: 324.25 | E102: 321.55 | F102: 319.75 | G102: 317.05 | H102: 326.05 | I102: 328.75 | J102: 330.55 | K102: 326.95 | L102: 322.45 | M102: 1.46411
A103: 93 | B103: CAMPUS | C103: 276.1 | D103: 276.38 | E103: 273.27 | F103: 270.43 | G103: 267.32 | H103: 279.22 | I103: 282.33 | J103: 285.17 | K103: 279.5 | L103: 273.55 | M103: 3.45117
A104: 94 | B104: CANFINHOME | C104: 882.9 | D104: 883.88 | E104: 877.77 | F104: 872.63 | G104: 866.52 | H104: 889.02 | I104: 895.13 | J104: 900.27 | K104: 890 | L104: 878.75 | M104: 2.90414
A105: 95 | B105: CANBK | C105: 111.42 | D105: 112.03 | E105: 110.59 | F105: 109.77 | G105: 108.33 | H105: 112.85 | I105: 114.29 | J105: 115.11 | K105: 113.46 | L105: 111.2 | M105: 167.64307
A106: 96 | B106: CAPLIPOINT | C106: 1933.6 | D106: 1919.25 | E106: 1888.50 | F106: 1843.40 | G106: 1812.65 | H106: 1964.35 | I106: 1995.10 | J106: 2040.20 | K106: 1950 | L106: 1874.15 | M106: 2.79064
A107: 97 | B107: CGCL | C107: 212.1 | D107: 210.83 | E107: 208.27 | F107: 204.43 | G107: 201.87 | H107: 214.67 | I107: 217.23 | J107: 221.07 | K107: 213.4 | L107: 207 | M107: 5.81312
A108: 98 | B108: CARBORUNIV | C108: 1515 | D108: 1517.88 | E108: 1503.77 | F108: 1492.53 | G108: 1478.42 | H108: 1529.12 | I108: 1543.23 | J108: 1554.47 | K108: 1532 | L108: 1506.65 | M108: 1.74275
A109: 99 | B109: CASTROLIND | C109: 268.5 | D109: 268.65 | E109: 262.80 | F109: 257.10 | G109: 251.25 | H109: 274.35 | I109: 280.20 | J109: 285.90 | K109: 274.5 | L109: 262.95 | M109: 124.45079
A110: 100 | B110: CEATLTD | C110: 2848.55 | D110: 2845.67 | E110: 2806.43 | F110: 2764.32 | G110: 2725.08 | H110: 2887.78 | I110: 2927.02 | J110: 2969.13 | K110: 2884.9 | L110: 2803.55 | M110: 2.39229
A111: 101 | B111: CELLO | C111: 906.85 | D111: 905.33 | E111: 895.67 | F111: 884.48 | G111: 874.82 | H111: 916.52 | I111: 926.18 | J111: 937.37 | K111: 915 | L111: 894.15 | M111: 0.81651
A112: 102 | B112: CENTRALBK | C112: 60.69 | D112: 60.84 | E112: 60.45 | F112: 60.22 | G112: 59.83 | H112: 61.07 | I112: 61.46 | J112: 61.69 | K112: 61.22 | L112: 60.6 | M112: 20.1919
A113: 103 | B113: CDSL | C113: 1421.45 | D113: 1426.50 | E113: 1411.55 | F113: 1401.65 | G113: 1386.70 | H113: 1436.40 | I113: 1451.35 | J113: 1461.25 | K113: 1441.45 | L113: 1416.6 | M113: 17.52812
A114: 104 | B114: CENTURYPLY | C114: 797.7 | D114: 794.68 | E114: 790.37 | F114: 783.03 | G114: 778.72 | H114: 802.02 | I114: 806.33 | J114: 813.67 | K114: 799 | L114: 787.35 | M114: 0.93696
A115: 105 | B115: CENTURYTEX | C115: 2292.45 | D115: 2306.42 | E115: 2268.03 | F115: 2243.62 | G115: 2205.23 | H115: 2330.83 | I115: 2369.22 | J115: 2393.63 | K115: 2344.8 | L115: 2282 | M115: 1.23233
A116: 106 | B116: CERA | C116: 9058.8 | D116: 9165.00 | E116: 8928.80 | F116: 8798.80 | G116: 8562.60 | H116: 9295.00 | I116: 9531.20 | J116: 9661.20 | K116: 9401.2 | L116: 9035 | M116: 0.28348
A117: 107 | B117: CHALET | C117: 876.05 | D117: 869.42 | E117: 859.83 | F117: 843.62 | G117: 834.03 | H117: 885.63 | I117: 895.22 | J117: 911.43 | K117: 879 | L117: 853.2 | M117: 2.49602
A118: 108 | B118: CHAMBLFERT | C118: 528.45 | D118: 530.08 | E118: 525.17 | F118: 521.88 | G118: 516.97 | H118: 533.37 | I118: 538.28 | J118: 541.57 | K118: 535 | L118: 526.8 | M118: 12.97614
A119: 109 | B119: CHEMPLASTS | C119: 499.6 | D119: 499.92 | E119: 497.18 | F119: 494.77 | G119: 492.03 | H119: 502.33 | I119: 505.07 | J119: 507.48 | K119: 502.65 | L119: 497.5 | M119: 1.24913
A120: 110 | B120: CHENNPETRO | C120: 983.45 | D120: 983.10 | E120: 978.80 | F120: 974.15 | G120: 969.85 | H120: 987.75 | I120: 992.05 | J120: 996.70 | K120: 987.4 | L120: 978.45 | M120: 2.3351
A121: 111 | B121: CHOLAHLDNG | C121: 1683.1 | D121: 1686.37 | E121: 1662.73 | F121: 1642.37 | G121: 1618.73 | H121: 1706.73 | I121: 1730.37 | J121: 1750.73 | K121: 1710 | L121: 1666 | M121: 2.86802
A122: 112 | B122: CHOLAFIN | C122: 1500 | D122: 1490.52 | E122: 1474.58 | F122: 1449.17 | G122: 1433.23 | H122: 1515.93 | I122: 1531.87 | J122: 1557.28 | K122: 1506.45 | L122: 1465.1 | M122: 19.47168
A123: 113 | B123: CIPLA | C123: 1653.2 | D123: 1652.12 | E123: 1644.38 | F123: 1635.57 | G123: 1627.83 | H123: 1660.93 | I123: 1668.67 | J123: 1677.48 | K123: 1659.85 | L123: 1643.3 | M123: 12.64708
A124: 114 | B124: CUB | C124: 169.29 | D124: 169.91 | E124: 168.31 | F124: 167.34 | G124: 165.74 | H124: 170.88 | I124: 172.48 | J124: 173.45 | K124: 171.5 | L124: 168.93 | M124: 13.50702
A125: 115 | B125: CLEAN | C125: 1478.9 | D125: 1482.30 | E125: 1466.60 | F125: 1454.30 | G125: 1438.60 | H125: 1494.60 | I125: 1510.30 | J125: 1522.60 | K125: 1498 | L125: 1470 | M125: 0.8411
A126: 116 | B126: COALINDIA | C126: 519.6 | D126: 520.48 | E126: 517.37 | F126: 515.13 | G126: 512.02 | H126: 522.72 | I126: 525.83 | J126: 528.07 | K126: 523.6 | L126: 518.25 | M126: 55.26155
A127: 117 | B127: COCHINSHIP | C127: 1881.2 | D127: 1897.47 | E127: 1847.23 | F127: 1813.27 | G127: 1763.03 | H127: 1931.43 | I127: 1981.67 | J127: 2015.63 | K127: 1947.7 | L127: 1863.5 | M127: 48.5291
A128: 118 | B128: COFORGE | C128: 6407.6 | D128: 6382.33 | E128: 6339.12 | F128: 6270.63 | G128: 6227.42 | H128: 6450.82 | I128: 6494.03 | J128: 6562.52 | K128: 6425.55 | L128: 6313.85 | M128: 1.96286
A129: 119 | B129: COLPAL | C129: 3635.4 | D129: 3645.55 | E129: 3615.60 | F129: 3595.80 | G129: 3565.85 | H129: 3665.35 | I129: 3695.30 | J129: 3715.10 | K129: 3675.5 | L129: 3625.75 | M129: 2.79293
A130: 120 | B130: CAMS | C130: 4378.9 | D130: 4394.30 | E130: 4344.60 | F130: 4310.30 | G130: 4260.60 | H130: 4428.60 | I130: 4478.30 | J130: 4512.60 | K130: 4444 | L130: 4360 | M130: 1.26821
A131: 121 | B131: CONCORDBIO | C131: 1768.65 | D131: 1760.23 | E131: 1742.97 | F131: 1717.28 | G131: 1700.02 | H131: 1785.92 | I131: 1803.18 | J131: 1828.87 | K131: 1777.5 | L131: 1734.55 | M131: 2.51338
A132: 122 | B132: CONCOR | C132: 974.9 | D132: 971.88 | E132: 964.27 | F132: 953.63 | G132: 946.02 | H132: 982.52 | I132: 990.13 | J132: 1000.77 | K132: 979.5 | L132: 961.25 | M132: 13.71843
A133: 123 | B133: COROMANDEL | C133: 1732.2 | D133: 1742.07 | E133: 1718.73 | F133: 1705.27 | G133: 1681.93 | H133: 1755.53 | I133: 1778.87 | J133: 1792.33 | K133: 1765.4 | L133: 1728.6 | M133: 3.93536
A134: 124 | B134: CRAFTSMAN | C134: 5834.8 | D134: 5858.37 | E134: 5778.93 | F134: 5723.07 | G134: 5643.63 | H134: 5914.23 | I134: 5993.67 | J134: 6049.53 | K134: 5937.8 | L134: 5802.5 | M134: 0.29679
A135: 125 | B135: CREDITACC | C135: 1209.7 | D135: 1211.18 | E135: 1204.37 | F135: 1199.03 | G135: 1192.22 | H135: 1216.52 | I135: 1223.33 | J135: 1228.67 | K135: 1218 | L135: 1205.85 | M135: 0.83719
A136: 126 | B136: CROMPTON | C136: 469.6 | D136: 470.53 | E136: 463.57 | F136: 457.53 | G136: 450.57 | H136: 476.57 | I136: 483.53 | J136: 489.57 | K136: 477.5 | L136: 464.5 | M136: 19.92487
A137: 127 | B137: CUMMINSIND | C137: 3831.25 | D137: 3829.53 | E137: 3816.22 | F137: 3801.18 | G137: 3787.87 | H137: 3844.57 | I137: 3857.88 | J137: 3872.92 | K137: 3842.85 | L137: 3814.5 | M137: 4.68471
A138: 128 | B138: CYIENT | C138: 2001.35 | D138: 2001.78 | E138: 1988.57 | F138: 1975.78 | G138: 1962.57 | H138: 2014.57 | I138: 2027.78 | J138: 2040.57 | K138: 2015 | L138: 1989 | M138: 1.96791
A139: 129 | B139: DCMSHRIRAM | C139: 1140.2 | D139: 1145.62 | E139: 1131.93 | F139: 1123.67 | G139: 1109.98 | H139: 1153.88 | I139: 1167.57 | J139: 1175.83 | K139: 1159.3 | L139: 1137.35 | M139: 0.44437
A140: 130 | B140: DLF | C140: 847.6 | D140: 851.00 | E140: 842.75 | F140: 837.90 | G140: 829.65 | H140: 855.85 | I140: 864.10 | J140: 868.95 | K140: 859.25 | L140: 846.15 | M140: 24.02444
A141: 131 | B141: DOMS | C141: 2610.5 | D141: 2633.25 | E141: 2575.50 | F141: 2540.50 | G141: 2482.75 | H141: 2668.25 | I141: 2726.00 | J141: 2761.00 | K141: 2691 | L141: 2598.25 | M141: 1.46834
A142: 132 | B142: DABUR | C142: 638.2 | D142: 640.65 | E142: 632.80 | F142: 627.40 | G142: 619.55 | H142: 646.05 | I142: 653.90 | J142: 659.30 | K142: 648.5 | L142: 635.25 | M142: 17.75357
A143: 133 | B143: DALBHARAT | C143: 1915.5 | D143: 1916.50 | E143: 1903.00 | F143: 1890.50 | G143: 1877.00 | H143: 1929.00 | I143: 1942.50 | J143: 1955.00 | K143: 1930 | L143: 1904 | M143: 2.20625
A144: 134 | B144: DATAPATTNS | C144: 2737.1 | D144: 2764.50 | E144: 2695.15 | F144: 2653.20 | G144: 2583.85 | H144: 2806.45 | I144: 2875.80 | J144: 2917.75 | K144: 2833.85 | L144: 2722.55 | M144: 2.40483
A145: 135 | B145: DEEPAKFERT | C145: 1053.55 | D145: 1061.52 | E145: 1034.03 | F145: 1014.52 | G145: 987.03 | H145: 1081.03 | I145: 1108.52 | J145: 1128.03 | K145: 1089 | L145: 1042 | M145: 8.27092
A146: 136 | B146: DEEPAKNTR | C146: 2933.95 | D146: 2929.57 | E146: 2909.38 | F146: 2884.82 | G146: 2864.63 | H146: 2954.13 | I146: 2974.32 | J146: 2998.88 | K146: 2949.75 | L146: 2905 | M146: 4.4743
A147: 137 | B147: DELHIVERY | C147: 425.1 | D147: 423.50 | E147: 419.30 | F147: 413.50 | G147: 409.30 | H147: 429.30 | I147: 433.50 | J147: 439.30 | K147: 427.7 | L147: 417.7 | M147: 17.09216
A148: 138 | B148: DEVYANI | C148: 179.06 | D148: 178.25 | E148: 176.71 | F148: 174.35 | G148: 172.81 | H148: 180.61 | I148: 182.15 | J148: 184.51 | K148: 179.8 | L148: 175.9 | M148: 11.05575
A149: 139 | B149: DIVISLAB | C149: 5066 | D149: 5067.00 | E149: 5035.55 | F149: 5005.10 | G149: 4973.65 | H149: 5097.45 | I149: 5128.90 | J149: 5159.35 | K149: 5098.45 | L149: 5036.55 | M149: 2.88902
A150: 140 | B150: DIXON | C150: 12991.8 | D150: 12883.20 | E150: 12746.40 | F150: 12501.00 | G150: 12364.20 | H150: 13128.60 | I150: 13265.40 | J150: 13510.80 | K150: 13020 | L150: 12637.8 | M150: 5.65598
A151: 141 | B151: LALPATHLAB | C151: 3373.75 | D151: 3390.82 | E151: 3346.63 | F151: 3319.52 | G151: 3275.33 | H151: 3417.93 | I151: 3462.12 | J151: 3489.23 | K151: 3435 | L151: 3363.7 | M151: 1.37713
A152: 142 | B152: DRREDDY | C152: 6853.85 | D152: 6871.95 | E152: 6829.90 | F152: 6805.95 | G152: 6763.90 | H152: 6895.90 | I152: 6937.95 | J152: 6961.90 | K152: 6914 | L152: 6848 | M152: 2.49361
A153: 143 | B153: EIDPARRY | C153: 820.3 | D153: 821.85 | E153: 810.70 | F153: 801.10 | G153: 789.95 | H153: 831.45 | I153: 842.60 | J153: 852.20 | K153: 833 | L153: 812.25 | M153: 2.38222
A154: 144 | B154: EIHOTEL | C154: 378.75 | D154: 377.70 | E154: 375.40 | F154: 372.05 | G154: 369.75 | H154: 381.05 | I154: 383.35 | J154: 386.70 | K154: 380 | L154: 374.35 | M154: 3.40422
A155: 145 | B155: EPL | C155: 250.08 | D155: 251.62 | E155: 246.44 | F155: 242.80 | G155: 237.62 | H155: 255.26 | I155: 260.44 | J155: 264.08 | K155: 256.8 | L155: 247.98 | M155: 18.91274
A156: 146 | B156: EASEMYTRIP | C156: 38.94 | D156: 39.12 | E156: 38.67 | F156: 38.39 | G156: 37.94 | H156: 39.40 | I156: 39.85 | J156: 40.13 | K156: 39.58 | L156: 38.85 | M156: 79.80127
A157: 147 | B157: EICHERMOT | C157: 4865.8 | D157: 4887.28 | E157: 4834.57 | F157: 4803.33 | G157: 4750.62 | H157: 4918.52 | I157: 4971.23 | J157: 5002.47 | K157: 4940 | L157: 4856.05 | M157: 2.63404
A158: 148 | B158: ELECON | C158: 626.8 | D158: 626.12 | E158: 621.18 | F158: 615.57 | G158: 610.63 | H158: 631.73 | I158: 636.67 | J158: 642.28 | K158: 631.05 | L158: 620.5 | M158: 1.7578
A159: 149 | B159: ELGIEQUIP | C159: 700.8 | D159: 702.28 | E159: 695.57 | F159: 690.33 | G159: 683.62 | H159: 707.52 | I159: 714.23 | J159: 719.47 | K159: 709 | L159: 697.05 | M159: 1.49021
A160: 150 | B160: EMAMILTD | C160: 822.35 | D160: 823.47 | E160: 807.13 | F160: 791.92 | G160: 775.58 | H160: 838.68 | I160: 855.02 | J160: 870.23 | K160: 839.8 | L160: 808.25 | M160: 6.04137
A161: 151 | B161: ENDURANCE | C161: 2505.05 | D161: 2496.05 | E161: 2479.45 | F161: 2453.85 | G161: 2437.25 | H161: 2521.65 | I161: 2538.25 | J161: 2563.85 | K161: 2512.65 | L161: 2470.45 | M161: 0.6614
A162: 152 | B162: ENGINERSIN | C162: 222.19 | D162: 222.94 | E162: 220.30 | F162: 218.40 | G162: 215.76 | H162: 224.84 | I162: 227.48 | J162: 229.38 | K162: 225.59 | L162: 221.05 | M162: 24.86695
A163: 153 | B163: EQUITASBNK | C163: 83.55 | D163: 82.90 | E163: 81.90 | F163: 80.25 | G163: 79.25 | H163: 84.55 | I163: 85.55 | J163: 87.20 | K163: 83.9 | L163: 81.25 | M163: 46.49158
A164: 154 | B164: ERIS | C164: 1454.55 | D164: 1448.18 | E164: 1423.37 | F164: 1392.18 | G164: 1367.37 | H164: 1479.37 | I164: 1504.18 | J164: 1535.37 | K164: 1473 | L164: 1417 | M164: 3.31326
A165: 155 | B165: ESCORTS | C165: 3793.85 | D165: 3796.50 | E165: 3766.15 | F165: 3738.45 | G165: 3708.10 | H165: 3824.20 | I165: 3854.55 | J165: 3882.25 | K165: 3826.85 | L165: 3768.8 | M165: 0.92739
A166: 156 | B166: EXIDEIND | C166: 488.85 | D166: 490.07 | E166: 487.13 | F166: 485.42 | G166: 482.48 | H166: 491.78 | I166: 494.72 | J166: 496.43 | K166: 493 | L166: 488.35 | M166: 13.39877
A167: 157 | B167: FDC | C167: 546.65 | D167: 545.42 | E167: 540.83 | F167: 535.02 | G167: 530.43 | H167: 551.23 | I167: 555.82 | J167: 561.63 | K167: 550 | L167: 539.6 | M167: 2.66306
A168: 158 | B168: NYKAA | C168: 209.19 | D168: 207.96 | E168: 205.47 | F168: 201.75 | G168: 199.26 | H168: 211.68 | I168: 214.17 | J168: 217.89 | K168: 210.45 | L168: 204.24 | M168: 95.3216
A169: 159 | B169: FEDERALBNK | C169: 194.61 | D169: 195.24 | E169: 193.62 | F169: 192.64 | G169: 191.02 | H169: 196.22 | I169: 197.84 | J169: 198.82 | K169: 196.85 | L169: 194.25 | M169: 52.79057
A170: 160 | B170: FACT | C170: 997.55 | D170: 995.68 | E170: 982.37 | F170: 967.18 | G170: 953.87 | H170: 1010.87 | I170: 1024.18 | J170: 1039.37 | K170: 1009 | L170: 980.5 | M170: 3.24741
A171: 161 | B171: FINEORG | C171: 5403.15 | D171: 5364.48 | E171: 5288.97 | F171: 5174.78 | G171: 5099.27 | H171: 5478.67 | I171: 5554.18 | J171: 5668.37 | K171: 5440 | L171: 5250.3 | M171: 0.29516
A172: 162 | B172: FINCABLES | C172: 1443.45 | D172: 1451.12 | E172: 1432.33 | F172: 1421.22 | G172: 1402.43 | H172: 1462.23 | I172: 1481.02 | J172: 1492.13 | K172: 1469.9 | L172: 1440 | M172: 1.07344
A173: 163 | B173: FINPIPE | C173: 310.95 | D173: 311.40 | E173: 308.65 | F173: 306.35 | G173: 303.60 | H173: 313.70 | I173: 316.45 | J173: 318.75 | K173: 314.15 | L173: 309.1 | M173: 6.84938
A174: 164 | B174: FSL | C174: 312.15 | D174: 314.37 | E174: 307.83 | F174: 303.52 | G174: 296.98 | H174: 318.68 | I174: 325.22 | J174: 329.53 | K174: 320.9 | L174: 310.05 | M174: 49.505
A175: 165 | B175: FIVESTAR | C175: 763.5 | D175: 765.48 | E175: 757.82 | F175: 752.13 | G175: 744.47 | H175: 771.17 | I175: 778.83 | J175: 784.52 | K175: 773.15 | L175: 759.8 | M175: 4.26309
A176: 166 | B176: FORTIS | C176: 563.4 | D176: 564.75 | E176: 560.40 | F176: 557.40 | G176: 553.05 | H176: 567.75 | I176: 572.10 | J176: 575.10 | K176: 569.1 | L176: 561.75 | M176: 10.39483
A177: 167 | B177: GAIL | C177: 232.53 | D177: 233.15 | E177: 230.53 | F177: 228.53 | G177: 225.91 | H177: 235.15 | I177: 237.77 | J177: 239.77 | K177: 235.77 | L177: 231.15 | M177: 114.68711
A178: 168 | B178: GMMPFAUDLR | C178: 1350.4 | D178: 1358.43 | E178: 1339.97 | F178: 1329.53 | G178: 1311.07 | H178: 1368.87 | I178: 1387.33 | J178: 1397.77 | K178: 1376.9 | L178: 1348 | M178: 1.45734
A179: 169 | B179: GMRINFRA | C179: 94.08 | D179: 93.92 | E179: 93.50 | F179: 92.91 | G179: 92.49 | H179: 94.51 | I179: 94.93 | J179: 95.52 | K179: 94.35 | L179: 93.34 | M179: 83.27582
A180: 170 | B180: GRSE | C180: 1913.15 | D180: 1915.00 | E180: 1855.20 | F180: 1797.25 | G180: 1737.45 | H180: 1972.95 | I180: 2032.75 | J180: 2090.70 | K180: 1974.8 | L180: 1857.05 | M180: 52.77573
A181: 171 | B181: GICRE | C181: 421.65 | D181: 422.52 | E181: 415.83 | F181: 410.02 | G181: 403.33 | H181: 428.33 | I181: 435.02 | J181: 440.83 | K181: 429.2 | L181: 416.7 | M181: 15.41305
A182: 172 | B182: GILLETTE | C182: 8967.5 | D182: 8982.67 | E182: 8905.33 | F182: 8843.17 | G182: 8765.83 | H182: 9044.83 | I182: 9122.17 | J182: 9184.33 | K182: 9060 | L182: 8920.5 | M182: 0.51551
A183: 173 | B183: GLAND | C183: 1893.35 | D183: 1892.08 | E183: 1842.17 | F183: 1790.98 | G183: 1741.07 | H183: 1943.27 | I183: 1993.18 | J183: 2044.37 | K183: 1942 | L183: 1840.9 | M183: 8.50036
A184: 174 | B184: GLAXO | C184: 2832.15 | D184: 2821.03 | E184: 2792.77 | F184: 2753.38 | G184: 2725.12 | H184: 2860.42 | I184: 2888.68 | J184: 2928.07 | K184: 2849.3 | L184: 2781.65 | M184: 1.21442
A185: 175 | B185: GLS | C185: 1048.15 | D185: 1056.25 | E185: 1032.90 | F185: 1017.65 | G185: 994.30 | H185: 1071.50 | I185: 1094.85 | J185: 1110.10 | K185: 1079.6 | L185: 1041 | M185: 0.95615
A186: 176 | B186: GLENMARK | C186: 1687.5 | D186: 1695.23 | E186: 1673.77 | F186: 1660.03 | G186: 1638.57 | H186: 1708.97 | I186: 1730.43 | J186: 1744.17 | K186: 1716.7 | L186: 1681.5 | M186: 9.93189
A187: 177 | B187: MEDANTA | C187: 1164.6 | D187: 1157.43 | E187: 1136.87 | F187: 1109.13 | G187: 1088.57 | H187: 1185.17 | I187: 1205.73 | J187: 1233.47 | K187: 1178 | L187: 1129.7 | M187: 5.41489
A188: 178 | B188: GPIL | C188: 923.3 | D188: 930.68 | E188: 912.37 | F188: 901.43 | G188: 883.12 | H188: 941.62 | I188: 959.93 | J188: 970.87 | K188: 949 | L188: 919.75 | M188: 3.85241
A189: 179 | B189: GODFRYPHLP | C189: 6635.75 | D189: 6682.42 | E189: 6490.83 | F189: 6345.92 | G189: 6154.33 | H189: 6827.33 | I189: 7018.92 | J189: 7163.83 | K189: 6874 | L189: 6537.5 | M189: 3.02088
A190: 180 | B190: GODREJCP | C190: 1460.75 | D190: 1465.57 | E190: 1451.38 | F190: 1442.02 | G190: 1427.83 | H190: 1474.93 | I190: 1489.12 | J190: 1498.48 | K190: 1479.75 | L190: 1456.2 | M190: 9.01067
A191: 181 | B191: GODREJIND | C191: 1211.4 | D191: 1182.33 | E191: 1090.72 | F191: 970.03 | G191: 878.42 | H191: 1303.02 | I191: 1394.63 | J191: 1515.32 | K191: 1273.95 | L191: 1061.65 | M191: 36.92063
A192: 182 | B192: GODREJPROP | C192: 2892.75 | D192: 2907.17 | E192: 2866.63 | F192: 2840.52 | G192: 2799.98 | H192: 2933.28 | I192: 2973.82 | J192: 2999.93 | K192: 2947.7 | L192: 2881.05 | M192: 3.77509
A193: 183 | B193: GRANULES | C193: 684.7 | D193: 685.72 | E193: 678.28 | F193: 671.87 | G193: 664.43 | H193: 692.13 | I193: 699.57 | J193: 705.98 | K193: 693.15 | L193: 679.3 | M193: 13.92694
A194: 184 | B194: GRAPHITE | C194: 511.75 | D194: 514.45 | E194: 508.00 | F194: 504.25 | G194: 497.80 | H194: 518.20 | I194: 524.65 | J194: 528.40 | K194: 520.9 | L194: 510.7 | M194: 4.1716
A195: 185 | B195: GRASIM | C195: 2706.85 | D195: 2698.98 | E195: 2687.97 | F195: 2669.08 | G195: 2658.07 | H195: 2717.87 | I195: 2728.88 | J195: 2747.77 | K195: 2710 | L195: 2680.1 | M195: 5.22391
A196: 186 | B196: GESHIP | C196: 1316.35 | D196: 1317.75 | E196: 1305.40 | F196: 1294.45 | G196: 1282.10 | H196: 1328.70 | I196: 1341.05 | J196: 1352.00 | K196: 1330.1 | L196: 1306.8 | M196: 3.87557
A197: 187 | B197: GRINDWELL | C197: 2458.5 | D197: 2472.15 | E197: 2431.55 | F197: 2404.60 | G197: 2364.00 | H197: 2499.10 | I197: 2539.70 | J197: 2566.65 | K197: 2512.75 | L197: 2445.2 | M197: 0.48372
A198: 188 | B198: GAEL | C198: 145.89 | D198: 146.70 | E198: 144.79 | F198: 143.70 | G198: 141.79 | H198: 147.79 | I198: 149.70 | J198: 150.79 | K198: 148.6 | L198: 145.6 | M198: 11.81144
A199: 189 | B199: FLUOROCHEM | C199: 3165.6 | D199: 3176.30 | E199: 3145.30 | F199: 3125.00 | G199: 3094.00 | H199: 3196.60 | I199: 3227.60 | J199: 3247.90 | K199: 3207.3 | L199: 3156 | M199: 0.53182
A200: 190 | B200: GUJGASLTD | C200: 676.15 | D200: 674.55 | E200: 666.60 | F200: 657.05 | G200: 649.10 | H200: 684.10 | I200: 692.05 | J200: 701.60 | K200: 682.5 | L200: 665 | M200: 68.60218
A201: 191 | B201: GMDCLTD | C201: 367.2 | D201: 368.68 | E201: 363.87 | F201: 360.53 | G201: 355.72 | H201: 372.02 | I201: 376.83 | J201: 380.17 | K201: 373.5 | L201: 365.35 | M201: 8.99644
A202: 192 | B202: GNFC | C202: 686.6 | D202: 690.30 | E202: 681.60 | F202: 676.60 | G202: 667.90 | H202: 695.30 | I202: 704.00 | J202: 709.00 | K202: 699 | L202: 685.3 | M202: 10.54394
A203: 193 | B203: GPPL | C203: 228.68 | D203: 229.39 | E203: 227.29 | F203: 225.89 | G203: 223.79 | H203: 230.79 | I203: 232.89 | J203: 234.29 | K203: 231.5 | L203: 228 | M203: 12.03423
A204: 194 | B204: GSFC | C204: 239.41 | D204: 240.28 | E204: 237.15 | F204: 234.90 | G204: 231.77 | H204: 242.53 | I204: 245.66 | J204: 247.91 | K204: 243.4 | L204: 238.02 | M204: 29.13208
A205: 195 | B205: GSPL | C205: 458.2 | D205: 458.10 | E205: 452.10 | F205: 446.00 | G205: 440.00 | H205: 464.20 | I205: 470.20 | J205: 476.30 | K205: 464.1 | L205: 452 | M205: 92.47334
A206: 196 | B206: HEG | C206: 1978.2 | D206: 1986.90 | E206: 1964.30 | F206: 1950.40 | G206: 1927.80 | H206: 2000.80 | I206: 2023.40 | J206: 2037.30 | K206: 2009.5 | L206: 1973 | M206: 0.55811
... 320 more rows

Sheet Bulk Deals
E6: Back To Main Page
A7: Subject : | B7: BULK DEAL | D7: =Main!B10 -> 2024-09-04
A9: Date | B9: Scrip code | C9: Scrip Name | D9: Client Name | E9: Buy / Sell | F9: Quantity Traded | G9: Trade Price / Wt.Avg.trade price | H9: Exchange
A10: 2024-09-03 | B10: 511463 | C10: ALEXANDER | D10: JAINAM SHARE CONSULTANTS PVT. LTD. | E10: BUY | F10: 53,004 | G10: 16.7 | H10: BSE
A11: 2024-09-03 | B11: 540135 | C11: ARCFIN | D11: SKSE SECURITIES LIMITED CORP CM/TM PROP A/C | E11: BUY | F11: 2,507,432 | G11: 1.59 | H11: BSE
A12: 2024-09-03 | B12: 540135 | C12: ARCFIN | D12: SKSE SECURITIES LIMITED CORP CM/TM PROP A/C | E12: SELL | F12: 2,627,634 | G12: 1.61 | H12: BSE
A13: 2024-09-03 | B13: 513401 | C13: ASHIS | D13: SHREE GIRIRAJ SECURITIES PRIVATE LIMITED | E13: SELL | F13: 55,000 | G13: 48.39 | H13: BSE
A14: 2024-09-03 | B14: 540611 | C14: AUBANK | D14: WESTBRIDGE AIF I | E14: SELL | F14: 10,895,517 | G14: 676.06 | H14: BSE
A15: 2024-09-03 | B15: 539621 | C15: BCLENTERPR | D15: GOKUL GUPTA | E15: SELL | F15: 1,400,000 | G15: 0.94 | H15: BSE
A16: 2024-09-03 | B16: 543606 | C16: CONTAINE | D16: GIRIJADHAVA VYAPAAR PRIVATE LIMITED | E16: BUY | F16: 50,000 | G16: 83.11 | H16: BSE
A17: 2024-09-03 | B17: 539559 | C17: DDIL | D17: ANKURBISHT | E17: BUY | F17: 1,248,991 | G17: 8.36 | H17: BSE
A18: 2024-09-03 | B18: 539559 | C18: DDIL | D18: ANKURBISHT | E18: SELL | F18: 544,773 | G18: 8.76 | H18: BSE
A19: 2024-09-03 | B19: 539559 | C19: DDIL | D19: PRASHANT GUPTA | E19: SELL | F19: 254,787 | G19: 8.38 | H19: BSE
A20: 2024-09-03 | B20: 539559 | C20: DDIL | D20: PRASHANT GUPTA | E20: BUY | F20: 213,349 | G20: 8.36 | H20: BSE
A21: 2024-09-03 | B21: 539559 | C21: DDIL | D21: BHAVISHYA ECOMMERCE PRIVATE LIMITED | E21: BUY | F21: 29,502 | G21: 8.68 | H21: BSE
A22: 2024-09-03 | B22: 539559 | C22: DDIL | D22: BHAVISHYA ECOMMERCE PRIVATE LIMITED | E22: SELL | F22: 305,526 | G22: 8.75 | H22: BSE
A23: 2024-09-03 | B23: 539559 | C23: DDIL | D23: JAI VINAYAK SECURITIES | E23: SELL | F23: 789,305 | G23: 8.42 | H23: BSE
A24: 2024-09-03 | B24: 539559 | C24: DDIL | D24: JAI VINAYAK SECURITIES | E24: BUY | F24: 456,342 | G24: 8.66 | H24: BSE
A25: 2024-09-03 | B25: 539559 | C25: DDIL | D25: SHARE INDIA SECURITIES LIMITED | E25: BUY | F25: 196,361 | G25: 8.63 | H25: BSE
A26: 2024-09-03 | B26: 539559 | C26: DDIL | D26: SHARE INDIA SECURITIES LIMITED | E26: SELL | F26: 251,433 | G26: 8.57 | H26: BSE
A27: 2024-09-03 | B27: 539559 | C27: DDIL | D27: RAMESH LAL | E27: BUY | F27: 297,799 | G27: 7.91 | H27: BSE
A28: 2024-09-03 | B28: 539559 | C28: DDIL | D28: RAMESH LAL | E28: SELL | F28: 254,849 | G28: 8.34 | H28: BSE
A29: 2024-09-03 | B29: 502865 | C29: FORBESCO | D29: INDIA DISCOVERY FUND LIMITED | E29: SELL | F29: 69,115 | G29: 596.07 | H29: BSE
A30: 2024-09-03 | B30: 512443 | C30: GANONPRO | D30: SRINIVASREDDYCHALLA | E30: SELL | F30: 59,000 | G30: 7.78 | H30: BSE
A31: 2024-09-03 | B31: 530615 | C31: GARGFUR | D31: EVERMORE SHARE BROKING PRIVATE LIMITED | E31: BUY | F31: 33,702 | G31: 363.57 | H31: BSE
A32: 2024-09-03 | B32: 530615 | C32: GARGFUR | D32: SETU SECURITIES PVT. LTD. | E32: BUY | F32: 165,098 | G32: 364.84 | H32: BSE
A33: 2024-09-03 | B33: 530615 | C33: GARGFUR | D33: MULTIPLIER SHARE & STOCK ADVISORS PRIVATE LIMITED | E33: BUY | F33: 103,708 | G33: 363.49 | H33: BSE
A34: 2024-09-03 | B34: 530615 | C34: GARGFUR | D34: GLOBALWORTH SECURITIES LIMITED | E34: BUY | F34: 27,000 | G34: 368.42 | H34: BSE
A35: 2024-09-03 | B35: 530615 | C35: GARGFUR | D35: ISHAAN TRADEFIN LLP | E35: BUY | F35: 25,653 | G35: 365.58 | H35: BSE
A36: 2024-09-03 | B36: 530615 | C36: GARGFUR | D36: EPITOME TRADING AND INVESTMENTS | E36: BUY | F36: 35,000 | G36: 362.07 | H36: BSE
A37: 2024-09-03 | B37: 530615 | C37: GARGFUR | D37: GLOBALWORTH SECURITIES LIMITED | E37: SELL | F37: 25,000 | G37: 361.31 | H37: BSE
A38: 2024-09-03 | B38: 530615 | C38: GARGFUR | D38: ISHAAN TRADEFIN LLP | E38: SELL | F38: 25,653 | G38: 366.06 | H38: BSE
A39: 2024-09-03 | B39: 530615 | C39: GARGFUR | D39: EPITOME TRADING AND INVESTMENTS | E39: SELL | F39: 25,000 | G39: 367.5 | H39: BSE
A40: 2024-09-03 | B40: 530615 | C40: GARGFUR | D40: MARCK SECURITIES PVT LTD | E40: BUY | F40: 30,500 | G40: 365.27 | H40: BSE
A41: 2024-09-03 | B41: 530615 | C41: GARGFUR | D41: MANSI SHARE & STOCK ADVISORS PRIVATE LIMITED | E41: BUY | F41: 60,222 | G41: 361.98 | H41: BSE
A42: 2024-09-03 | B42: 530615 | C42: GARGFUR | D42: F3 ADVISORS PRIVATE LIMITED | E42: BUY | F42: 115,879 | G42: 364.16 | H42: BSE
A43: 2024-09-03 | B43: 530615 | C43: GARGFUR | D43: MANSI SHARE & STOCK ADVISORS PRIVATE LIMITED | E43: SELL | F43: 20,006 | G43: 361.1 | H43: BSE
A44: 2024-09-03 | B44: 530615 | C44: GARGFUR | D44: F3 ADVISORS PRIVATE LIMITED | E44: SELL | F44: 115,879 | G44: 366.17 | H44: BSE
A45: 2024-09-03 | B45: 530615 | C45: GARGFUR | D45: DEVINDER GARG | E45: SELL | F45: 900,000 | G45: 364.27 | H45: BSE
A46: 2024-09-03 | B46: 530615 | C46: GARGFUR | D46: SAKET AGRAWAL | E46: BUY | F46: 200,000 | G46: 365.09 | H46: BSE
A47: 2024-09-03 | B47: 530615 | C47: GARGFUR | D47: ANKITA VISHAL SHAH | E47: SELL | F47: 26,000 | G47: 362.07 | H47: BSE
A48: 2024-09-03 | B48: 530615 | C48: GARGFUR | D48: ANKITA VISHAL SHAH | E48: BUY | F48: 26,000 | G48: 368.47 | H48: BSE
A49: 2024-09-03 | B49: 530615 | C49: GARGFUR | D49: SECUROCROP SECURITIES INDIA PRIVATE LIMTED | E49: BUY | F49: 100,000 | G49: 361.1 | H49: BSE
A50: 2024-09-03 | B50: 530615 | C50: GARGFUR | D50: SHARE INDIA SECURITIES LIMITED | E50: BUY | F50: 30,907 | G50: 365.41 | H50: BSE
A51: 2024-09-03 | B51: 530615 | C51: GARGFUR | D51: SECUROCROP SECURITIES INDIA PRIVATE LIMTED | E51: SELL | F51: 30,946 | G51: 365.55 | H51: BSE
A52: 2024-09-03 | B52: 530615 | C52: GARGFUR | D52: SHARE INDIA SECURITIES LIMITED | E52: SELL | F52: 30,907 | G52: 367.3 | H52: BSE
A53: 2024-09-03 | B53: 530615 | C53: GARGFUR | D53: KAPUR AJAY | E53: BUY | F53: 32,500 | G53: 362 | H53: BSE
A54: 2024-09-03 | B54: 530615 | C54: GARGFUR | D54: UDIT SEHGAL | E54: BUY | F54: 30,000 | G54: 365.12 | H54: BSE
A55: 2024-09-03 | B55: 530615 | C55: GARGFUR | D55: MULTIPLIER SHARE & STOCK ADVISORS PRIVATE LIMITED | E55: SELL | F55: 103,708 | G55: 362.31 | H55: BSE
A56: 2024-09-03 | B56: 530615 | C56: GARGFUR | D56: SETU SECURITIES PVT. LTD. | E56: SELL | F56: 165,100 | G56: 364.9 | H56: BSE
A57: 2024-09-03 | B57: 530615 | C57: GARGFUR | D57: EVERMORE SHARE BROKING PRIVATE LIMITED | E57: SELL | F57: 33,702 | G57: 366.44 | H57: BSE
A58: 2024-09-03 | B58: 530615 | C58: GARGFUR | D58: RASHMI RANI PAHWA | E58: BUY | F58: 63,711 | G58: 366.87 | H58: BSE
A59: 2024-09-03 | B59: 530615 | C59: GARGFUR | D59: PREMIER LOOMS MANUFACTURE RS PVT LTD . | E59: BUY | F59: 90,008 | G59: 361.23 | H59: BSE
A60: 2024-09-03 | B60: 531137 | C60: GEMSI | D60: MULTIPLIER SHARE & STOCK ADVISORS PRIVATE LIMITED | E60: SELL | F60: 654,401 | G60: 4.76 | H60: BSE
A61: 2024-09-03 | B61: 531592 | C61: GENPHARMA | D61: MULTIPLIER SHARE & STOCK ADVISORS PRIVATE LIMITED | E61: BUY | F61: 3,057,693 | G61: 3.18 | H61: BSE
A62: 2024-09-03 | B62: 531592 | C62: GENPHARMA | D62: MULTIPLIER SHARE & STOCK ADVISORS PRIVATE LIMITED | E62: SELL | F62: 931,149 | G62: 3.27 | H62: BSE
A63: 2024-09-03 | B63: 540936 | C63: GGL | D63: SANKET RAMESH FUKE | E63: SELL | F63: 700,000 | G63: 7.74 | H63: BSE
A64: 2024-09-03 | B64: 540936 | C64: GGL | D64: SUSHIL S KHATRI | E64: SELL | F64: 131,000 | G64: 8.08 | H64: BSE
A65: 2024-09-03 | B65: 540936 | C65: GGL | D65: SUSHIL S KHATRI | E65: BUY | F65: 222,000 | G65: 8.86 | H65: BSE
A66: 2024-09-03 | B66: 540936 | C66: GGL | D66: SUSHILA | E66: BUY | F66: 215,903 | G66: 8.62 | H66: BSE
A67: 2024-09-03 | B67: 540936 | C67: GGL | D67: SUSHILA | E67: SELL | F67: 55,903 | G67: 8.62 | H67: BSE
A68: 2024-09-03 | B68: 539206 | C68: GVBL | D68: YOGESH AGRAWAL | E68: SELL | F68: 16,845 | G68: 68.6 | H68: BSE
A69: 2024-09-03 | B69: 543546 | C69: HEALTHYLIFE | D69: TGISME FUND | E69: BUY | F69: 150,000 | G69: 57.51 | H69: BSE
A70: 2024-09-03 | B70: 526967 | C70: HEERAISP | D70: RUCHIRA GOYAL | E70: BUY | F70: 44,065 | G70: 6.55 | H70: BSE
A71: 2024-09-03 | B71: 532847 | C71: HILTON | D71: MAGNUM HEALTH AND SAFETY PRIVATE LIMTED | E71: BUY | F71: 293,138 | G71: 90.94 | H71: BSE
A72: 2024-09-03 | B72: 532847 | C72: HILTON | D72: PATRONUS TRADETECH LLP | E72: BUY | F72: 9,258 | G72: 88.91 | H72: BSE
A73: 2024-09-03 | B73: 532847 | C73: HILTON | D73: PATRONUS TRADETECH LLP | E73: SELL | F73: 110,817 | G73: 90.13 | H73: BSE
A74: 2024-09-03 | B74: 539175 | C74: INDRAIND | D74: NOORIE SURESH SADARANGANI | E74: SELL | F74: 313,442 | G74: 6.39 | H74: BSE
A75: 2024-09-03 | B75: 539175 | C75: INDRAIND | D75: KUSUM SURESH SADARANGANI | E75: SELL | F75: 435,599 | G75: 6.43 | H75: BSE
A76: 2024-09-03 | B76: 539175 | C76: INDRAIND | D76: MAHESH KUMAR | E76: BUY | F76: 51,071 | G76: 6.47 | H76: BSE
A77: 2024-09-03 | B77: 539175 | C77: INDRAIND | D77: SHAILESH DHAMELIYA | E77: BUY | F77: 522,000 | G77: 6.45 | H77: BSE
A78: 2024-09-03 | B78: 539175 | C78: INDRAIND | D78: KAUSHAL HITESHBHAI PARIKH | E78: BUY | F78: 92,000 | G78: 6.48 | H78: BSE
A79: 2024-09-03 | B79: 543951 | C79: INNOVATUS | D79: MINIBOSS CONSULTANCY PRIVATE LIMITED | E79: SELL | F79: 72,000 | G79: 66.94 | H79: BSE
A80: 2024-09-03 | B80: 543951 | C80: INNOVATUS | D80: LAKSHYARJAIN | E80: BUY | F80: 21,000 | G80: 66.95 | H80: BSE
A81: 2024-09-03 | B81: 514312 | C81: JAIHINDS | D81: PARTH MUKESHBHAI BHAVSAR | E81: SELL | F81: 39,020 | G81: 25.53 | H81: BSE
A82: 2024-09-03 | B82: 514312 | C82: JAIHINDS | D82: MINESH NIRANJAN SHAH | E82: BUY | F82: 64,970 | G82: 25.5 | H82: BSE
A83: 2024-09-03 | B83: 544160 | C83: JAYKAILASH | D83: PRIYA KABRA | E83: BUY | F83: 80,000 | G83: 70.02 | H83: BSE
A84: 2024-09-03 | B84: 544160 | C84: JAYKAILASH | D84: PRIYA KABRA | E84: SELL | F84: 80,000 | G84: 61.49 | H84: BSE
A85: 2024-09-03 | B85: 544160 | C85: JAYKAILASH | D85: ANILA CHHABRA | E85: BUY | F85: 32,000 | G85: 61.1 | H85: BSE
A86: 2024-09-03 | B86: 526409 | C86: KKALPANAIND | D86: LIABLE TEXTILES PRIVATE LIMITED | E86: SELL | F86: 900,535 | G86: 15.47 | H86: BSE
A87: 2024-09-03 | B87: 533602 | C87: LESHAIND | D87: PRIYANKA PURAV SHAH | E87: SELL | F87: 3,937,412 | G87: 2.65 | H87: BSE
A88: 2024-09-03 | B88: 533602 | C88: LESHAIND | D88: SHAILESH DHAMELIYA | E88: BUY | F88: 1,163,337 | G88: 2.75 | H88: BSE
A89: 2024-09-03 | B89: 533602 | C89: LESHAIND | D89: SHAILESH DHAMELIYA | E89: SELL | F89: 1,842,795 | G89: 2.61 | H89: BSE
A90: 2024-09-03 | B90: 535910 | C90: MMLF | D90: PRAKASH RAVJI CHOPDA | E90: BUY | F90: 810,000 | G90: 13.4 | H90: BSE
A91: 2024-09-03 | B91: 535910 | C91: MMLF | D91: SONAL ANIL VICHARE | E91: SELL | F91: 810,000 | G91: 13.39 | H91: BSE
A92: 2024-09-03 | B92: 503776 | C92: MODIPON | D92: LOTUS GLOBAL INVESTMENTS LTD | E92: SELL | F92: 689,940 | G92: 63 | H92: BSE
A93: 2024-09-03 | B93: 503776 | C93: MODIPON | D93: ALBULA INVESTMENT FUND LTD | E93: BUY | F93: 689,940 | G93: 63 | H93: BSE
A94: 2024-09-03 | B94: 539402 | C94: NAKSH | D94: MULTIPLIER SHARE & STOCK ADVISORS PRIVATE LIMITED | E94: BUY | F94: 100,000 | G94: 12.6 | H94: BSE
A95: 2024-09-03 | B95: 539402 | C95: NAKSH | D95: MULTIPLIER SHARE & STOCK ADVISORS PRIVATE LIMITED | E95: SELL | F95: 100,000 | G95: 12.6 | H95: BSE
A96: 2024-09-03 | B96: 517431 | C96: NARMP | D96: VRAJLAL VAGHASIA JITEN | E96: SELL | F96: 88,200 | G96: 24.2 | H96: BSE
A97: 2024-09-03 | B97: 517431 | C97: NARMP | D97: TWINKLE PRATIK SHAH | E97: BUY | F97: 21,000 | G97: 24.1 | H97: BSE
A98: 2024-09-03 | B98: 517431 | C98: NARMP | D98: PARIKH RAJNIKANT BABULAL | E98: BUY | F98: 40,102 | G98: 24.01 | H98: BSE
A99: 2024-09-03 | B99: 543579 | C99: NATURO | D99: G DAS CAPITAL MARKETS PVT LTD | E99: BUY | F99: 300,000 | G99: 13.07 | H99: BSE
A100: 2024-09-03 | B100: 543579 | C100: NATURO | D100: SP AND NISHA PRIVATE LIMITED | E100: SELL | F100: 136,000 | G100: 12.69 | H100: BSE
A101: 2024-09-03 | B101: 543579 | C101: NATURO | D101: BHAMINI KAMAL PAREKH | E101: SELL | F101: 552,000 | G101: 13.03 | H101: BSE
A102: 2024-09-03 | B102: 543579 | C102: NATURO | D102: DIVYESH SHANTILAL SHAH (HUF) | E102: BUY | F102: 188,000 | G102: 12.98 | H102: BSE
A103: 2024-09-03 | B103: 543305 | C103: NAVODAYENT | D103: VIRENDRA SHRIKUMAR PAPALKAR | E103: SELL | F103: 48,000 | G103: 10.63 | H103: BSE
A104: 2024-09-03 | B104: 511557 | C104: PROFINC | D104: TRIYAMB SECURITIES PRIVATE LIMITED | E104: SELL | F104: 2,500,000 | G104: 1.78 | H104: BSE
A105: 2024-09-03 | B105: 511557 | C105: PROFINC | D105: DILKUSH BAFNA J | E105: BUY | F105: 1,500,000 | G105: 1.78 | H105: BSE
A106: 2024-09-03 | B106: 512591 | C106: PULSRIN | D106: PANKAJKUMAR KANAIYALAL GOHIL | E106: SELL | F106: 900,000 | G106: 14.75 | H106: BSE
A107: 2024-09-03 | B107: 512591 | C107: PULSRIN | D107: COMFORT ADVERTISING PVT LTD | E107: SELL | F107: 600,462 | G107: 14.72 | H107: BSE
A108: 2024-09-03 | B108: 512591 | C108: PULSRIN | D108: COMFORT ADVERTISING PVT LTD | E108: BUY | F108: 597,396 | G108: 14.75 | H108: BSE
A109: 2024-09-03 | B109: 512591 | C109: PULSRIN | D109: DENIM FEB (MUMBAI) PVT LTD | E109: BUY | F109: 598,900 | G109: 14.72 | H109: BSE
A110: 2024-09-03 | B110: 538452 | C110: QUASAR | D110: JAI VINAYAK SECURITIES | E110: SELL | F110: 89,638 | G110: 24.1 | H110: BSE
A111: 2024-09-03 | B111: 538452 | C111: QUASAR | D111: RAHUL JAYATILAL NISHAR | E111: BUY | F111: 130,000 | G111: 24.19 | H111: BSE
A112: 2024-09-03 | B112: 538452 | C112: QUASAR | D112: SITADEVI | E112: SELL | F112: 31,600 | G112: 24.54 | H112: BSE
A113: 2024-09-03 | B113: 538452 | C113: QUASAR | D113: SITADEVI | E113: BUY | F113: 10,800 | G113: 24.19 | H113: BSE
A114: 2024-09-03 | B114: 538452 | C114: QUASAR | D114: JAI VINAYAK SECURITIES | E114: BUY | F114: 72,754 | G114: 23.41 | H114: BSE
A115: 2024-09-03 | B115: 538452 | C115: QUASAR | D115: ALPESHBHAI DULABHAI KAKDIYA | E115: SELL | F115: 38,304 | G115: 23.5 | H115: BSE
A116: 2024-09-03 | B116: 539495 | C116: RAJKOTINV | D116: MALLIKA RATHI | E116: BUY | F116: 11,000 | G116: 43.21 | H116: BSE
A117: 2024-09-03 | B117: 539495 | C117: RAJKOTINV | D117: MOTI LAL LAXKAR | E117: SELL | F117: 27,000 | G117: 43.21 | H117: BSE
A118: 2024-09-03 | B118: 539495 | C118: RAJKOTINV | D118: SAURABH GUPTA | E118: SELL | F118: 18,435 | G118: 43.21 | H118: BSE
A119: 2024-09-03 | B119: 539495 | C119: RAJKOTINV | D119: INTELLECT STOCK BROKING LIMITED | E119: BUY | F119: 27,000 | G119: 43.21 | H119: BSE
A120: 2024-09-03 | B120: 539673 | C120: RCL | D120: PARVATHYBALAKRISHNAPILLAI | E120: BUY | F120: 119,608 | G120: 2.53 | H120: BSE
A121: 2024-09-03 | B121: 539673 | C121: RCL | D121: BEENA K U | E121: SELL | F121: 100,019 | G121: 2.53 | H121: BSE
A122: 2024-09-03 | B122: 539673 | C122: RCL | D122: KOCHAR VIVEK KASTURCHAND | E122: SELL | F122: 109,000 | G122: 2.37 | H122: BSE
A123: 2024-09-03 | B123: 539760 | C123: RELICAB | D123: BIMLA MAHESWARI | E123: BUY | F123: 67,000 | G123: 148.1 | H123: BSE
A124: 2024-09-03 | B124: 539760 | C124: RELICAB | D124: NOPEA CAPITAL SERVICES PRIVATE LIMITED | E124: SELL | F124: 157,964 | G124: 148.1 | H124: BSE
A125: 2024-09-03 | B125: 543256 | C125: RFLL | D125: KIRAN MITTAL | E125: SELL | F125: 87,891 | G125: 21.86 | H125: BSE
A126: 2024-09-03 | B126: 544189 | C126: SATTRIX | D126: RAJESHPANDEY | E126: BUY | F126: 61,000 | G126: 181.22 | H126: BSE
A127: 2024-09-03 | B127: 534708 | C127: SHANTIGURU | D127: MAMTA TULSHYAN | E127: BUY | F127: 63,000 | G127: 31.38 | H127: BSE
A128: 2024-09-03 | B128: 543963 | C128: SHELTER | D128: KRISHNA TRADE FINANCE | E128: SELL | F128: 108,000 | G128: 44.49 | H128: BSE
A129: 2024-09-03 | B129: 543963 | C129: SHELTER | D129: KRISHNA TRADE FINANCE | E129: BUY | F129: 108,000 | G129: 46.25 | H129: BSE
A130: 2024-09-03 | B130: 543963 | C130: SHELTER | D130: ZUBEDABIBI NISARAHNED SABUGAR | E130: SELL | F130: 99,000 | G130: 46.07 | H130: BSE
A131: 2024-09-03 | B131: 543963 | C131: SHELTER | D131: ACHATHKONRENSIS SALES AGENCY PRIVATE LIMITED | E131: SELL | F131: 297,000 | G131: 46.26 | H131: BSE
A132: 2024-09-03 | B132: 533014 | C132: SICAGEN | D132: AMI HOLDINGS PRIVATE LIMITED | E132: BUY | F132: 390,000 | G132: 93.5 | H132: BSE
A133: 2024-09-03 | B133: 543990 | C133: SIGNATURE | D133: DKL BROKING & INFRA LLP | E133: SELL | F133: 2,300,000 | G133: 1444.27 | H133: BSE
A134: 2024-09-03 | B134: 543990 | C134: SIGNATURE | D134: CREDIBLE NIVESH LIMITED | E134: SELL | F134: 1,700,000 | G134: 1432.2 | H134: BSE
A135: 2024-09-03 | B135: 539217 | C135: SRESTHA | D135: ISH TRAVEL & TOURS PRIVATE LIMITED | E135: SELL | F135: 5,000,819 | G135: 1.96 | H135: BSE
A136: 2024-09-03 | B136: 540914 | C136: SRUSTEELS | D136: SRESTHA FINVEST LIMITED | E136: SELL | F136: 17,000 | G136: 10.07 | H136: BSE
A137: 2024-09-03 | B137: 540914 | C137: SRUSTEELS | D137: SRESTHA FINVEST LIMITED | E137: BUY | F137: 67,484 | G137: 10.29 | H137: BSE
A138: 2024-09-03 | B138: 540492 | C138: STARLENT | D138: DHRUV GANJI | E138: SELL | F138: 186,181 | G138: 103.3 | H138: BSE
A139: 2024-09-03 | B139: 540492 | C139: STARLENT | D139: DHRUV GANJI | E139: BUY | F139: 472,068 | G139: 102.88 | H139: BSE
A140: 2024-09-03 | B140: 513575 | C140: STERPOW | D140: RINKU VIPUL PARMAR | E140: BUY | F140: 27,000 | G140: 67.62 | H140: BSE
A141: 2024-09-03 | B141: 543828 | C141: SUDARSHAN | D141: SAROJ GUPTA | E141: BUY | F141: 123,200 | G141: 183.8 | H141: BSE
A142: 2024-09-03 | B142: 541701 | C142: SUPERSHAKT | D142: KINGSMAN WEALTH FUND PCC - KIF II | E142: BUY | F142: 420,600 | G142: 352.42 | H142: BSE
A143: 2024-09-03 | B143: 541701 | C143: SUPERSHAKT | D143: CONNECOR INVESTMENT ENTERPRISE LTD | E143: SELL | F143: 422,700 | G143: 352.41 | H143: BSE
A144: 2024-09-03 | B144: 543745 | C144: SVS | D144: VIKRAM JAIN | E144: SELL | F144: 210,000 | G144: 16.92 | H144: BSE
A145: 2024-09-03 | B145: 543745 | C145: SVS | D145: CHIRANGGI IRISH SHAH | E145: BUY | F145: 198,000 | G145: 16.95 | H145: BSE
A146: 2024-09-03 | B146: 544186 | C146: TOTEM | D146: ANTARA INDIA EVERGREEN FUND LTD | E146: BUY | F146: 600,000 | G146: 336.25 | H146: BSE
A147: 2024-09-03 | B147: 544186 | C147: TOTEM | D147: INDIA DISCOVERY FUND LIMITED | E147: SELL | F147: 600,000 | G147: 336.25 | H147: BSE
A148: 2024-09-03 | B148: 513063 | C148: TRANSFRE | D148: SHIVSWAROOP JAGMOHANLAL GUPTA | E148: SELL | F148: 41,002 | G148: 30.31 | H148: BSE
A149: 2024-09-03 | B149: 542765 | C149: TRANSPACT | D149: PARVATHYBALAKRISHNAPILLAI | E149: BUY | F149: 2,000 | G149: 193.6 | H149: BSE
A150: 2024-09-03 | B150: 503657 | C150: VEERENRGY | D150: ICHHABEN ABHUBHAI DESAI | E150: SELL | F150: 195,948 | G150: 35.64 | H150: BSE
A151: 2024-09-03 | B151: 503657 | C151: VEERENRGY | D151: JAI VINAYAK SECURITIES | E151: BUY | F151: 75,518 | G151: 33.33 | H151: BSE
A152: 2024-09-03 | B152: 503657 | C152: VEERENRGY | D152: BONANZA PORTFOLIO LIMITED | E152: BUY | F152: 53,960 | G152: 35.49 | H152: BSE
A153: 2024-09-03 | B153: 503657 | C153: VEERENRGY | D153: JAI VINAYAK SECURITIES | E153: SELL | F153: 76,814 | G153: 33.52 | H153: BSE
A154: 2024-09-03 | B154: 503657 | C154: VEERENRGY | D154: BONANZA PORTFOLIO LIMITED | E154: SELL | F154: 83,960 | G154: 34.09 | H154: BSE
A155: 2024-09-03 | B155: 541400 | C155: ZIMLAB | D155: MATHEW CYRIAC | E155: SELL | F155: 1,660,000 | G155: 119.35 | H155: BSE
A156: 2024-09-03 | B156: 541400 | C156: ZIMLAB | D156: ELIMATH ADVISORS PRIVATE LIMITED | E156: BUY | F156: 1,660,000 | G156: 119.35 | H156: BSE
A157: 2024-09-03 | B157: 512587 | C157: ZODJRDMKJ | D157: MULTIPLIER SHARE & STOCK ADVISORS PRIVATE LIMITED | E157: BUY | F157: 37,162 | G157: 99.55 | H157: BSE
A158: 2024-09-03 | B158: ADSL | C158: Allied Digital Services L | D158: HRTI PRIVATE LIMITED | E158: BUY | F158: 269,174 | G158: 270.67 | H158: NSE
A159: 2024-09-03 | B159: ADSL | C159: Allied Digital Services L | D159: SHARE INDIA SECURITIES LIMITED | E159: BUY | F159: 296,389 | G159: 268.3 | H159: NSE
A160: 2024-09-03 | B160: ADSL | C160: Allied Digital Services L | D160: GRAVITON RESEARCH CAPITAL LLP | E160: BUY | F160: 423,382 | G160: 270.88 | H160: NSE
A161: 2024-09-03 | B161: ANTGRAPHIC | C161: Antarctica Graphics Ltd | D161: MULTIPLIER SHARE & STOCK ADVISORS PRIVATE LIMITED | E161: BUY | F161: 1,961,886 | G161: 2.1 | H161: NSE
A162: 2024-09-03 | B162: APOLLOPIPE | C162: Apollo Pipes Limited | D162: GRAVITON RESEARCH CAPITAL LLP | E162: BUY | F162: 249,255 | G162: 652.95 | H162: NSE
A163: 2024-09-03 | B163: BALCO | C163: Solve Plastic Products L | D163: MANSI SHARE AND STOCK ADVISORS PVT LTD | E163: BUY | F163: 36,000 | G163: 76.61 | H163: NSE
A164: 2024-09-03 | B164: BRACEPORT | C164: Brace Port Logistics Ltd | D164: SETU SECURITIES PVT LTD | E164: BUY | F164: 67,200 | G164: 148.66 | H164: NSE
A165: 2024-09-03 | B165: CHETANA | C165: Chetana Education Limited | D165: LAROIA MONA | E165: BUY | F165: 110,400 | G165: 92 | H165: NSE
A166: 2024-09-03 | B166: CHETANA | C166: Chetana Education Limited | D166: SHUBHAM FINANCIAL SERVICES | E166: BUY | F166: 123,200 | G166: 90.92 | H166: NSE
A167: 2024-09-03 | B167: CORALFINAC | C167: Coral India Fin & Hous Lt | D167: NK SECURITIES RESEARCH PRIVATE LIMITED | E167: BUY | F167: 450,657 | G167: 74.51 | H167: NSE
A168: 2024-09-03 | B168: CORALFINAC | C168: Coral India Fin & Hous Lt | D168: PLUTUS RESEARCH PRIVATE LIMITED | E168: BUY | F168: 207,731 | G168: 73.67 | H168: NSE
A169: 2024-09-03 | B169: DEEPENR | C169: DEEP ENE RESOURCES LTD | D169: GRAVITON RESEARCH CAPITAL LLP | E169: BUY | F169: 180,590 | G169: 258.2 | H169: NSE
A170: 2024-09-03 | B170: DLINKINDIA | C170: D-Link India Ltd | D170: GRAVITON RESEARCH CAPITAL LLP | E170: BUY | F170: 252,768 | G170: 652.83 | H170: NSE
A171: 2024-09-03 | B171: FELIX | C171: Felix Industries Ltd. | D171: SRESTHA FINVEST LIMITED | E171: BUY | F171: 75,000 | G171: 248.86 | H171: NSE
A172: 2024-09-03 | B172: FORCAS | C172: Forcas Studio Limited | D172: MANSI SHARE AND STOCK ADVISORS PVT LTD | E172: BUY | F172: 262,400 | G172: 107.35 | H172: NSE
A173: 2024-09-03 | B173: FORCAS | C173: Forcas Studio Limited | D173: STATSOL RESEARCH LLP | E173: BUY | F173: 17,600 | G173: 106.9 | H173: NSE
A174: 2024-09-03 | B174: FORCAS | C174: Forcas Studio Limited | D174: GIRIJADHAVA VYAPAAR PRIVATE LIMITED | E174: BUY | F174: 96,000 | G174: 109.73 | H174: NSE
A175: 2024-09-03 | B175: GATECH | C175: GACM Technologies Limited | D175: DHRUV GANJI | E175: BUY | F175: 944,435 | G175: 1.65 | H175: NSE
A176: 2024-09-03 | B176: GATECH | C176: GACM Technologies Limited | D176: VIKRAMBHAI GOKALBHAI CHAUDHARI | E176: BUY | F176: 3,704,789 | G176: 1.65 | H176: NSE
A177: 2024-09-03 | B177: GATECH | C177: GACM Technologies Limited | D177: VISHAL SRIVASTAVA | E177: BUY | F177: 3,528,313 | G177: 1.66 | H177: NSE
A178: 2024-09-03 | B178: GEOJITFSL | C178: Geojit Fin Serv Ltd | D178: HRTI PRIVATE LIMITED | E178: BUY | F178: 1,298,749 | G178: 150.41 | H178: NSE
A179: 2024-09-03 | B179: GEOJITFSL | C179: Geojit Fin Serv Ltd | D179: GRAVITON RESEARCH CAPITAL LLP | E179: BUY | F179: 1,892,661 | G179: 149.87 | H179: NSE
A180: 2024-09-03 | B180: HILTON | C180: Hilton Metal Forging Limi | D180: ESAAR (INDIA) LIMITED | E180: BUY | F180: 778,203 | G180: 89.37 | H180: NSE
A181: 2024-09-03 | B181: HILTON | C181: Hilton Metal Forging Limi | D181: QE SECURITIES LLP | E181: BUY | F181: 122,898 | G181: 90.42 | H181: NSE
A182: 2024-09-03 | B182: HILTON | C182: Hilton Metal Forging Limi | D182: PATRONUS TRADETECH LLP | E182: BUY | F182: 110,752 | G182: 90.41 | H182: NSE
A183: 2024-09-03 | B183: HILTON | C183: Hilton Metal Forging Limi | D183: NIDHI NARESH NANDU | E183: BUY | F183: 125,000 | G183: 87 | H183: NSE
A184: 2024-09-03 | B184: HILTON | C184: Hilton Metal Forging Limi | D184: MUKUL AVANISH VARMA | E184: BUY | F184: 77,710 | G184: 91.13 | H184: NSE
A185: 2024-09-03 | B185: HILTON | C185: Hilton Metal Forging Limi | D185: HRTI PRIVATE LIMITED | E185: BUY | F185: 118,328 | G185: 89.8 | H185: NSE
A186: 2024-09-03 | B186: HOVS | C186: HOV Services Limited | D186: MULTIPLIER SHARE & STOCK ADVISORS PRIVATE LIMITED | E186: BUY | F186: 92,108 | G186: 104 | H186: NSE
A187: 2024-09-03 | B187: IPHL | C187: Indian Phosphate Limited | D187: F3 ADVISORS PRIVATE LIMITED | E187: BUY | F187: 426,000 | G187: 188.57 | H187: NSE
A188: 2024-09-03 | B188: IPHL | C188: Indian Phosphate Limited | D188: MANSI SHARE AND STOCK ADVISORS PVT LTD | E188: BUY | F188: 216,000 | G188: 183.7 | H188: NSE
A189: 2024-09-03 | B189: ISFT | C189: Intrasoft Tech. Ltd | D189: MANISH JHUNJHUNWALA | E189: BUY | F189: 90,000 | G189: 187.33 | H189: NSE
A190: 2024-09-03 | B190: ISFT | C190: Intrasoft Tech. Ltd | D190: HRTI PRIVATE LIMITED | E190: BUY | F190: 69,910 | G190: 179.78 | H190: NSE
A191: 2024-09-03 | B191: JAYBEE | C191: Jay Bee Laminations Ltd | D191: CINCO STOCK VISION LLP | E191: BUY | F191: 280,000 | G191: 291.25 | H191: NSE
A192: 2024-09-03 | B192: JAYBEE | C192: Jay Bee Laminations Ltd | D192: MULTIPLIER SHARE & STOCK ADVISORS PRIVATE LIMITED | E192: BUY | F192: 378,000 | G192: 287.66 | H192: NSE
A193: 2024-09-03 | B193: JAYBEE | C193: Jay Bee Laminations Ltd | D193: SPRING VENTURES | E193: BUY | F193: 130,000 | G193: 291.25 | H193: NSE
A194: 2024-09-03 | B194: JMFINANCIL | C194: JM Financial Limited | D194: GRAVITON RESEARCH CAPITAL LLP | E194: BUY | F194: 5,038,826 | G194: 115.64 | H194: NSE
A195: 2024-09-03 | B195: LAXMICOT | C195: Laxmi Cotspin Limited | D195: PUNEET MITTAL HUF | E195: BUY | F195: 128,294 | G195: 38.25 | H195: NSE
A196: 2024-09-03 | B196: MATRIMONY | C196: Matrimony.Com Limited | D196: GRAVITON RESEARCH CAPITAL LLP | E196: BUY | F196: 185,300 | G196: 819.96 | H196: NSE
A197: 2024-09-03 | B197: MATRIMONY | C197: Matrimony.Com Limited | D197: NK SECURITIES RESEARCH PRIVATE LIMITED | E197: BUY | F197: 112,817 | G197: 820.68 | H197: NSE
A198: 2024-09-03 | B198: MATRIMONY | C198: Matrimony.Com Limited | D198: QE SECURITIES LLP | E198: BUY | F198: 126,516 | G198: 822.04 | H198: NSE
A199: 2024-09-03 | B199: MEDIASSIST | C199: Medi Assist Health Ser L | D199: GOLDMAN SACHS FUNDS - GOLDMAN SACHS INDIA EQUITY PORTFOLIO | E199: BUY | F199: 1,155,631 | G199: 611.7 | H199: NSE
A200: 2024-09-03 | B200: MEDIASSIST | C200: Medi Assist Health Ser L | D200: HDFC MUTUAL FUND | E200: BUY | F200: 3,106,098 | G200: 611.7 | H200: NSE
A201: 2024-09-03 | B201: MEDIASSIST | C201: Medi Assist Health Ser L | D201: ICICI PRUDENTIAL MUTUAL FUND | E201: BUY | F201: 820,581 | G201: 611.7 | H201: NSE
A202: 2024-09-03 | B202: MEDIASSIST | C202: Medi Assist Health Ser L | D202: SMALLCAP WORLD FUND INC | E202: BUY | F202: 2,059,833 | G202: 611.7 | H202: NSE
A203: 2024-09-03 | B203: MEDIASSIST | C203: Medi Assist Health Ser L | D203: ADITYA BIRLA SUN LIFE MUTUAL FUND | E203: BUY | F203: 1,311,019 | G203: 611.7 | H203: NSE
A204: 2024-09-03 | B204: MUNJALAU | C204: Munjal Auto Industries Li | D204: GRAVITON RESEARCH CAPITAL LLP | E204: BUY | F204: 705,936 | G204: 124.61 | H204: NSE
A205: 2024-09-03 | B205: ORIENTCEM | C205: Orient Cement Ltd. | D205: PARTH INFIN BROKERS PVT LTD | E205: BUY | F205: 1,347,252 | G205: 307.15 | H205: NSE
A206: 2024-09-03 | B206: PREMIERENE | C206: Premier Energies Limited | D206: NK SECURITIES RESEARCH PRIVATE LIMITED | E206: BUY | F206: 2,598,461 | G206: 883.1 | H206: NSE
... 106 more rows

Sheet Call Tracker (Equity)
M5: Back To Main Page
A6: Retail Research Technical Calls & Fundamental Performance Report for the month of September-2024
M7: =Main!B10 -> 2024-09-04
A8: Positional Call (Timeframe- 1-3 Months)
A9: Sr.no | B9: Date | D9: Company | E9: Rec | F9: Rec Price | G9: Stop Loss*** | H9: Call Closed At | I9: Target | J9: Remark | K9: Profit / Loss per Share | L9: All charges | M9: Net Gain / Loss % | N9: Status | O9: Closed Date | P9: Market Closing Price | Q9: Second Buying Date
A10: 1 | B10: 2024-07-25 | D10: NESTLEIND | E10: Accu | F10: 2390-2470 | G10: 2330 | I10: 2650-2800 | J10: Open | P10: =VLOOKUP(D10,'MidCap Intra'!$B$11:$C$571,2,0) -> 2530.75 | R10: H
A11: 2 | B11: 2024-08-12 | D11: HINDUNILVR | E11: Accu | F11: 2650-2730 | G11: 2540 | I11: 3000-3290 | J11: Open | P11: =VLOOKUP(D11,'MidCap Intra'!$B$11:$C$571,2,0) -> 2794.30 | R11: K
A12: 3 | B12: 2024-08-20 | D12: TATAMOTORS | E12: Accu | F12: 1048-1068.6 | G12: 1090 | I12: 1150-1220 | J12: Open | P12: =VLOOKUP(D12,'MidCap Intra'!$B$11:$C$571,2,0) -> 1085.10 | R12: H
A13: 4 | B13: 2024-08-20 | D13: TATACONSUM | E13: Accu | F13: 1143-1173 | G13: 1120 | I13: 1230-1300 | J13: Open | P13: =VLOOKUP(D13,'MidCap Intra'!$B$11:$C$571,2,0) -> 1199.00 | R13: H
A14: 5 | B14: 2024-08-20 | D14: SIEMENS | E14: Accu | F14: 6810-7010 | G14: 6640 | I14: 7370-7700 | J14: Open | P14: =VLOOKUP(D14,'MidCap Intra'!$B$11:$C$571,2,0) -> 6768.80 | R14: H
A15: 6 | B15: 2024-08-26 | D15: LATENTVIEW | E15: Accu | F15: 480-498 | G15: 468 | I15: 530-565 | J15: Open | P15: =VLOOKUP(D15,'[1]MidCap Intra'!$B$11:$C$571,2,0) -> 510.90 | R15: H
A16: 7 | B16: 2024-08-27 | D16: HINDCOPPER | E16: Accu | F16: 321-331 | G16: 310 | I16: 350-370 | J16: Open | P16: =VLOOKUP(D16,'[1]MidCap Intra'!$B$11:$C$571,2,0) -> 318.55 | R16: H
A17: 8 | B17: 2024-08-27 | D17: ZEEL | E17: Accu | F17: 141-148 | G17: 134.5 | I17: 165-185 | J17: Open | P17: =VLOOKUP(D17,'[1]MidCap Intra'!$B$11:$C$571,2,0) -> 139.44 | R17: H
A18: 9 | B18: 2024-08-28 | D18: TATATECH | E18: Accu | F18: 1045-1081 | G18: 1020 | I18: 1150-1220 | J18: Open | P18: =VLOOKUP(D18,'[1]MidCap Intra'!$B$11:$C$571,2,0) -> 1007.20 | R18: H
A19: 10 | B19: 2024-08-28 | D19: CENTURYPLY | E19: Accu | F19: 760-785 | G19: 726 | I19: 845-905 | J19: Open | P19: =VLOOKUP(D19,'[1]MidCap Intra'!$B$11:$C$571,2,0) -> 760.10 | R19: K
A20: 11 | B20: 2024-08-29 | D20: BEL | E20: Accu | F20: 291.5-299.5 | G20: 284 | I20: 320-340 | J20: Open | P20: =VLOOKUP(D20,'[1]MidCap Intra'!$B$11:$C$571,2,0) -> 304.50 | R20: H
A21: 12 | B21: 2024-08-29 | D21: RELIANCE | E21: Accu | F21: 2990-3040 | G21: 2900 | I21: 3200-3350 | J21: Open | P21: =VLOOKUP(D21,'[1]MidCap Intra'!$B$11:$C$571,2,0) -> 2996.25 | R21: H
A22: 13 | B22: 2024-09-02 | D22: UPL | E22: Accu | F22: 576-594 | G22: 555 | I22: 640-680 | J22: Open | P22: =VLOOKUP(D22,'[1]MidCap Intra'!$B$11:$C$571,2,0) -> 579.15
A27: CLBS = Closing Basis ***
A28: Dividend adjusted <> | F28: Reinitiated $
A29: Part book {} | D29: s | F29: Revised stoploss #
A33: Smart Delivery Trade (Timeframe- 3-5 Months)
A34: Sr.no | B34: Date | D34: Company | E34: Rec | F34: Rec Price | G34: Stop Loss*** | H34: Call Closed At | I34: Target | J34: Remark | K34: Profit / Loss per Share/Lot | L34: All charges | M34: Net Gain / Loss % | N34: Status | O34: Closed Date | P34: Market Closing Price | Q34: Second Buying Date
A35: 1 | B35: 2024-08-29 | D35: UDS | E35: Accu | F35: 343.5 | G35: 318 | H35: 361.5 | I35: 370-400 | J35: Profit of Rs.18/- | K35: =H35-F35 -> 18 | L35: =(F35*-0.3)/100 -> -1.03 | M35: =(K35+L35)/F35 -> 4.94% | N35: Successful | O35: 2024-09-02 | R35: H
A36: 2 | B36: 2024-08-30 | D36: ZAGGLE | E36: Accu | F36: 339.5-348.5 | G36: 319 | I36: 390-420 | J36: Open | R36: H
A37: 3 | B37: 2024-09-02 | D37: PROTEAN | E37: Accu | F37: 2005-2075 | G37: 1950 | I37: 2200-2350 | J37: Open
R39: H
A40: CLBS = Closing Basis *** | F40: Reinitiated $
A41: Dividend adjusted <> | F41: Revised stoploss # | H41: .................
A44: Techno -Funda (Timeframe- 3-6 Months)
A45: Sr.no | B45: Date | D45: Company | E45: Rec | F45: Rec Price | G45: Stop Loss*** | H45: Call Closed At | I45: Target | J45: Remark | K45: Profit / Loss per Share/Lot | L45: All charges | M45: Net Gain / Loss % | N45: Status | O45: Closed Date | P45: Market Closing Price | Q45: Second Buying Date
A46: 1 | B46: 2024-07-25 | D46: SCHAEFFLER | E46: Accu | F46: 3825-4025 | G46: 3600 | I46: 4500-5000 | J46: Open | P46: =VLOOKUP(D46,'MidCap Intra'!$B$11:$C$571,2,0) -> 3841.75 | R46: H
A49: CLBS = Closing Basis *** | F49: Reinitiated $
A50: Dividend adjusted <> | F50: Revised stoploss # | H50: .................
A53: Investment Idea (Timeframe- 2-3 Years)
A54: Sr.no | B54: Date | D54: Company | E54: Rec | F54: Rec Price | G54: Point of Review | H54: Close Rate | I54: Target | J54: Remark | K54: Profit / Loss per Share | L54: Gain / Loss % | M54: Status | N54: Closed Date
A55: 1 | B55: 2013-11-01 | D55: L&T Finance Holding | E55: Accu | F55: 82.00 | G55: - | H55: 100 | I55: 100.00 | J55: Target Achieved | K55: =H55-F55 -> 18.00 | L55: =K55/F55 -> 21.95% | M55: Successful | N55: 2016-10-14
A56: 2 | B56: 2014-06-04 | D56: Finolex Inds | E56: Buy | F56: 257.00 | G56: - | H56: 300 | I56: 300.00 | J56: Target Achieved | K56: 43.00 | L56: 16.73% | M56: Successful | N56: 2014-07-02
A57: 3 | B57: 2014-07-08 | D57: JK Cement | E57: Buy | F57: 393.00 | G57: - | H57: 468 | I57: 468.00 | J57: Target Achieved | K57: 75.00 | L57: 19.08% | M57: Successful | N57: 2014-08-12
A58: 4 | B58: 2014-08-06 | D58: Finolex Cables | E58: Buy | F58: 205.00 | G58: - | H58: 275 | I58: 250.00 | J58: Target Achieved | K58: 70.00 | L58: 34.15% | M58: Successful | N58: 2014-11-19
A59: 5 | B59: 2014-09-04 | D59: Exide Inds | E59: Buy | F59: 162.00 | G59: - | H59: 190 | I59: 190.00 | J59: Target Achieved | K59: 28.00 | L59: 17.28% | M59: Successful | N59: 2015-01-02
A60: 6 | B60: 2014-09-04 | D60: Deepak Nitrite | E60: Buy | F60: 75.00 | G60: - | H60: 91.5 | I60: 95-100 | J60: Profit of Rs.16.50/- | K60: 16.50 | L60: 22.00% | M60: Successful | N60: 2014-11-11
A61: 7 | B61: 2014-10-01 | D61: Mercks | E61: Buy | F61: 850.00 | G61: - | H61: 982.5 | I61: 1050.00 | J61: Profit of Rs.132.50/- | K61: 132.50 | L61: 15.59% | M61: Successful | N61: 2015-02-04
A62: 8 | B62: 2014-10-01 | D62: Grindwell Norton | E62: Buy | F62: 475.00 | G62: - | H62: 515 | I62: 600.00 | J62: Profit of Rs.40/- | K62: 40.00 | L62: 8.42% | M62: Successful | N62: 2014-10-27
A63: 9 | B63: 2014-10-01 | D63: Snowman Logistics | E63: Buy | F63: 86.00 | G63: - | H63: 99 | I63: 140.00 | J63: Profit of Rs.13.00/- | K63: 13.00 | L63: 15.12% | M63: Successful | N63: 2014-10-27
A64: 10 | B64: 2014-10-14 | D64: Birla Corp | E64: Buy | F64: 496.60 | G64: - | H64: 621 | I64: 580.00 | J64: Target Achieved | K64: 124.40 | L64: 25.05% | M64: Successful | N64: 2016-08-23
A65: 11 | B65: 2014-10-14 | D65: Ultratech Cem | E65: Buy | F65: 2481.90 | G65: - | H65: 2840 | I65: 2870.00 | J65: Profit of Rs.358.10/- | K65: 358.10 | L65: 14.43% | M65: Successful | N65: 2015-01-13
A66: 12 | B66: 2014-10-16 | D66: Sintex Inds | E66: Buy | F66: 84.50 | G66: - | H66: 93 | I66: 110.00 | J66: Profit of Rs.8.50/- | K66: 8.50 | L66: 10.06% | M66: Successful | N66: 2014-10-27
A67: 13 | B67: 2014-10-16 | D67: HSIL | E67: Buy | F67: 401.00 | G67: - | H67: 428 | I67: 450.00 | J67: Profit of Rs.27.00/- | K67: 27.00 | L67: 6.73% | M67: Successful | N67: 2015-01-16
A68: 14 | B68: 2014-10-16 | D68: Eveready Inds | E68: Buy | F68: 101.00 | G68: - | H68: 112 | I68: 120.00 | J68: Profit of Rs.11.00/- | K68: 11.00 | L68: 10.89% | M68: Successful | N68: 2014-10-27
A69: 15 | B69: 2014-11-11 | D69: Pennar Inds | E69: Buy | F69: 59.00 | G69: - | H69: 76 | I69: 76.00 | J69: Target Achieved | K69: 17.00 | L69: 28.81% | M69: Successful | N69: 2017-10-24
A70: 16 | B70: 2014-11-11 | D70: Snowman Logistics | E70: Buy | F70: 99.00 | G70: - | H70: 120 | I70: 120.00 | J70: Profit of Rs.21/- | K70: 21.00 | L70: 21.21% | M70: Successful | N70: 2014-11-17
A71: 17 | B71: 2014-11-13 | D71: Dharamsi Morarji Chem | E71: Buy | F71: 22.00 | G71: - | H71: 33.55 | I71: 32.00 | J71: Profit of Rs 11.55/- | K71: 11.55 | L71: 52.50% | M71: Successful | N71: 2015-07-03
A72: 18 | B72: 2014-12-03 | D72: Tatachem | E72: Buy | F72: 440.00 | G72: - | H72: 520 | I72: 520.00 | J72: Profit of Rs 80.00/- | K72: 80.00 | L72: 18.18% | M72: Successful | N72: 2015-07-23
A73: 19 | B73: 2014-12-03 | D73: Advanta | E73: Buy | F73: 360.00 | G73: - | H73: 427 | I73: 425.00 | J73: Profit of Rs.67.00/- | K73: 67.00 | L73: 18.61% | M73: Successful | N73: 2015-02-23
A74: 20 | B74: 2015-01-08 | D74: GDL | E74: Buy | F74: 360.00 | G74: - | H74: 455 | I74: 420.00 | J74: Profit of Rs.95.00/- | K74: 95.00 | L74: 26.39% | M74: Successful | N74: 2015-01-20
A75: 21 | B75: 2015-01-08 | D75: NRB Bearing | E75: Buy | F75: 130.00 | H75: 175.5 | I75: 165.00 | J75: Profit of Rs 45.50/- | K75: 45.50 | L75: 35.00% | M75: Successful | N75: 2017-12-19
A76: 22 | B76: 2015-02-05 | D76: GSFC | E76: Accu | F76: 98.00 | H76: 120 | I76: 120.00 | J76: Target Achieved | K76: 22.00 | L76: 22.45% | M76: Successful | N76: 2017-01-18
A77: 23 | B77: 2015-02-05 | D77: Sundrmfast | E77: Accu | F77: 196.00 | H77: 262 | I77: 255.00 | J77: Target Achieved | K77: 66.00 | L77: 33.67% | M77: Successful | N77: 2016-08-17
A78: 24 | B78: 2015-03-04 | D78: GPPL | E78: Accu | F78: 235 | H78: 77.00 | I78: 280-285 | J78: Loss of Rs.158/- | K78: -158.00 | L78: -67.23% | M78: Unsuccessful | N78: 2019-02-26
A79: 25 | B79: 2015-03-04 | D79: ORIENTCEM | E79: Accu | F79: 185.00 | H79: 224 | I79: 220-225 | J79: Target Achieved | K79: 39.00 | L79: 21.08% | M79: Successful | N79: 2016-10-04
A80: 26 | B80: 2015-03-27 | D80: PFS | E80: Accu | F80: 49.5 | H80: 15.85 | I80: 67.00 | J80: Loss of Rs.33.65/- | K80: -33.65 | L80: -68% | M80: Unsuccessful | N80: 2019-06-11
A81: 27 | B81: 2015-03-30 | D81: Walchandnagar Ind Ltd | E81: Accu | F81: 183.50 | H81: 219 | I81: 218.00 | J81: Profit of Rs.35.50/- | K81: 35.50 | L81: 19.35% | M81: Successful | N81: 2015-04-09
A82: 28 | B82: 2015-04-20 | D82: Kalpataru Power Transmission Ltd | E82: Accu | F82: =(227+237)/2 -> 232.00 | H82: 298 | I82: 298.00 | J82: Target Achieved | K82: 66.00 | L82: 28.45% | M82: Successful | N82: 2017-03-29
A83: 29 | B83: 2015-05-04 | D83: Mastek Ltd | E83: Buy | F83: 385.00 | H83: =212.5+331 -> 543.5 | I83: 510.00 | J83: Profit of Rs 158.50/- | K83: 158.50 | L83: 41.17% | M83: Successful | N83: 2015-08-19
A84: 30 | B84: 2015-05-04 | D84: Suprajit Eng | E84: Buy | F84: 115.50 | H84: 146 | I84: 142.00 | J84: Profit of Rs 30.50/- | K84: 30.50 | L84: 26.41% | M84: Successful | N84: 2015-07-17
A85: 31 | B85: 2015-05-27 | D85: TCI | E85: Buy | F85: 237.50 | H85: 279.5 | I85: 278.00 | J85: Target Achieved | K85: 42.00 | L85: 17.68% | M85: Successful | N85: 2015-08-06
A86: 32 | B86: 2015-06-19 | D86: HSIL | E86: Accu | F86: 340.00 | H86: 448 | I86: 448.00 | J86: Target Achieved | K86: 108.00 | L86: 31.76% | M86: Successful | N86: 2017-10-10
A87: 33 | B87: 2015-07-06 | D87: Capital First | E87: Accu | F87: 390.00 | H87: 460 | I87: 460.00 | J87: Target Achieved | K87: =H87-F87 -> 70.00 | L87: =K87/F87 -> 17.95% | M87: Successful | N87: 2016-04-18
A88: 34 | B88: 2015-07-10 | D88: Dolphin OffShore | E88: Accu | F88: 122.5 | H88: 61.00 | I88: 172.00 | J88: Loss of Rs.61.50/- | K88: -61.50 | L88: -50.20% | M88: Unsuccessful | N88: 2018-08-21
A89: 35 | B89: 2015-08-03 | D89: Allcargo logistics | E89: Accu | F89: 297.50 | H89: 350 | I89: 360.00 | J89: Profit of Rs 52.50/- | K89: 52.50 | L89: 17.65% | M89: Successful | N89: 2015-08-16
A90: 36 | B90: 2015-08-03 | D90: Camline Fine | E90: Accu | F90: 115.50 | H90: 149 | I90: 140.00 | J90: Profit of Rs 33.50/- | K90: 33.50 | L90: 29.00% | M90: Successful | N90: 2017-01-05
A91: 37 | B91: 2015-09-04 | D91: TCI | E91: Accu | F91: 226.00 | H91: 292 | I91: 292.00 | J91: Target Achieved | K91: 66.00 | L91: 29.20% | M91: Successful | N91: 2015-10-09
A92: 38 | B92: 2015-09-07 | D92: Kalpataru Power Transmission Ltd | E92: Accu | F92: 232.50 | H92: 312.5 | I92: 310.00 | J92: Target Achieved | K92: 80.00 | L92: 34.41% | M92: Successful | N92: 2017-03-29
A93: 39 | B93: 2015-09-21 | D93: LLOYD ELECTRIC & ENG LTD | E93: Accu | F93: 196.50 | H93: 238 | I93: 238.00 | J93: Target Achieved | K93: 41.50 | L93: 21.12% | M93: Successful | N93: 2015-10-14
A94: 40 | B94: 2015-09-24 | D94: L&T Finance Holding | E94: Accu | F94: 65.00 | H94: 82 | I94: 82.00 | J94: Target Achieved | K94: 17.00 | L94: 26.15% | M94: Successful | N94: 2016-07-27
A95: 41 | B95: 2015-10-14 | D95: KEC International ltd | E95: Accu | F95: 144.00 | H95: 182.5 | I95: 181.00 | J95: Target Achieved | K95: 38.50 | L95: 26.74% | M95: Successful | N95: 2017-03-23
A96: 42 | B96: 2015-10-14 | D96: Gruh Finance | E96: Accu | F96: 264.00 | H96: 311 | I96: 311.00 | J96: Target Achieved | K96: 47.00 | L96: 17.80% | M96: Successful | N96: 2016-08-22
A97: 43 | B97: 2015-11-10 | D97: Pidilitind | E97: Buy | F97: 549.50 | H97: 630 | I97: 630.00 | J97: Target Achieved | K97: 80.50 | L97: 14.65% | M97: Successful | N97: 2016-02-19
A98: 44 | B98: 2015-12-04 | D98: Zensar Technology | E98: Accu | F98: 1027.50 | H98: 1315 | I98: 1250.00 | J98: Target Achieved | K98: 287.50 | L98: 27.98% | M98: Successful | N98: 2018-05-24
A99: 45 | B99: 2015-12-29 | D99: Vinati Organics Ltd | E99: Accu | F99: 465.00 | H99: 540 | I99: 540.00 | J99: Target Achieved | K99: 75.00 | L99: 16.13% | M99: Successful | N99: 2016-06-09
A100: 46 | B100: 2016-01-11 | D100: GSFC | E100: Buy | F100: 81.00 | H100: 110 | I100: 110.00 | J100: Target Achieved | K100: 29.00 | L100: 35.80% | M100: Successful | N100: 2017-01-10
A101: 47 | B101: 2016-01-13 | D101: SSWL | E101: Buy | F101: 417.50 | H101: 547 | I101: 535.00 | J101: Target Achieved | K101: 129.50 | L101: 31.02% | M101: Successful | N101: 2016-07-27
A102: 48 | B102: 2016-02-08 | D102: Persistent System Ltd | E102: Accu | F102: 650.00 | H102: 800 | I102: 800.00 | J102: Target Achieved | K102: 150.00 | L102: 23.08% | M102: Successful | N102: 2018-02-23
A103: 49 | B103: 2016-03-04 | D103: UPL | E103: Accu | F103: 437.50 | H103: 504.5 | I103: 522.00 | J103: Profit of Rs.67/- | K103: 67.00 | L103: 15.31% | M103: Successful | N103: 2016-04-20
A104: 50 | B104: 2016-03-09 | D104: Ashoka Buildcon Ltd | E104: Accu | F104: 189.50 | H104: 218 | I104: 218.00 | J104: Target Achieved | K104: 28.50 | L104: 15.04% | M104: Successful | N104: 2017-10-26
A105: 51 | B105: 2016-04-11 | D105: PTC INDIA FIN SERV LTD | E105: Accu | F105: 36.5 | H105: 15.85 | I105: 60.00 | J105: Loss of Rs.20.65/- | K105: -20.65 | L105: -56.58% | M105: Unsuccessful | N105: 2019-06-11
A106: 52 | B106: 2016-04-12 | D106: CAMLINFINE $ | E106: Accu | F106: 93.00 | H106: 149 | I106: 140.00 | J106: Profit of Rs 56/- | K106: 56.00 | L106: 60.22% | M106: Successful | N106: 2017-01-05
A107: 53 | B107: 2016-04-12 | D107: Greaves Cotton Ltd. | E107: Accu | F107: 130.00 | H107: 150 | I107: 150-155 | J107: Target Achieved | K107: 20.00 | L107: 15.38% | M107: Successful | N107: 2016-07-13
A108: 54 | B108: 2016-04-13 | D108: DHFL | E108: Accu | F108: 196.00 | H108: 299 | I108: 299.00 | J108: Target Achieved | K108: 103.00 | L108: 52.55% | M108: Successful | N108: 2016-09-07
A109: 55 | B109: 2016-04-13 | D109: Magma | E109: Accu | F109: 88.00 | H109: 103 | I109: 103.00 | J109: Target Achieved | K109: 15.00 | L109: 17.05% | M109: Successful | N109: 2016-06-09
A110: 56 | B110: 2016-05-02 | D110: KEC International ltd $ | E110: Accu | F110: 127.50 | H110: 148 | I110: 148-150 | J110: Target Achieved | K110: =H110-F110 -> 20.50 | L110: =K110/F110 -> 16.08% | M110: Successful | N110: 2016-07-13
A111: 57 | B111: 2016-05-03 | D111: Mindtree | E111: Accu | F111: 675.00 | H111: 815 | I111: 790-800 | J111: Target Achieved | K111: =H111-F111 -> 140.00 | L111: =K111/F111 -> 20.74% | M111: Successful | N111: 2018-02-23
A112: 58 | B112: 2016-06-01 | D112: Atulauto | E112: Accu | F112: 500 | H112: 232.50 | I112: 565-570 | J112: Loss of Rs.267.50 /- | K112: =H112-F112 -> -267.50 | L112: =K112/F112 -> -53.50% | M112: Unsuccessful | N112: 2019-09-27
A113: 59 | B113: 2016-06-06 | D113: TRITURBINE | E113: Accu | F113: 110.00 | H113: 126.5 | I113: 125.00 | J113: Profit of Rs.16.50/- | K113: =H113-F113 -> 16.50 | L113: =K113/F113 -> 15.00% | M113: Successful | N113: 2016-07-01
A114: 60 | B114: 2016-06-17 | D114: Pennar Industries Ltd | E114: Accu | F114: 44.00 | H114: 69.5 | I114: 69.50 | J114: Profit of Rs.25.50/- | K114: =H114-F114 -> 25.50 | L114: =K114/F114 -> 57.95% | M114: Successful | N114: 2017-08-30
A115: 61 | B115: 2016-06-28 | D115: EVEREADY | E115: Accu | F115: 262.50 | H115: 340 | I115: 333.00 | J115: Profit of Rs.77.50/- | K115: 77.50 | L115: 29.52% | M115: Successful | N115: 2017-10-09
A116: 62 | B116: 2016-06-28 | D116: FIEMIND | E116: Accu | F116: 840.00 | H116: 1230 | I116: 1230.00 | J116: Target Achieved | K116: 390.00 | L116: 46.43% | M116: Successful | N116: 2016-10-06
A117: 63 | B117: 2016-07-05 | D117: Bajaj Corp Ltd | E117: Accu | F117: 395 | H117: =(468.5+342.5)/2 -> 405.50 | I117: 510.00 | J117: Profit of Rs.10.50/- | K117: =H117-F117 -> 10.50 | L117: =K117/F117 -> 3% | M117: Neutral | N117: 2019-05-21
A118: 64 | B118: 2016-08-02 | D118: GPPL $ | E118: Buy | F118: =169.5-12.8 -> 156.7 | H118: 77.00 | I118: 198-200 | J118: Loss of Rs.79.7/- | K118: -79.70 | L118: -50.86% | M118: Unsuccessful | N118: 2019-02-26
A119: 65 | B119: 2016-08-04 | D119: WONDERLA HOLIDAYS LTD | E119: Accu | F119: 400 | H119: 305.00 | I119: 475.00 | J119: Loss of Rs.95/- | K119: -95.00 | L119: -23.75% | M119: Unsuccessful | N119: 2019-05-21
A120: 66 | B120: 2016-08-11 | D120: CAMLINFINE | E120: Accu | F120: 86.50 | H120: 130 | I120: 130.00 | J120: Profit of Rs.43.50/- | K120: 43.50 | L120: 50.29% | M120: Successful | N120: 2017-12-22
A121: 67 | B121: 2016-08-18 | D121: GRANULES | E121: Accu | F121: 133.5 | H121: 126.50 | I121: 178.00 | J121: Exit | K121: -7.00 | L121: -5.24% | M121: Unsuccessful | N121: 2016-09-02
A122: 68 | B122: 2016-08-31 | D122: VA TECH WABAG | E122: Accu | F122: 560.00 | H122: 725 | I122: 725.00 | J122: Target Achieved | K122: 165.00 | L122: 29.46% | M122: Successful | N122: 2016-03-27
A123: 69 | B123: 2016-09-01 | D123: SKIPPER LIMITED | E123: Accu | F123: 160.50 | H123: 210 | I123: 210.00 | J123: Target Achieved | K123: 49.50 | L123: 30.84% | M123: Successful | N123: 2017-05-16
A124: 70 | B124: 2016-10-03 | D124: IFBIND | E124: Accu | F124: 430.00 | H124: 596 | I124: 575.00 | J124: Profit of Rs.166/- | K124: 166.00 | L124: 38.60% | M124: Successful | N124: 2017-02-03
A125: 71 | B125: 2016-10-14 | D125: ASIANTILES | E125: Accu | F125: 280.00 | H125: 345 | I125: 345.00 | J125: Target Achieved | K125: =H125-F125 -> 65.00 | L125: =K125/F125 -> 23.21% | M125: Successful | N125: 2017-03-20
A126: 72 | B126: 2016-10-14 | D126: DEEPIND | E126: Accu | F126: 245.00 | H126: 325.5 | I126: 330.00 | J126: Profit of Rs.80.5/- | K126: 80.50 | L126: =K126/F126 -> 32.86% | M126: Successful | N126: 2017-02-03
A127: 73 | B127: 2016-10-17 | D127: DCBBANK | E127: Accu | F127: 125.00 | H127: 160 | I127: 160.00 | J127: Target Achieved | K127: 35.00 | L127: 28.00% | M127: Successful | N127: 2017-03-09
A128: 74 | B128: 2016-10-17 | D128: ORIENTREF | E128: Accu | F128: 114.00 | H128: 145 | I128: 145.00 | J128: Target Achieved | K128: 31.00 | L128: =K128/F128 -> 27.19% | M128: Successful | N128: 2017-05-04
A129: 75 | B129: 2016-10-17 | D129: GANECOS | E129: Accu | F129: 212.00 | H129: 280 | I129: 276.00 | J129: Profit of Rs.68/- | K129: 68.00 | L129: =K129/F129 -> 32.08% | M129: Successful | N129: 2017-05-03
A130: 76 | B130: 2016-11-04 | D130: NBCC | E130: Accu | F130: 155.00 | H130: 210 | I130: 210.00 | J130: Profit of Rs.55/- | K130: 55.00 | L130: =K130/F130 -> 35.48% | M130: Successful | N130: 2017-07-28
A131: 77 | B131: 2016-12-06 | D131: PRECAM | E131: Accu | F131: 150.5 | H131: 72.50 | I131: 174.00 | J131: Loss of Rs.78/- | K131: -78.00 | L131: -51.83% | M131: Unsuccessful | N131: 2018-08-21
A132: 78 | B132: 2016-12-08 | D132: INFRATEL | E132: Accu | F132: 380.00 | H132: 478 | I132: 468.00 | J132: Target Achieved | K132: =H132-F132 -> 98.00 | L132: =K132/F132 -> 25.79% | M132: Successful | N132: 2017-10-17
A133: 79 | B133: 2016-12-30 | D133: GODREJPROP | E133: Accu | F133: 305.00 | H133: 375 | I133: 375.00 | J133: Target Achieved | K133: =H133-F133 -> 70.00 | L133: =K133/F133 -> 22.95% | M133: Successful | N133: 2017-02-02
A134: 80 | B134: 2017-01-04 | D134: DEEPAKNTR | E134: Accu | F134: 99.50 | H134: 158 | I134: 158.00 | J134: Target Achieved | K134: =H134-F134 -> 58.50 | L134: =K134/F134 -> 58.79% | M134: Successful | N134: 2017-06-12
A135: 81 | B135: 2017-01-04 | D135: DEEPAKNTR | E135: Accu | F135: 99.50 | H135: 158 | I135: 158.00 | J135: Target Achieved | K135: 58.50 | L135: 58.79% | M135: Successful | N135: 2017-06-12
A136: 82 | B136: 2017-02-20 | D136: RECLTD | E136: Accu | F136: 140.50 | H136: 220 | I136: 220.00 | J136: Target Achieved | K136: =H136-F136 -> 79.50 | L136: =K136/F136 -> 56.58% | M136: Successful | N136: 2017-05-09
A137: 83 | B137: 2017-02-20 | D137: SUBROS | E137: Accu | F137: 202.50 | H137: 234 | I137: 234.00 | J137: Target Achieved | K137: 31.50 | L137: 15.56% | M137: Successful | N137: 2017-04-11
A138: 84 | B138: 2017-03-24 | D138: VRLLOG | E138: Accu | F138: 300.50 | H138: 417.5 | I138: 420.00 | J138: Profit of Rs.117/- | K138: =H138-F138 -> 117.00 | L138: =K138/F138 -> 38.94% | M138: Successful | N138: 2017-12-01
A139: 85 | B139: 2017-03-24 | D139: FIEMIND | E139: Accu | F139: 850.00 | H139: 1042.5 | I139: 1023.00 | J139: Profit of Rs 192.50/- | K139: 192.50 | L139: 22.65% | M139: Successful | N139: 2017-04-05
A140: 86 | B140: 2017-04-05 | D140: RATNAMANI | E140: Accu | F140: 785.00 | H140: 930 | I140: 920.00 | J140: Profit of Rs.145/- | K140: =H140-F140 -> 145.00 | L140: =K140/F140 -> 18.47% | M140: Successful | N140: 2017-08-29
A141: 87 | B141: 2017-04-06 | D141: ZEEMEDIA | E141: Accu | F141: 40 | H141: 13.10 | I141: 60.00 | J141: Loss of Rs.26.9/- | K141: -26.90 | L141: -67.25% | M141: Unsuccessful | N141: 2018-02-07
A142: 88 | B142: 2017-04-12 | D142: DABUR | E142: Accu | F142: 289.50 | H142: 354 | I142: 360.00 | J142: Profit of Rs.64.5/- | K142: =H142-F142 -> 64.50 | L142: =K142/F142 -> 22.28% | M142: Successful | N142: 2017-11-01
A143: 89 | B143: 2017-04-20 | D143: KPRMILL | E143: Accu | F143: 700.00 | H143: 840 | I143: 840.00 | J143: Profit of Rs.140/- | K143: 140.00 | L143: 20.00% | M143: Successful | N143: 2017-06-07
A144: 90 | B144: 2017-06-01 | D144: ESSELPACK | E144: Accu | F144: 130.00 | H144: 144.25 | I144: 170.00 | J144: Profit of Rs.14.25/- | K144: 14.25 | L144: 10.96% | M144: Successful | N144: 2019-07-29
A145: 91 | B145: 2017-06-15 | D145: KEI | E145: Accu | F145: 214.50 | H145: 262 | I145: 262.00 | J145: Profit of Rs.47.5/- | K145: 47.50 | L145: 22.14% | M145: Successful | N145: 2017-08-30
A146: 92 | B146: 2017-07-17 | D146: MAYURUNIQ | E146: Accu | F146: 370.00 | H146: 447.5 | I146: 450.00 | J146: Target Achieved | K146: 77.50 | L146: 20.95% | M146: Successful | N146: 2017-10-27
A147: 93 | B147: 2017-07-27 | D147: RAMCOCEM | E147: Accu | F147: 657.50 | H147: 825 | I147: 820.00 | J147: Target Achieved | K147: 167.50 | L147: 25.48% | M147: Successful | N147: 2017-12-21
A148: 94 | B148: 2017-08-17 | D148: FINPIPE | E148: Accu | F148: 605.00 | H148: 750 | I148: 750.00 | J148: Profit of Rs.145/- | K148: 145.00 | L148: 23.97% | M148: Successful | N148: 2017-10-19
A149: 95 | B149: 2017-09-01 | D149: SHK | E149: Accu | F149: 255 | H149: 217.25 | I149: 320.00 | J149: Loss of Rs.37.75/- | K149: -37.75 | L149: -15% | M149: Unsuccessful | N149: 2019-07-15
A150: 96 | B150: 2017-09-19 | D150: SKIPPER | E150: Accu | F150: 215.00 | H150: 258 | I150: 258.00 | J150: Target Achieved | K150: 43.00 | L150: 20.00% | M150: Successful | N150: 2017-11-01
A151: 97 | B151: 2017-09-19 | D151: SKIPPER | E151: Accu | F151: 215.00 | H151: 258 | I151: 258.00 | J151: Target Achieved | K151: 43.00 | L151: 20.00% | M151: Successful | N151: 2017-11-01
A152: 98 | B152: 2017-09-20 | D152: CAMLINFINE$ | E152: Accu | F152: 75.00 | H152: 90 | I152: 90.00 | J152: Profit of Rs.15.00/- | K152: =H152-F152 -> 15.00 | L152: =K152/F152 -> 20.00% | M152: Successful | N152: 2017-10-11
A153: 99 | B153: 2017-10-03 | D153: GNA | E153: Accu | F153: 315.00 | H153: 392 | I153: 384.00 | J153: Profit of Rs.77/- | K153: 77.00 | L153: 24.44% | M153: Successful | N153: 2017-10-09
A154: 100 | B154: 2017-10-05 | D154: NOCIL | E154: Accu | F154: 145.00 | H154: 179 | I154: 180.00 | J154: Profit of Rs.34/- | K154: 34.00 | L154: 23.45% | M154: Successful | N154: 2017-10-17
A155: 101 | B155: 2017-10-06 | D155: CENTURYPLY | E155: Accu | F155: 256.00 | H155: 323 | I155: 320.00 | J155: Target Achieved | K155: 67.00 | L155: 26.17% | M155: Successful | N155: 2017-11-28
A156: 102 | B156: 2017-10-09 | D156: EIHOTEL | E156: Accu | F156: 137.50 | H156: 184 | I156: 183.00 | J156: Profit of Rs.46.5/- | K156: 46.50 | L156: 33.82% | M156: Successful | N156: 2018-01-08
A157: 103 | B157: 2017-10-10 | D157: NRBBEARING | E157: Accu | F157: 125.50 | H157: 158 | I157: 155.00 | J157: Profit of Rs.32.5/- | K157: 32.50 | L157: 25.90% | M157: Successful | N157: 2017-11-28
A158: 104 | B158: 2017-10-10 | D158: BOROSIL | E158: Accu | F158: 895.00 | H158: 1122.5 | I158: 1078.00 | J158: Profit of Rs.227.5/- | K158: 227.50 | L158: 25.42% | M158: Successful | N158: 2018-01-17
A159: 105 | B159: 2017-10-12 | D159: CYIENT | E159: Accu | F159: 525.00 | H159: 629 | I159: 629.00 | J159: Target Achieved | K159: 104.00 | L159: 19.81% | M159: Successful | N159: 2018-01-19
A160: 106 | B160: 2017-11-07 | D160: HATSUN | E160: Accu | F160: 740.00 | H160: 892.5 | I160: 900.00 | J160: Profit of Rs.152.5/- | K160: =H160-F160 -> 152.50 | L160: =K160/F160 -> 20.61% | M160: Successful | N160: 2017-11-13
A161: 107 | B161: 2017-12-04 | D161: SANGHIIND | E161: Accu | F161: 118.50 | H161: 143.5 | I161: 145.00 | J161: Profit of Rs.25/- | K161: =H161-F161 -> 25.00 | L161: =K161/F161 -> 21.10% | M161: Successful | N161: 2017-12-28
A162: 108 | B162: 2017-12-21 | D162: KAJARIACER | E162: Accu | F162: 715 | H162: 500.00 | I162: 872.00 | J162: Loss of Rs.215/- | K162: =H162-F162 -> -215.00 | L162: =K162/F162 -> -30.07% | M162: Unsuccessful | N162: 2019-07-24
A163: 109 | B163: 2017-12-29 | D163: GNA | E163: Accu | F163: 435.00 | H163: 542.5 | I163: 539.00 | J163: Target Achieved | K163: 107.50 | L163: 24.71% | M163: Successful | N163: 2018-04-16
A164: 110 | B164: 2017-12-29 | D164: ZENSARTECH | E164: Accu | F164: 885.00 | H164: 1090 | I164: 1084.00 | J164: Target Achieved | K164: 205.00 | L164: 23.16% | M164: Successful | N164: 2018-04-23
A165: 111 | B165: 2018-04-02 | D165: EVERESTIND | E165: Accu | F165: 478.50 | H165: 442 | I165: 613.00 | J165: Loss of Rs.36.50 /- | K165: =H165-F165 -> -36.50 | L165: =K165/F165 -> -7.63% | M165: Unsuccessful | N165: 2019-10-24
A166: 112 | B166: 2018-04-04 | D166: GPPL$ | E166: Accu | F166: =141.5-7.3 -> 134.2 | H166: 77.00 | I166: 180.00 | J166: Loss of Rs.57.2/- | K166: =H166-F166 -> -57.20 | L166: =K166/F166 -> -42.62% | M166: Unsuccessful | N166: 2019-02-26
A167: 113 | B167: 2018-04-19 | D167: MANPASAND | E167: Accu | F167: 430 | H167: 220.00 | I167: 537.00 | J167: Loss of Rs.210/- | K167: =H167-F167 -> -210.00 | L167: =K167/F167 -> -48.84% | M167: Unsuccessful | N167: 2018-06-01
A168: 114 | B168: 2018-04-30 | D168: HEIDELBERG | E168: Accu | F168: 153.5 | H168: 196 | I168: 196.00 | J168: Profit of Rs.42.50/- | K168: =H168-F168 -> 42.50 | L168: =K168/F168 -> 27.69% | M168: Successful | N168: 2019-05-20
A169: 115 | B169: 2018-07-25 | D169: ZEEMEDIA | E169: Accu | F169: 27.5 | H169: 13.10 | I169: 60.00 | J169: Loss of Rs.14.40/- | K169: -14.40 | L169: -52.36% | M169: Unsuccessful | N169: 2018-02-07
A170: 116 | B170: 2018-08-06 | D170: GABRIEL | E170: Accu | F170: 148.5 | H170: 102 | I170: 182.00 | J170: Loss of Rs.46.50/- | K170: =H170-F170 -> -46.50 | L170: =K170/F170 -> -31.31% | M170: Unsuccessful | N170: 2019-07-15
A171: 117 | B171: 2018-08-23 | D171: INDIANHUME | E171: Accu | F171: 285 | H171: 355 | I171: 364.00 | J171: Profit of Rs.70/- | K171: 70.00 | L171: 24.56% | M171: Successful | N171: 2018-12-21
A172: 118 | B172: 2018-08-29 | D172: GRINDWELL | E172: Accu | F172: 525 | H172: 585 | I172: 635.00 | J172: Profit of Rs.60- | K172: =H172-F172 -> 60.00 | L172: =K172/F172 -> 11.43% | M172: Successful | N172: 2019-07-16
A173: 119 | B173: 2018-10-22 | D173: FINPIPE | E173: Accu | F173: 475 | H173: 574 | I173: 570.00 | J173: Target Achieved | K173: 99.00 | L173: 20.84% | M173: Successful | N173: 2018-10-30
A174: 120 | B174: 2018-10-24 | D174: GULFOILLUB | E174: Accu | F174: 707.5 | H174: 872 | I174: 872.00 | J174: Target Achieved | K174: 164.50 | L174: 23.25% | M174: Successful | N174: 2019-01-17
A175: 121 | B175: 2018-10-25 | D175: DBCORP | E175: Accu | F175: 162 | H175: 204 | I175: 209.00 | J175: Profit of Rs.42/- | K175: 42.00 | L175: 25.93% | M175: Successful | N175: 2019-03-15
A176: 122 | B176: 2018-10-26 | D176: RITES | E176: Accu | F176: 240 | H176: 297 | I176: 297.00 | J176: Target Achieved | K176: 57.00 | L176: 23.75% | M176: Successful | N176: 2018-11-13
A177: 123 | B177: 2018-12-05 | D177: BRIGADE | E177: Accu | F177: 202.5 | H177: 255 | I177: 252.00 | J177: Target Achieved | K177: 52.50 | L177: 25.93% | M177: Successful | N177: 2019-03-18
A178: 124 | B178: 2018-12-31 | D178: JKCEMENT | E178: Accu | F178: 710 | H178: 866 | I178: 866.00 | J178: Target Achieved | K178: 156.00 | L178: 21.97% | M178: Successful | N178: 2019-03-29
A179: 125 | B179: 2019-02-26 | D179: MARICO | E179: Accu | F179: 337.25 | H179: 398.5 | I179: 411.00 | J179: Profit of Rs.61.25/- | K179: 61.25 | L179: 18.16% | M179: Successful | N179: 2019-10-22
A180: 126 | B180: 2019-04-04 | D180: ITDCEM | E180: Accu | F180: 130 | H180: 65 | I180: 158.00 | J180: Loss of Rs.65 /- | K180: -65.00 | L180: -50.00% | M180: Unsuccessful | N180: 2019-09-18
A181: 127 | B181: 2017-10-09 | D181: RECLTD | E181: Accu | F181: 141.5 | H181: 183.5 | I181: 210.00 | J181: Profit of Rs.42/- | K181: 42.00 | L181: 29.68% | M181: Successful | N181: 2017-11-03
A182: 128 | B182: 2017-12-05 | D182: ALLCARGO | E182: Accu | F182: 172.00 | H182: 155.25 | I182: 230.00 | J182: Loss of Rs.16.75/- | K182: -16.75 | L182: -9.74% | M182: Unsuccessful | N182: 2019-11-18
A183: 129 | B183: 2018-10-25 | D183: GODREJCP | E183: Accu | F183: 698.5 | H183: 890 | I183: 890.00 | J183: Profit of Rs.191.50/- | K183: 191.50 | L183: 27.42% | M183: Successful | N183: 2021-05-12
A184: 130 | B184: 2017-05-22 | D184: GREAVESCOT | E184: Accu | F184: 127.6 | H184: 138 | I184: 190.00 | J184: Profit of Rs.10.40 | K184: 10.40 | L184: 8.15% | M184: Successful | N184: 2019-11-05
A185: 131 | B185: 2018-02-27 | D185: MOLDTKPAC | E185: Accu | F185: 317 | H185: 382.5 | I185: 398.00 | J185: Profit of Rs.65.5 | K185: 65.50 | L185: 20.66% | M185: Successful | N185: 2021-02-11
A186: 132 | B186: 2018-03-05 | D186: LICHSGFIN | E186: Accu | F186: =510-14.4 -> 495.60 | H186: 350 | I186: 672.00 | J186: Loss of Rs.145.60/- | K186: -145.60 | L186: -29.38% | M186: Unsuccessful | N186: 2020-02-26
A187: 133 | B187: 2018-05-17 | D187: PHILIPCARB | E187: Accu | F187: 230.30 | H187: 102.5 | I187: 348.00 | J187: Loss of Rs.127.80/- | K187: -127.80 | L187: -55.49% | M187: Unsuccessful | N187: 2020-03-06
A188: 134 | B188: 2018-06-07 | D188: KEC | E188: Accu | F188: =342.5-5.1 -> 337.4 | H188: 412.5 | I188: 439.00 | J188: Profit of Rs.75.10 | K188: 75.10 | L188: 22.26% | M188: Successful | N188: 2021-02-03
A189: 135 | B189: 2018-07-04 | D189: ASHOKLEY | E189: Accu | F189: =127.5-5.53 -> 121.97 | H189: 122.50 | I189: 170.00 | J189: Profit of Rs.0.53/- | K189: 0.53 | L189: 0% | M189: Neutral | N189: 2021-08-23 | R189: V
A190: 136 | B190: 2018-07-13 | D190: FCONSUMER | E190: Accu | F190: 46.50 | H190: 17 | I190: 59.00 | J190: Loss of Rs.29.50/- | K190: -29.50 | L190: -63.44% | M190: Unsuccessful | N190: 2020-02-26 | R190: V
A191: 137 | B191: 2018-10-23 | D191: JKPAPER | E191: Accu | F191: 156.5 | H191: 207.5 | I191: 191.00 | J191: Target Achieved | K191: 51.00 | L191: 32.59% | M191: Successful | N191: 2021-06-22 | R191: V
A192: 138 | B192: 2018-12-05 | D192: CCL | E192: Accu | F192: 259.5 | H192: 320 | I192: 320.00 | J192: Target Achieved | K192: 60.50 | L192: 23.31% | M192: Successful | N192: 2021-05-07 | R192: K
A193: 139 | B193: 2018-12-05 | D193: VARROC | E193: Accu | F193: 715 | H193: 445 | I193: 840.00 | J193: Loss of Rs.270/- | K193: -270.00 | L193: -37.76% | M193: Unsuccessful | N193: 2019-12-01 | R193: K
A194: 140 | B194: 2019-01-04 | D194: MGL | E194: Accu | F194: 875 | H194: 1165 | I194: 1185.00 | J194: Profit of Rs.290/- | K194: 290.00 | L194: 33.14% | M194: Successful | N194: 2020-01-17 | R194: K
A195: 141 | B195: 2019-04-04 | D195: COCHINSHIP | E195: Accu | F195: =387-14.63 -> 372.37 | H195: 490 | I195: 490.00 | J195: Target Achieved | K195: 117.63 | L195: 31.59% | M195: Successful | N195: 2020-01-20 | R195: V
A196: 142 | B196: 2019-04-23 | D196: MAHINDCIE | E196: Buy | F196: 220 | H196: 127.5 | I196: 284.00 | J196: Loss of Rs.92.50/- | K196: -92.50 | L196: -42.05% | M196: Unsuccessful | N196: 2020-03-06 | R196: K
A197: 143 | B197: 2019-06-06 | D197: RADICO | E197: Buy | F197: 332.8 | H197: 405 | I197: 419.00 | J197: Profit of Rs.72.20/- | K197: 72.20 | L197: 21.69% | M197: Successful | N197: 2020-01-30 | R197: K
A198: 144 | B198: 2019-06-25 | D198: M&MFIN | E198: Accu | F198: 386 | H198: 395.00 | I198: 452.00 | J198: Profit of Rs.9/- | K198: 9.00 | L198: 2% | M198: Neutral | N198: 2020-02-07 | R198: V
A199: 145 | B199: 2019-08-30 | D199: INDHOTEL | E199: Accu | F199: 137.5 | H199: 138.50 | I199: 190.00 | J199: Profit of Rs.1/- | K199: 1.00 | L199: 1% | M199: Neutral | N199: 2021-08-24 | R199: V
A200: 146 | B200: 2019-09-23 | D200: KNRCON | E200: Accu | F200: 235 | H200: 295 | I200: 296.00 | J200: Profit of Rs.60/- | K200: 60.00 | L200: 25.53% | M200: Successful | N200: 2020-01-14 | R200: K
A201: 147 | B201: 2019-10-14 | D201: KEC$ | E201: Accu | F201: 277.5 | H201: 333 | I201: 333.00 | J201: Profit of Rs.55.50/- | K201: 55.50 | L201: 20.00% | M201: Successful | N201: 2020-01-16 | R201: V
A202: 148 | B202: 2019-10-14 | D202: MGL$ | E202: Accu | F202: 930 | H202: 1165 | I202: 1200.00 | J202: Profit of Rs.235/- | K202: 235.00 | L202: 25.27% | M202: Successful | N202: 2020-01-17 | R202: V
A203: 149 | B203: 2019-10-15 | D203: JKPAPER$ | E203: Accu | F203: 111.00 | H203: 141 | I203: 141.00 | J203: Profit of Rs.30/- | K203: 30.00 | L203: 27.03% | M203: Successful | N203: 2021-05-12 | R203: V
A204: 150 | B204: 2019-10-15 | D204: RADICO$ | E204: Accu | F204: 296.00 | H204: 370 | I204: 370.00 | J204: Target Achieved | K204: =H204-F204 -> 74.00 | L204: =K204/F204 -> 25.00% | M204: Successful | N204: 2020-01-23 | R204: V
A205: 151 | B205: 2019-10-16 | D205: MOLDTKPAC$ | E205: Accu | F205: 300.00 | H205: 382.5 | I205: 344.00 | J205: Profit of Rs.82.5/- | K205: 82.50 | L205: 27.50% | M205: Successful | N205: 2021-02-11 | R205: V
A206: 152 | B206: 2020-01-02 | D206: PSPPROJECT | E206: Accu | F206: 495.00 | H206: 595 | I206: 590.00 | J206: Profit of Rs.100/- | K206: 100.00 | L206: 20.20% | M206: Successful | N206: 2022-01-28 | R206: V
A207: 153 | B207: 2020-05-15 | D207: BEL | E207: Accu | F207: 67.50 | H207: 86 | I207: 86.00 | J207: Profit of Rs.18.50/- | K207: 18.50 | L207: 27.41% | M207: Successful | N207: 2020-06-26 | R207: V
A208: 154 | B208: 2020-07-23 | D208: RITES | E208: Accu | F208: 231.00 | H208: 281 | I208: 281.00 | J208: Target Achieved | K208: 50.00 | L208: 21.65% | M208: Successful | N208: 2021-06-11 | R208: V
A209: 155 | B209: 2020-09-18 | D209: IEX | E209: Accu | F209: 206 | H209: 248 | I209: 248.00 | J209: Target Achieved | K209: 42.00 | L209: 20.39% | M209: Successful | N209: 2021-01-18 | R209: K
A210: 156 | B210: 2020-11-05 | D210: IEX | E210: Accu | F210: 182.5 | H210: 248 | I210: 248.00 | J210: Target Achieved | K210: 65.50 | L210: 35.89% | M210: Successful | N210: 2021-01-18 | R210: K
A211: 157 | B211: 2020-11-05 | D211: CCL | E211: Accu | F211: 247.5 | H211: 320 | I211: 320.00 | J211: Target Achieved | K211: 72.50 | L211: 29.29% | M211: Successful | N211: 2021-05-07 | R211: V
A212: 158 | B212: 2020-11-05 | D212: POLYCAB | E212: Accu | F212: 925.00 | H212: 1095 | I212: 1093.00 | J212: Profit of Rs.170/- | K212: 170.00 | L212: 18.38% | M212: Successful | N212: 2021-01-05 | R212: K
A213: 159 | B213: 2020-11-05 | D213: COCHINSHIP | E213: Accu | F213: 332.50 | H213: 393 | I213: 406.00 | J213: Profit of Rs.60.50/- | K213: 60.50 | L213: 18.20% | M213: Successful | N213: 2021-03-01 | R213: V
A214: 160 | B214: 2020-11-06 | D214: RITES | E214: Accu | F214: 231.00 | H214: 281 | I214: 281.00 | J214: Target Achieved | K214: 50.00 | L214: 21.65% | M214: Successful | N214: 2021-06-11 | R214: K
A215: 161 | B215: 2020-12-22 | D215: MIDHANI | E215: Accu | F215: 190.00 | H215: 239 | I215: 239.00 | J215: Profit of Rs.49/- | K215: 49.00 | L215: 25.79% | M215: Successful | N215: 2022-10-10 | R215: K
A216: 162 | B216: 2021-03-03 | D216: PSPPROJECT | E216: Accu | F216: 495.00 | H216: 595 | I216: 590.00 | J216: Profit of Rs.100/- | K216: 100.00 | L216: 20.20% | M216: Successful | N216: 2022-01-28 | R216: K
A217: 163 | B217: 2021-03-19 | D217: COCHINSHIP | E217: Accu | F217: 355.00 | H217: 422.5 | I217: 420.00 | J217: Profit of Rs.67.5/- | K217: 67.50 | L217: 19.01% | M217: Successful | N217: 2021-06-14 | R217: K
A218: 164 | B218: 2021-04-09 | D218: ANURAS | E218: Accu | F218: 555.00 | H218: 663 | I218: 663.00 | J218: Profit of Rs.108/- | K218: 108.00 | L218: 19.46% | M218: Successful | N218: 2021-05-05 | R218: K
... 64 more rows

Sheet Call Tracker (F&O)
M5: Back To Main Page
A6: Retail Research Technical Calls & Fundamental Performance Report for the month of September-2024
M7: 2024-09-04
A8: Master Trade High Risk
A9: Sr.no | B9: Date | D9: Company | E9: Rec | F9: Rec Price | G9: Stop Loss | H9: Call Closed At | I9: Target | J9: Remark | K9: Profit / Loss per share | L9: All charges | M9: Gain / Loss per Lot | N9: Lot | O9: Status | P9: Closed Date
A14: Master Trade Medium Risk
A15: Sr.no | B15: Date | D15: Company | E15: Rec | F15: Rec Price | G15: Stop Loss | H15: Call Closed At | I15: Target | J15: Remark | K15: Profit/ Loss per lot | L15: All charges | M15: Gain / Loss per Lot | N15: Lot | O15: Status | P15: Closed Date
A16: 1 | B16: 2024-08-29 | D16: BANKNIFTY 51600 CE 28 AUG | E16: Buy | F16: 225 | G16: 130 | H16: 172.5 | I16: 350 | J16: Loss of Rs.52.5/- | K16: =H16-F16 -> -52.5 | L16: 25.00 | M16: =(K16*N16)-L16 -> -812.5 | N16: 15 | O16: Unsuccessful | P16: 2024-09-02
A17: 2 | B17: 2024-09-02 | D17: NIFTY 25300 PE 5 SEP | E17: Buy | F17: 107.5 | G17: 60 | H17: 155 | I17: 155 | J17: Profit of Rs.47.5/- | K17: =H17-F17 -> 47.5 | L17: 50.00 | M17: 1137.5 | N17: 25 | O17: Successful | P17: 2024-09-02
A18: 3 | B18: 2024-09-03 | D18: NIFTY 25300 PE 5 SEP | E18: Buy | F18: 107.5 | G18: 65 | I18: 150 | J18: Open
A19: 4 | B19: 2024-09-03 | D19: TATACONSUM 1250 CE 26 SEP | E19: Buy | F19: 15.5 | G19: 7 | I19: 28 | J19: Open
A20: 5 | B20: 2024-09-03 | D20: BALKRISIND 3000 CE 26 SEP | E20: Buy | F20: 59 | G20: 40 | I20: 90 | J20: Open
